Workbook

Sheet RA (PEB) (2) (hidden)
A1: MAHARASHTRA STATE WAREHOUSING CORPORATION
A2: 583/B, MARKET YARD, GULTEKADI, PUNE-411037
C3: 1
A4: ='[1]Wh. '!B73 -> NAME OF WORK :- CONSTRUCTION OF 2/3600 MT CAP. PRE ENGINEERED WH BLDG WITH ANCILLARY WORKS AT:-MURTIZAPUR (MIDC) DIST. AKOLA.
A6: I.N.5 | B6: Above Plinth PEB Structure
E7: L | F7: B | G7: Area | J7: L | K7: B | L7: Area
B8: Area of 1800MT | D8: 42 | E8: 22 | F8: =D8*E8 -> 924 | H8: 5383293
B9: LessRock wool for wall(765 x 340.50/Sq.Mtr | D9: 765 | E9: 340.5 | H9: =D9*E9 -> 260482.5
B10: Less G.I.Wiremesh cost for wall(765 x 67.00/Sq.Mtr) | D10: 765 | E10: 67 | H10: =D10*E10 -> 51255
B11: Net Cost After Deduction of Rock wool cost of Wall | H11: =H8-H9-H10 -> 5071555.5
B12: Rate / Sq.Mtr | H12: =H11/F8 -> 5488.696429
B13: Area of 3000MT | D13: 73 | E13: 22 | F13: =D13*E13 -> 1606
B15: Rate analysis for 3000 MT | G15: =F13*H12 -> 8814846.464
B17: Add 1% for Power & other misleanious | G17: =G15*2% -> 176296.9293
B20: Above Plinth PEB Cost (Without Partition ) | F20: Total | G20: =SUM(G15:G19) -> 8991143.394
F23: Say | G23: =G20 -> 8991143.394
B25: For 3000 MT
D26: LENGTH | E26: HT | F26: AREA | G26: COST | H26: Cost/Sq.Mtr
B27: 22.42+22.42+42+42=128.84 | D27: 128.84 | E27: 5.45 | F27: =D27*E27 -> 702.178 | G27: 4003611 | H27: =G27/F27 -> 5701.703841
B28: (3683322+320289)=4003611
B29: For Partiation Wall | C29: 1 | D29: 22.45 | E29: 3 | F29: =C29*D29*E29 -> 67.35 | G29: =F29*H27 -> 384009.7537
B32: Say Extra gable Cost For 22.00 m Span | G32: =G29 -> 384009.7537
J33: ='[1]Wh. '!G6 -> 64.098 | K33: ='[1]Wh. '!I6 -> 29.158 | L33: =J33*K33 -> 1868.969484
E34: 42 | F34: 22 | G34: =E34*F34 -> 924
D35: Length of Bldg | E35: Height | F35: Area | G35: Cost | H35: Cost/Sq.Mtr | I35: Length of Bldg | J35: Height | K35: Area | L35: Cost
B37: Structural Steel members for wh.Bldg | D37: =42+42+22+22 -> 128 | E37: 5.15 | F37: =D37*E37 -> 659.2 | G37: =3349427 -> 3349427 | H37: =G37/F37 -> 5081.04824 | I37: =63.87+63.87+29.24+29.24+29.24 -> 215.46 | J37: 5.15 | K37: =I37*J37 -> 1109.619 | L37: =K37*H37 -> 5638027.667
B39: Errection | G39: 291255 | H39: =G39/F37 -> 441.8310073 | L39: =H39*K37 -> 490264.0805
B41: Turbovent | C41: 12 | G41: 117180 | H41: =G41/C41 -> 9765 | I41: 20 | L41: =I41*H41 -> 195300
I42: Nos
B43: R S | C43: 4 | G43: 0 | H43: =G43/C43 -> 0 | I43: 6 | L43: =I43*H43 -> 0
I44: Nos
B45: W | C45: 28 | G45: 0 | H45: =G45/C45 -> 0 | I45: 36 | L45: =I45*H45 -> 0
I46: Nos
B47: W2 | C47: 46 | G47: 134395 | H47: =G47/C47 -> 2921.630435 | I47: 76 | L47: =I47*H47 -> 222043.913
B49: Rock wool | F49: 1884 | G49: 0 | H49: =G49/F49 -> 0 | K49: =(1606*1884)/924 -> 3274.571429 | L49: =K49*H49 -> 0
B51: G.I.Wire | F51: 1884 | G51: 0 | H51: =G51/F51 -> 0 | K51: =(1606*1884)/924 -> 3274.571429 | L51: =K51*H51 -> 0
B53: Errection Charges for Laying Insulation | F53: 1884 | G53: 0 | H53: =G53/F53 -> 0 | K53: =(1606*1884)/924 -> 3274.571429 | L53: =K53*H53 -> 0
B55: TOTAL | G55: =SUM(G37:G54) -> 3892257 | L55: =SUM(L37:L54) -> 6545635.661
H56: Add 10% contractors profit | L56: =L55*10% -> 654563.5661
K57: Total | L57: =SUM(L55:L56) -> 7200199.227
B58: Cost per Sq.Meter | C58: For 1800 MT | G58: =G55/G34 -> 4212.399351 | H58: =[1]Recap!G11 -> 3600 | I58: MT | L58: =L55/L33 -> 3502.26995
D61: Periphery | E61: Ht | F61: Sheet area | G61: Mahur quatated Rate | I61: 3932.8
B62: Cladding | D62: =42.22+22.39+42.22+22.39 -> 129.22 | E62: 5.5 | F62: =D62*E62 -> 710.71 | G62: Add for RMP & XLPE | I62: =H67 -> 173.7369322 | K62: Area
B63: Roofing | D63: =42.22*2 -> 84.44 | E63: 15.5 | F63: =D63*E63 -> 1308.82 | I63: =SUM(I61:I62) -> 4106.536932 | J63: X | K63: =42.22*22.392 -> 945.39024 | L63: =K63*I63 -> 3882279.936
B64: gable | D64: =2*0.5*22.39 -> 22.39 | E64: 1.5 | F64: =E64*D64 -> 33.585 | H64: add 10 % | I64: =I63*0.1 -> 410.6536932
E65: Total | F65: =SUM(F62:F64) -> 2053.115 | H65: Total rs. | I65: =SUM(I63:I64) -> 4517.190625
B66: For RMP & XLPE isulation sheet | F66: 80
F67: =F65*F66 -> 164249.2 | G67: =K63 -> 945.39024 | H67: =F67/G67 -> 173.7369322

Sheet Facesheet (hidden)
B1: MAHARASHTRA STATE WAREHOUSING CORPORATION
B2: ( शासनाचा सार्वजनिक उपक्रम )
B3: 583/B, Market Yard, Gultekadi, Pune-37.
A5: 1 | B5: Estimated framed as per S.S. / Dy.Manager Complex
B6: letter No | D6: dated
A8: 2 | B8: Estimate requirements recommended by Sr. Regional Manager
B9: vide No - | D9: dated -
A11: 3 | B11: Part of annual programme of M&R /S.R. work vide item No-
B12: H. O. letter No-
B14: Estimate framed in the office of | C14: Regional Manager , Aurangabad / Latur
B16: ='Wh. '!B5:M5 -> NAME OF WORK :- CONSTRUCTION OF 1/2160 MT CAP PRE- ENGINEERED WH BLDG WITH ANCILLARY WORKS AT: NAGZARI DIST. LATUR
B18: =Recap!B10 -> Based on E S S R -2019-20 & MR
C20: Estimate Amounts Rs | E20: =Recap!F31 -> 14309266.87
B22: Estimate framed by- | C22: Er.
B24: Dy, manager (Engg) | C24: Er. S.N. Bhosale
B26: Scrutinised at HO. By | C26: Er.R.D. Jadhav, Pune
B28: Dy. Manager Engineering H.O | C28: Er. S.M.Patokar
A31: General Description
B33: The major items of the estimate are as directed below.
A34: Sr.no. | B34: Brief Description of item | C34: Quantity | D34: Rate | E34: Amounts
A35: 1 | B35: =Recap!B14 -> S.W. I - W.H.BUILDING 1/2160M T | E35: =Recap!#REF! -> 
A36: 2 | B36: S.W. II- OFFICE BLDG.(14.55 x 6.70) | E36: =Recap!#REF! -> 
A37: 3 | B37: =Recap!#REF! ->  | E37: =Recap!#REF! -> 
A38: 4 | B38: =Recap!B16 -> S.W. II - Elecrification | E38: =Recap!F16 -> 106524.95
A39: 5
A40: 6
B43: The total esstimated cost is Rs | C43: =E20 -> 14309266.87 | D43: including 12% GST for civil work & 18 % GST
B44: for pre engineered building &
B45: 0.5% Labour insurance. The work will be executed as per standard specifications of P.W.D. of Govt.
B46: of Maharashtra & as per the descriptions.
E49: Technically sanctioned by
D53: GENERAL MANAGER (ENGINEERING)

Sheet TS (hidden)
A1: MAHARASHTRA STATE WAREHOUSING CORPORATION
A2: 583/B, Market Yard, Gultekadi, Pune-37.
A8: TECHNICAL SANCTION
C10: ='Wh. '!B5 -> NAME OF WORK :- CONSTRUCTION OF 1/2160 MT CAP PRE- ENGINEERED WH BLDG WITH ANCILLARY WORKS AT: NAGZARI DIST. LATUR
A13: As per the delegations of powers vested with the undersigned, Technical
A14: Sanction have been accorded to the above cited work amounting to Rs | J14: =Recap!F31 -> 14309266.87
B16: The Field Officials are hereby directed; prior to taking up the above work in hand they should study all the sanctioned provisions & execute work accordingly. All the necessary registers are also to be opened.
H23: GENERAL MANAGER (ENGG.)

Sheet Shedule C (hidden)
A1: MAHARASHTRA STATE WAREHOUSING CORPORATION
A2: ( A Govt. Public Sector Undertaking)
A3: 583/B, MARKET YARD, GULTEKADI, PUNE-411037
A4: ='Shedule B'!A5:G5 -> NAME OF WORK :- CONSTRUCTION OF 1/2160 MT CAP PRE- ENGINEERED WH BLDG WITH ANCILLARY WORKS AT: NAGZARI DIST. LATUR
A5: SCHEDULE - 'C'
A6: ITEM WISE STANDARD SPECIFICATIONS
A7: Specifications for the items of work to be carried out by the Contractor as given below
A10: Item No. | B10: Name of Work | C10: Standard Specifications as per Specification Book published by Govt. of Maharashtra Volume I-1979 and Volume -II 1981 Edition
C11: Specification No. | D11: Page No. | E11: Additional specification if any
A12: 1 | B12: 2 | C12: 3 | D12: 4 | E12: 5
B13: ='Shedule B'!B14:C14 -> S.W. I - W.H.BUILDING 1/2160M T
A14: ='Shedule B'!A15 -> 1' | B14: ='Shedule B'!C15 -> Labour Charges for removing grass, thorney shurbs, subabhul & alike grass in plot making the ground clean by showel & phawaras etc. complete. | C14: --- | D14: --- | E14: As directed by Engineer in charge
A15: ='Shedule B'!A16 -> 1" | B15: ='Shedule B'!C16 -> Cutting down trees including trunks and branches with girths above 30cm to 60cm and stacking the materials neatly with all lifts and lead of 1000m as directed and earth filling in the depression / pit if any. | C15: MORTH 201 | D15: --- | E15: As directed by Engineer in charge
A16: ='Shedule B'!A17 -> 1-A | B16: ='Shedule B'!C17 -> Excavation for foundation in earth, soil of all types, sand, gravel and soft murum, including removing the excavated material up to a distance of 50 m. beyond the building area and stacking and spreading as directed, dewatering, preparing the bed for the foundation and necessary back filling, ramming, watering including shoring and strutting etc. complete. (Lift upto 1.5 m.) By Mechanical Means | C16: Bd.A.1 | D16: 259 | E16: As directed by Engineer in charge
A17: ='Shedule B'!A18 -> 1-A' | B17: ='Shedule B'!C18 -> Excavation for foundation in earth, soils of all types, sand,gravel and soft murum, including removing the excavated material upto a distance of 50 metres beyond the building area and stacking and spreading as directed, dewatering, preparing the bed for the foundation and necessary back filling, ramming, watering including shoring and strutting etc. complete. (Lift from 1.5m to 3.0m) By Mechanical Means | C17: Bd.A.1 | D17: 259 | E17: As directed by Engineer in charge
A18: ='Shedule B'!A19 -> (1-A") | B18: ='Shedule B'!C19 -> Excavation for foundation in earth, soils of all types, sand,gravel and soft murum, including removing the excavated material upto a distance of 50 metres beyond the building area and stacking and spreading as directed, dewatering, preparing the bed for the foundation and necessary back filling, ramming, watering including shoring and strutting etc. complete. (Lift from 3m to 4.5 m) By Mechanical Means | C18: Bd.A.1 | D18: 259 | E18: As directed by Engineer in charge
A19: ='Shedule B'!A20 -> 1-B | B19: ='Shedule B'!C20 -> Excavation for foundation in hard murum including removing the excavated material upto distance of 50 metres beyond the building area and stacking and spreading as directed dewatering, preparing the bed for the foundation and necessary back filling, ramming, watering including shoring and strutting etc. complete. (Lift upto 1.50 m) By Mechanical Means | C19: Bd.A.2 | D19: 259 | E19: As directed by Engineer in charge
A20: ='Shedule B'!A21 -> 1-B' | B20: ='Shedule B'!C21 -> Excavation for foundation in Hard murum including removing the excavated material upto a distance of 50 metres beyond the building area and stacking and spreading as directed, dewatering, preparing the bed for the foundation and necessary back filling, ramming, watering including shoring and strutting etc. complete. (Lift from 1.5 to 3.0m.) By Mechanical Means | C20: Bd.A.2 | D20: 259 | E20: As directed by Engineer in charge
A21: ='Shedule B'!A22 -> 1-C | B21: ='Shedule B'!C22 -> Excavation for foundation in hard murum and boulders including removing the excavated material up to a distance 50 metres, beyond the building area and stacking and spreading as directed, dewatering, preparing the bed for the foundation and necessary back filling, ramming, watering including shoring and strutting etc. complete. (Lift upto 1.5m.) By Mechanical Means | C21: Bd.A.3 | D21: 259 | E21: As directed by Engineer in charge
A22: ='Shedule B'!A23 -> 1-C' | B22: ='Shedule B'!C23 -> Excavation for foundation in Hard murum and boulders including removing the excavated material upto a distance of 50 metres, beyond the building area and stacking and spreading as directed, dewatering, preparing the bed for the foundation and necessary back filling, ramming, watering including shoring and strutting etc. complete. (Lift from 1.5 m to 3.0 m.) By Mechanical Means | C22: Bd.A.3 | D22: 259 | E22: As directed by Engineer in charge
A23: ='Shedule B'!A24 -> 1-D | B23: ='Shedule B'!C24 -> Excavation for foundation in Soft rock and old cement or lime masonry foundations including removing the excavated material upto a distance of 50 metres beyond the building area and stacking as directed, including dewatering, preparing the bed for the foundation and necessary back filling with available earth /murum, ramming, watering including shoring and strutting etc. complete (lift upto 1.5m) By Mechanical Means | C23: Bd.A.4 | D23: 259 | E23: As directed by Engineer in charge
A24: ='Shedule B'!A25 -> 1-E | B24: ='Shedule B'!C25 -> Excavation for foundation in Hard rock by blasting including trimming and leveling the bed by chiseling where necessary and removing the excavated material and stacking it in measurable heaps within a distance of 50 metres from the building area including dewatering and back filling with available earth/murum, watering, ramming, etc. complete. (Lift upto 1.5m) By Mechanical Means | C24: Bd.A.5 | D24: 259 | E24: As directed by Engineer in charge
A25: ='Shedule B'!A26 -> 1-G | B25: ='Shedule B'!C26 -> Excavation for roadway in earth, soil of all sorts, sand, gravel or soft murum including dressing section to the required grade, camber and side slopes and conveying the excavated materials with all lifts upto a lead of 50m. and spreading for embankment or stacking as directed. | C25: MORTH 301 | D25: -- | E25: As directed by Engineer in charge
A26: ='Shedule B'!A27 -> 1 - H | B26: ='Shedule B'!C27 -> Excavation for roadway in hard murum and boulder including dressing section to the required grade, camber and side slopes and conveying the excavated materials with all lifts upto a lead of 50m.and spreading for embankment or stacking as directed. | C26: MORTH 301 | D26: -- | E26: As directed by Engineer in charge
A27: ='Shedule B'!A28 -> 1-I | B27: ='Shedule B'!C28 -> Providing and fixing 25mm diameter steel anchor dowel in hard rock including drilling hole of 32 mm diameter up to 0.75 mtrs depth, placing the dowel in position and effectively grouting the hole with CM 1:1 proportion etc. complete. | C27: -- | D27: -- | E27: As directed by Engineer in charge
A28: ='Shedule B'!A29 -> 2 | B28: ='Shedule B'!C29 -> Providing and laying in situ / ready mix / ready mix M10 cement concrete of trap/ granite/ quartzite/ gneiss metal in foundation including necessary centering, formwork, bailing out water, compacting and curing etc. complete. (pan mixer) with natural /artifical sand) | C28: BR.5 & B.7 | D28: 105 & 38 | E28: As directed by Engineer in charge
A29: ='Shedule B'!A30 -> 3 | B29: ='Shedule B'!C30 -> Providing uncoursed rubble masonry of trap / granite / quartzite / gneiss stones in cement mortar 1:6 in foundation and plinth of inner walls / in plinth of external walls including bailing out water manually , striking joints on un exposed faces and watering etc.complete. | C29: Bd.H.1 | D29: 329 | E29: As directed by Engineer in charge
A30: ='Shedule B'!A31 -> 4 | B30: ='Shedule B'!C31 -> Providing second class Burnt Brick masonry with conventional/ I.S. type bricks in cement mortar 1:6 in foundations and plinth of inner walls/ in plinth external walls including bailing out water manually , striking joints on unexposed faces, raking out joints on exposed faces and watering etc. Complete. | C30: Bd.G.1 | D30: 313 | E30: As directed by Engineer in charge
A31: ='Shedule B'!A32 -> 5 | B31: ='Shedule B'!C32 -> Providing and fixing in position TMT - FE - 500 bar reinforcement of various diameters for R.C.C. pile caps, footings, foundations, slabs, beams columns, caOne Numberpies, staircase, newels, chajjas, lintels pardis, copings, fins, arches etc. as per detailed designs, drawings and schedules. including cutting, bending, hooking the bars, binding with wires or tack welding and supporting as required complete. | C31: Bd.F.17 | D31: 306 | E31: As directed by Engineer in charge
A32: ='Shedule B'!A33 -> 6 | B32: ='Shedule B'!C33 -> Providing and laying in situ /Ready Mix cement concrete M-30 of trap / granite /quartzite/ gneiss metal for R.C.C. work in foundations like raft, strip foundations, grillage and footings of R.C.C. columns and steel stanchions etc. including bailing out water, Steel centering formwork, laying/pumping cover blocks, compaction and curing roughening the surface if special finish is to be provided (Excluding reinforcement and structural steel) etc. complete. With fine aggregate (Natural Sand / Crushed sand VSI Grade finely washed etc) | C32: Bd.F.3 & B.7 | D32: 298 & 38 | E32: As directed by Engineer in charge
A33: ='Shedule B'!A34 -> 7 | B33: ='Shedule B'!C34 -> Providing and laying Cast in situ/Ready Mix cement concrete M-30 of trap / granite /quartzite/ gneiss metal for R.C.C. columns as per detailed designs and drawing or as directed including steel centering, formwork, cover blocks, laying/pumping, compaction finishing the formed surfaces with cement mortar 1:3 of sufficient minimum thickness to give a smooth and even surface or roughening if special finish is to be provided and curing etc. complete,(Excluding reinforcement and structural steel). With fine aggregate (Natural Sand / Crushed sand VSI Grade finely washed etc) | C33: Bd.F.5 & B.7 | D33: 300 & 38 | E33: As directed by Engineer in charge
A34: ='Shedule B'!A35 -> 8 | B34: ='Shedule B'!C35 -> Providing and laying Cast in situ/Ready Mix cement concrete M-30 of trap / granite /quartzite/ gneiss metal for R.C.C. beams and lintels as per detailed designs and drawings or as directed including steel centering, formwork, cover blocks, laying/pumping, compaction and roughening the surface if special finish is to be provided and curing etc. complete. (Excluding reinforcement and structural steel) etc. complete. With fine aggregate (Natural Sand / Crushed sand VSI Grade finely washed etc) | C34: Bd.F.6 & B.7 | D34: 300 & 38 | E34: As directed by Engineer in charge
A35: ='Shedule B'!A36 -> 9 | B35: ='Shedule B'!C36 -> Providing and laying Cast in situ/Ready Mix cement concrete M-30 of trap/ granite / quartzite/ gneiss metal for R.C.C. slabs and landings as per detailed designs and drawings including steel centering, formwork, cover blocks, laying/pumping, compaction finishing the formed surfaces with cement mortar 1:3 of sufficient minimum thickness to give a smooth and even surface or roughening if special finish is to be provided and curing etc. complete. (Excluding reinforcement and structural steel). With fine aggregate (Natural Sand / Crushed sand VSI Grade finely washed etc) | C35: Bd.F.8 & B.7 | D35: 302 & 38 | E35: As directed by Engineer in charge
A36: ='Shedule B'!A37 -> 10 | B36: ='Shedule B'!C37 -> Providing and laying Cast in situ/Ready Mix cement concrete M-30 of trap/ granite/ quartzite/ gneiss metal for R.C.C. chajja as per detailed design and drawings including steel centering, formwork, cover blocks compacting , curing , finishing and roughening the surface if special finish is to be provided and curing complete. (Excluding reinforcement and structural steel). With fine aggregate (Natural Sand / Crushed sand VSI Grade finely washed etc) | C36: Bd.F.9 & B.7 | D36: 303 & 38 | E36: As directed by Engineer in charge
A37: ='Shedule B'!A38 -> 11 | B37: ='Shedule B'!C38 -> Providing second class Burnt Brick masonry with conventional/ I.S. type bricks in cement mortar 1:6 in superstructure including striking joints, raking out joints, watering and scaffolding etc. Complete | C37: Bd.G.5 | D37: 315 | E37: As directed by Engineer in charge
A38: ='Shedule B'!A39 -> 12 | B38: ='Shedule B'!C39 -> Providing and laying Cast in situ/Ready Mix cement concrete M-15 of trap/ granite/quartzite/gneiss metal for coping to plinth or parapet, moulded or chamfered as per drawing or as directed including steel centering, plywood/ steel formwork compacting, roughening them if special finish is to be provided, finishing uneven and honeycombed surface and curing etc. complete. The Cement Mortar 1:3 plaster is considered for rendering uneven and honeycombed surface only. Newly laid concrete shall be covered by gunny bag, plastic, tarpaulin etc. (Wooden centering will One Numbert be allowed.) With fine aggregate (Natural Sand / Crushed sand VSI Grade finely washed etc) | C38: Bd.E. 3 & I.S. 456 (2000) | D38: 288 | E38: As directed by Engineer in charge
A39: ='Shedule B'!A40 -> 13A | B39: ='Shedule B'!C40 -> Providing internal cement plaster 20mm thick in two coats in cement mortar 1:4 with neeru finish, to concrete, brick surface, in all positions including scaffolding and curing etc.complete. | C39: Bd.L.4 & Bd. L.10 | D39: 368 & 370 | E39: As directed by Engineer in charge
A40: ='Shedule B'!A41 -> 13B | B40: ='Shedule B'!C41 -> Providing internal cement plaster 20mm thick in two coats in cement mortar 1:4 with cement slurry finish, to concrete, brick surface, in all positions including scaffolding and curing etc.complete. | C40: Bd.L.4 | D40: 369 | E40: As directed by Engineer in charge
A41: ='Shedule B'!A42 -> 13C | B41: ='Shedule B'!C42 -> Providing internal cement plaster 20mm thick in two coats in cement mortar 1:4 with cement slurry finish, to concrete, brick surface, in all positions including scaffolding and curing etc.complete. | C41: Bd.L.4 | D41: 369 | E41: As directed by Engineer in charge
A42: ='Shedule B'!A43 -> 13D | B42: ='Shedule B'!C43 -> Providing internal cement plaster 20mm thick in two coats in cement mortar 1:4 with cement slurry finish, to concrete, brick surface, in all positions including scaffolding and curing etc.complete. | C42: Bd.L.4 | D42: 369 | E42: As directed by Engineer in charge
A43: ='Shedule B'!A44 -> 13E | B43: ='Shedule B'!C44 -> Providing and applying gypsum plaster (with Gypsum material of Gypsum India /Mega Sign or equivalent make) with finishing with gypsum material in 10 to 13 millimeter thickness to newly brick surface (Excluding rough cast plaster) in all position including preparing and Finishing the surface scaffolding etc. complete. | C43: BdL | E43: As directed by Engineer in charge
A44: ='Shedule B'!A45 -> 14 | B44: ='Shedule B'!C45 -> Providing and applying white-wash in three coats on old / new plastered or masonry surfaces and asbestos cement sheets including scaffolding and preparing the surface by brushing and brooming down etc. complete. | C44: Bd. P. I | D44: 411 | E44: As directed by Engineer in charge
A45: ='Shedule B'!A46 -> 15 | B45: ='Shedule B'!C46 -> Providing and applying three coats of exterior acraylic emulsion paint confirming to corresponding I.S. of approved manufacture and of approved colour to the plastered surfaces including cleaning, preparing the plaster surface, applying primer coat, scaffolding if necessary , and watering the surface for two days etc complete. | C45: Bd.O | D45: 401 | E45: As directed by Engineer in charge
A46: ='Shedule B'!A47 -> 16 | B46: ='Shedule B'!C47 -> Providing and applying three coats (exterior quality) of flat oil paint of approved colour and shade to the plastered surface in buildings and workshops including scaffolding if necessary, cleaning the surface and preparing surface etc. complete. (including primer coat) | C46: -- | D46: -- | E46: As directed by Engineer in charge
A47: ='Shedule B'!A48 -> 17 | B47: ='Shedule B'!C48 -> Providing sills of polished Kota stone 25 mm to 30mm thick, on a bed of 1:4 cement mortar including cement float, filling joints with slurry, curing polishing and cleaning etc. complete. | C47: Bd.M.29 | D47: 391 | E47: As directed by Engineer in charge
A48: ='Shedule B'!A49 -> 18 | B48: ='Shedule B'!C49 -> Providing and fixing in position aluminium openable ventilators as per detailed drawing and as directed by Engineer in charge with all necessary alluminium sections with powder coating including necessary fixtures and fastening with 5 mm thick float glass etc. complete. ( Note While arriving at the rate of item of item weight at 6.90 kg/Sqm is considered for only alummium ventilators ) and with G.I. wiremesh of 18 Gauge, 6 mm square mesh fixed to outside the frame of ventilator and grill of 12 mm sq. bars in vertical directions at 10 cms c/c fixed to outside surface of the frame and approved quality and type fixtures, fittings including red oxide & oilpainting three coats.As per detailed drawing and as directed. | C48: Bd.E. 3 & I.S. 456 (2000) | D48: 288 | E48: As directed by Engineer in charge
A49: ='Shedule B'!A50 -> 19A | B49: ='Shedule B'!C50 -> Providing & fixing steel rolling shutter fabricated from 20 gauge steel laths with side guides, bottom rails, brackets of 10 G.M.S. sheet door suspension shaft of 50 mm dia, rolling springs of 45 cm length, locking arrangements with not less than 6mm thick strip and central lock as per specifications, housing box prepared out of 20 G sheets at the top, handles prepared out of 6mm thick flats 4 nos, holdfast patti 6 nos,for each side guide with 12 concrete nails / fasterner, including applying three coats of oilpaint of approved colour & shade etc. complete | C49: Bd.T.55 | D49: 510 | E49: As directed by Engineer in charge
A50: ='Shedule B'!A51 -> 19B | B50: ='Shedule B'!C51 -> Providing & fixing steel rolling Grill shutter fabricated from 20 gauge steel laths with side guides, bottom rails, brackets of 10 G.M.S. sheet door suspension shaft, rolling springs, locking arrangements with not less than 6mm thick strip and central lock as per specifications, housing box prepared out of 20 G sheets at the top, handles prepared out of 6mm thick flats 4 nos, holdfast patti 6 nos,for each side guide with 12 concrete nails / fasterner, including applying three coats of oilpaint of approved colour & shade etc. complete | C50: Bd.T.55 | D50: 510 | E50: As directed by Engineer in charge
A51: ='Shedule B'!A52 -> 19C | B51: ='Shedule B'!C52 -> Providing & fixing mechanical gear steel rolling shutter fabricated from 20 gauge steel laths with side guides, bottom rails, brackets of 10 G.M.S. sheet door suspension shaft of 50 mm dia, rolling springs of 45 cm length, locking arrangements with not less than 6mm thick strip and central lock as per specifications, housing box prepared out of 20 G sheets at the top, handles prepared out of 6mm thick flats 4 nos, holdfast patti 6 nos,for each side guide with 12 concrete nails / fasterner, including applying three coats of oilpaint of approved colour & shade etc. complete | C51: Bd.T.55 | D51: 510 | E51: As directed by Engineer in charge
A52: ='Shedule B'!A53 -> 20 | B52: ='Shedule B'!C53 -> Filling in plinth and floors with approved excavated material in 15cm. to 20cm. layers including watering and compacting etc. complete. | C52: Bd.A.10 | D52: 262 | E52: As directed by Engineer in charge
A53: ='Shedule B'!A54 -> 21A | B53: ='Shedule B'!C54 -> Providing Hard Murum cohesive One Numbern-swelling materials in plinth in layers of 20 cms etc. complete as directed. [ Only compacted thickness is payable ] | C53: MORTH 408 | D53: 139 | E53: As directed by Engineer in charge
A54: ='Shedule B'!A55 -> 21B | B54: ='Shedule B'!C55 -> Compacting the hard murum including laying in layers on each side with vibratory roller including artificial watering etc. complete. | C54: MORTH 409 | D54: 142 | E54: As directed by Engineer in charge
A55: ='Shedule B'!A56 -> 22A | B55: ='Shedule B'!C56 -> Providing & laying stone metal layer of 20 cm thickness with 60 mm over size metal 65% and 40 mm size metal 35% with sand or stone chips spreading & leveling handpacking complete. | C55: Rd.20 & 29 | D55: 197 & 205 | E55: As directed by Engineer in charge
A56: ='Shedule B'!A57 -> 22B | B56: ='Shedule B'!C57 -> Compacting the sub grade / gravel / size metal (100 mm loose) layers for all widths with Power roller having weight 8 to 10 MT. Including necessary, labour, materials and artificial watering complete. | C56: Rd.32 | D56: 206 | E56: As directed by Engineer in charge
A57: ='Shedule B'!A58 -> 23A | B57: ='Shedule B'!C58 -> Providing and laying in situ cement concrete M20 with tremix treatment for 150mm thickness for flooring with groove cutting of 4mm wide and 20mm deep with necessary refilling with bitumen including hardner for flooring ( Fosrok Nitofloor hardtop non metallic floor harder or similar ,) etc.complete. | C57: Bd.E.4 & B-7 | D57: 289 & 38 | E57: As directed by Engineer in charge
A58: ='Shedule B'!A59 -> 23B | B58: ='Shedule B'!C59 -> Providing and laying in situ / ready mix / ready mix M15 cement concrete of trap/ granite/ quartzite/ gneiss metal in foundation including necessary centering, formwork, bailing out water, compacting and curing etc. complete. (pan mixer) with natural /artifical sand) | C58: --- | D58: --- | E58: As directed by Engineer in charge
A59: ='Shedule B'!A60 -> 23C | B59: ='Shedule B'!C60 -> Providing groove cutting 50 mm x 6 mm in cement concrete flooring etc. complete as directed. | C59: --- | D59: --- | E59: As directed by Engineer in charge
A60: ='Shedule B'!A61 -> 24 | B60: ='Shedule B'!C61 -> Providing & fixing M.S. angle 50 x 50 x 6 mm with holdfasts at doorsills including fixing in bed concrete and then applying three coats of oilpaint etc. complete | C60: Bd.C.2 | D60: 275 | E60: As directed by Engineer in charge
A61: ='Shedule B'!A62 -> 25 | B61: ='Shedule B'!C62 -> Providing and fabricating structural steel work in rolled sections like joists, channels, angles, tees etc. as per detailed design and drawings or as directed including cutting, fabricating, hoisting, erecting, fixing in position making riveted / bolted /welded connections without connecting plates, braces etc. and including one coat of anticorrosive paint and over it two coats of oil painting of approved quality and shade etc. complete. | C61: Bd.C.2 | D61: 275 | E61: As directed by Engineer in charge
A62: ='Shedule B'!A63 -> 26 | B62: ='Shedule B'!C63 -> Providing & laying cement concrete pipe of 450 mm dia Np2 class in proper line level & slope including excavation providing & fixing collars in cement morter 1:1 complete. | C62: CD7 | D62: 162 | E62: As directed by Engineer in charge
A63: ='Shedule B'!A64 -> 27 | B63: ='Shedule B'!C64 -> Providing & supplying single ladder of 45cm width made out of high tension aluminum alloy light in weight, side channel 2 5/8 x 1 ¼ dia approximately & of 1” dia nonslip corrugated tubings at 10” c/c with solid rubber shoes & caps etc complete | C63: --- | D63: --- | E63: As directed by Engineer in charge
A64: ='Shedule B'!A65 -> 28 | B64: ='Shedule B'!C65 -> Providing & fixing lightening conductor system comprising of erecting Air termination consisting of tubular copper rod of 25 mm dia 1.2 mm thick with multiple points head 1.2 metre long [heavy duty] welded or clamped to G.I. pipe pole “ B” grade 50 mm dia of required length with M.S. round base plate 25 cm dia 10 cm thick at bottom embedded in cement concrete M-10 foundation of size 45 cm dia x 45 cm height and providing earthing with copper earth plate of size 60 x 60 x 0.3cms with cadmium plated nut bolts to fix earthing strip burried in specially prepared earth pit 1.50 m below ground level with 40 kg charcoal and salt with alternate layers of charcoal and salt and G.I. pipe 40 mm dia 2.00 m length burried in earth upto earthing plate remaining portion above ground level for watering and refilling including copper strip of 25 mm x 3 mm shall be rivated and soldered to the lower end of the conductor and carried along the strench up to this spot where the copper plate shall be burried. The other end of the strip shall be contected to the copper earth plate by rivating and soldering etc. complete | C64: Bd.W.1 | D64: 581 | E64: As directed by Engineer in charge
A65: ='Shedule B'!A66 -> 29 | B65: ='Shedule B'!C66 -> Providing and fixing 90 cm x 60 cm Marble plate engraving 10 cm. height letter, figures including painting the lefters/figures with approved colour and shade complete | C65: Bd.W.7 | D65: 586 | E65: As directed by Engineer in charge
A66: ='Shedule B'!A67 -> 30A | B66: ='Shedule B'!C67 -> Conveying the materials obtained from excavation including all lifts, laying in layers, breaking clods, dressing to the required lines, curves, grades and section for a lead over 50 to 300m from the site of excavation to the site of deposition as directed by Engineer in charge. | C66: MORTH 305 | D66: 63 | E66: As directed by Engineer in charge
A67: ='Shedule B'!A68 -> 30B | B67: ='Shedule B'!C68 -> Conveying the materials obtained from excavation including laying in layers, breaking clods, dressing to the required lines, curves, grades and section for all leads & lifts from the site of excavation to the site of deposition away from building as directed engineer in charge. | C67: MORTH 305 | D67: 63 | E67: As directed by Engineer in charge
A68: ='Shedule B'!A69 -> 31 | B68: ='Shedule B'!C69 -> Providing expansion joints in R.C.C. framed structure (exterior Columns) with plain premoulded filler 25 mm thick and 3 mm thick alluminium plate, hold fast, fixing T.W. battens on internal face, finishing etc. complete as directed. | C68: Bd.K.1 | D68: 359 | E68: As directed by Engineer in charge
A69: ='Shedule B'!A70 -> 32 | B69: ='Shedule B'!C70 -> Providing soling using 80 mm size trap metal in 15 cm. Layer including filling voids with Crushed sand/grit, ramming, watering etc. complete. | C69: Bd A. | D69: -- | E69: As directed by Engineer in charge
A70: ='Shedule B'!A71 -> 33 | B70: ='Shedule B'!C71 -> Providing pre-constructional Anti-termite treatment as per I.S. 6313 (Part-II) - 1973 by treating the top surface of plinth filling at the rate of 5 litres of emulsion concentrates of 0.5 percent of Hephoclore per square meter of surface | C70: --- | D70: --- | E70: As directed by Engineer in charge
B71: ='Shedule B'!B75:C75 -> Sub Work II - Office Building
A72: ='Shedule B'!A77 -> 1 | B72: ='Shedule B'!C77 -> Excavation for foundation in earth, soil of all types, sand, gravel and soft murum, including removing the excavated material up to a distance of 50 m. beyond the building area and stacking and spreading as directed, dewatering, preparing the bed for the foundation and necessary back filling, ramming, watering including shoring and strutting etc. complete. (Lift upto 1.5 m.) By Mechanical Means | C72: Bd.A.1 | D72: 259 | E72: As directed by Engineer in charge
A73: ='Shedule B'!A79 -> 2 | B73: ='Shedule B'!C79 -> Excavation for foundation in earth, soils of all types, sand,gravel and soft murum, including removing the excavated material upto a distance of 50 metres beyond the building area and stacking and spreading as directed, dewatering, preparing the bed for the foundation and necessary back filling, ramming, watering including shoring and strutting etc. complete. (Lift from 1.5m to 3.0m) By Mechanical Means | C73: Bd.A.1 | D73: 259 | E73: As directed by Engineer in charge
A74: ='Shedule B'!A81 -> 3 | B74: ='Shedule B'!C81 -> Excavation for foundation in hard murum including removing the excavated material upto distance of 50 metres beyond the building area and stacking and spreading as directed dewatering, preparing the bed for the foundation and necessary back filling, ramming, watering including shoring and strutting etc. complete. (Lift upto 1.50 m) By Mechanical Means | C74: Bd.A.2 | D74: 259 | E74: As directed by Engineer in charge
A75: ='Shedule B'!A83 -> 4 | B75: ='Shedule B'!C83 -> Excavation for foundation in hard murum and boulders including removing the excavated material up to a distance 50 metres, beyond the building area and stacking and spreading as directed, dewatering, preparing the bed for the foundation and necessary back filling, ramming, watering including shoring and strutting etc. complete. (Lift upto 1.5m.) By Mechanical Means | C75: Bd.A.2 | D75: 259 | E75: As directed by Engineer in charge
A76: ='Shedule B'!A85 -> 5 | B76: ='Shedule B'!C85 -> Excavation for foundation in Soft rock and old cement or lime masonry foundations including removing the excavated material upto a distance of 50 metres beyond the building area and stacking as directed, including dewatering, preparing the bed for the foundation and necessary back filling with available earth /murum, ramming, watering including shoring and strutting etc. complete (lift upto 3.0m) By Mechanical Means | C76: Bd.A.4 | D76: 259 | E76: As directed by Engineer in charge
A77: ='Shedule B'!A87 -> 6 | B77: ='Shedule B'!C87 -> Excavation for foundation in Hard rock by chiselling, wedging, line drilling, etc. including trimming and levelling the bed, removing the excavated material upto a distance of 50metres beyond the building area stacking as directed, dewatering and back filling with available earth /murum watering, ramming etc. complete. (all lifts). By Mechanical Means | C77: Bd.A.5 | D77: 259 | E77: As directed by Engineer in charge
A78: ='Shedule B'!A89 -> 7 | B78: ='Shedule B'!C89 -> Excavation for foundation in Hard rock by controlled blasting including trimming and leveling the bed by chiseling where necessary and removing the excavated material and stacking it in measurable heaps within a distance of 50 metres from the building area including dewatering and back filling with available earth/murum, watering, ramming, etc. complete. (all lifts) By Mechanical Means | C78: Bd.A.5 | D78: 259 | E78: As directed by Engineer in charge
A79: ='Shedule B'!A91 -> 8 | B79: ='Shedule B'!C91 -> Excavation for roadway in earth, soil of all sorts, sand, gravel or soft murum including dressing section to the required grade, camber and side slopes and conveying the excavated materials with all lifts upto a lead of 50m. and spreading for embankment or stacking as directed. | C79: MORTH 301 | D79: -- | E79: As directed by Engineer in charge
A80: ='Shedule B'!A93 -> 9 | B80: ='Shedule B'!C93 -> Providing and laying in situ / ready mix / ready mix M10 cement concrete of trap/ granite/ quartzite/ gneiss metal in foundation including necessary centering, formwork, bailing out water, compacting and curing etc. complete. (pan mixer) with natural /artifical sand) | C80: BR.5 & B.7 | D80: 105 & 38 | E80: As directed by Engineer in charge
A81: ='Shedule B'!A95 -> 10 | B81: ='Shedule B'!C95 -> Providing uncoursed rubble masonry of trap / granite / quartzite / gneiss stones in cement mortar 1:6 in foundation and plinth of inner walls / in plinth of external walls including bailing out water manually , striking joints on un exposed faces and watering etc.complete. | C81: Bd.H.1 | D81: 329 | E81: As directed by Engineer in charge
A82: ='Shedule B'!A97 -> 11 | B82: ='Shedule B'!C97 -> Providing second class Burnt Brick masonry with conventional/ I.S. type bricks in cement mortar 1:6 in foundations and plinth of inner walls/ in plinth external walls including bailing out water manually , striking joints on unexposed faces, raking out joints on exposed faces and watering etc. Complete. | C82: Bd.G.1 | D82: 313 | E82: As directed by Engineer in charge
A83: ='Shedule B'!A99 -> 12 | B83: ='Shedule B'!C99 -> Providing second class Burnt Brick masonry with conventional/ I.S. type bricks in cement mortar 1:6 in superstructure including striking joints, raking out joints, watering and scaffolding etc. Complete | C83: Bd.G.5 | D83: 315 | E83: As directed by Engineer in charge
A84: ='Shedule B'!A101 -> 13 | B84: ='Shedule B'!C101 -> Providing and laying in situ /Ready Mix cement concrete M-20 of trap / granite /quartzite/ gneiss metal for R.C.C. work in foundations like raft, strip foundations, grillage and footings of R.C.C. columns and steel stanchions etc. including bailing out water, Steel centering formwork, laying/pumping cover blocks, compaction and curing roughening the surface if special finish is to be provided (Excluding reinforcement and structural steel) etc. complete. With fine aggregate (Natural Sand / Crushed sand VSI Grade finely washed etc) | C84: Bd. F3 | D84: 298 | E84: As directed by Engineer in charge
A85: ='Shedule B'!A103 -> 14 | B85: ='Shedule B'!C103 -> Providing and laying Cast in situ/Ready Mix cement concrete M-20 of trap / granite /quartzite/ gneiss metal for R.C.C. columns as per detailed designs and drawing or as directed including steel centering, formwork, cover blocks, laying/pumping, compaction finishing the formed surfaces with cement mortar 1:3 of sufficient minimum thickness to give a smooth and even surface or roughening if special finish is to be provided and curing etc. complete,(Excluding reinforcement and structural steel). With fine aggregate (Natural Sand / Crushed sand VSI Grade finely washed etc) | C85: Bd. F 5 | D85: 300 | E85: As directed by Engineer in charge
A86: ='Shedule B'!A105 -> 15 | B86: ='Shedule B'!C105 -> Providing and laying Cast in situ/Ready Mix cement concrete M-20 of trap / granite /quartzite/ gneiss metal for R.C.C. beams and lintels as per detailed designs and drawings or as directed including steel centering, formwork, cover blocks, laying/pumping, compaction and roughening the surface if special finish is to be provided and curing etc. complete. (Excluding reinforcement and structural steel) etc. complete. With fine aggregate (Natural Sand / Crushed sand VSI Grade finely washed etc) | C86: Bd. F. 6 | D86: 300 | E86: As directed by Engineer in charge
A87: ='Shedule B'!A107 -> 16 | B87: ='Shedule B'!C107 -> Providing and laying Cast in situ/Ready Mix cement concrete M-20 of trap/ granite/ quartzite/ gneiss metal for R.C.C. chajja as per detailed design and drawings including steel centering, formwork, cover blocks compacting , curing , finishing and roughening the surface if special finish is to be provided and curing complete. (Excluding reinforcement and structural steel). With fine aggregate (Natural Sand / Crushed sand VSI Grade finely washed etc) | C87: Bd. F. 9 | D87: 303 | E87: As directed by Engineer in charge
A88: ='Shedule B'!A109 -> 17 | B88: ='Shedule B'!C109 -> Providing and laying Cast in situ/Ready Mix cement concrete M-20 of trap/ granite / quartzite/ gneiss metal for R.C.C. slabs and landings as per detailed designs and drawings including steel centering, formwork, cover blocks, laying/pumping, compaction finishing the formed surfaces with cement mortar 1:3 of sufficient minimum thickness to give a smooth and even surface or roughening if special finish is to be provided and curing etc. complete. (Excluding reinforcement and structural steel). With fine aggregate (Natural Sand / Crushed sand VSI Grade finely washed etc) | C88: Bd. F. 8 | D88: 302 | E88: As directed by Engineer in charge
A89: ='Shedule B'!A111 -> 18 | B89: ='Shedule B'!C111 -> Providing and fixing in position TMT - FE - 500 bar reinforcement of various diameters for R.C.C. pile caps, footings, foundations, slabs, beams columns, caOne Numberpies, staircase, newels, chajjas, lintels pardis, copings, fins, arches etc. as per detailed designs, drawings and schedules. including cutting, bending, hooking the bars, binding with wires or tack welding and supporting as required complete. | C89: Bd.F.17 | D89: 306 | E89: As directed by Engineer in charge
A90: ='Shedule B'!A113 -> 19 | B90: ='Shedule B'!C113 -> Providing II class B.B. masonary with conventional / I. s. type bricks in cement morter ( 1: 4 ) in half brick thick wall including longitudinal reinforcement of 2 bars of 6mm dia / 2 hoop iron strips 25mm x 1.6 mm at every III course properly bent & bounded at ends scaffolding, racking out joints and watering complete. [Bd.G.7 / P 316 ] | C90: Bd. F. 17 | D90: 306 | E90: As directed by Engineer in charge
A91: ='Shedule B'!A115 -> 20 | B91: ='Shedule B'!C115 -> Providing cement plaster 12 mm thick in C. M. 1 : 4 in single coat with neeru finish with even & smooth finish to concrete or brick surface in all positions including scaffolding curing etc. complete as directed. [Bd. L. 2/368 + Bd. L. 10] | C91: Bd.L.4 & Bd. L.10 | D91: 368 & 370 | E91: As directed by Engineer in charge
A92: ='Shedule B'!A117 -> 21 | B92: ='Shedule B'!C117 -> Providing sand faced plaster externally in cement mortar using approved screened sand, in all positions including base coat of 15mm thick in cement mortar 1:4 using waterproofing compound at 1kg per cement bag curing the same for not less than 2days and keeping the surface of the base coat rough to receive the sand faced treatment 6to8mm thick in cement mortar 1:4 finishing the surface by taking out grains and curing for fourteen days scaffolding etc.complete. (Bd.L.7/369) | C92: Bd.L.4 | D92: 369 | E92: As directed by Engineer in charge
A93: ='Shedule B'!A119 -> 22 | B93: ='Shedule B'!C119 -> Providing rough cast cement plster externally in two coats to concrete, brick or stone masonry surfaces in all positions with base coat of 12 to 15 mm. thick in C.M. 1:4 and rough cast treatment 12 mm. thick in proportion 1:1.5:3 including scaffolding and fourteen days curing etc. complete. [ Spec. No.: Bd. L. 8/Page No. 370 ]( It.No. 12 / Page No. 370) | C93: Bd.L.4 | D93: 369 | E93: As directed by Engineer in charge
A94: ='Shedule B'!A121 -> 23 | B94: ='Shedule B'!C121 -> Providing cement plaster 20 mm thick in C.M. 1:4( PLINTH) with 1.5mm thick cement finish to concrete /brick surface in all positions including scaffolding curing etc. complete as directed.(Bd.L.4/368) | C94: Bd.L.4 | D94: 369 | E94: As directed by Engineer in charge
A95: ='Shedule B'!A123 -> 24 | B95: ='Shedule B'!C123 -> Providing & applying cement paint in three coats on plastered or masonary surface of approved manufacture & of approved colour including primer coat scafdfolding & preparing the surface complete. [ Bd. O. 8/406] | C95: Bd. O.8 | D95: 406 | E95: As directed by Engineer in charge
A96: ='Shedule B'!A125 -> 25 | B96: ='Shedule B'!C125 -> Providing & applying oilbound distemper in three coats on plastered or masonary surface of approved manufacturer & of approved colour including primer coat scafolding & preparing the surface watering for two days complete. [Bd. P. 5/413] | C96: Bd. P. 5(a) | D96: 413 | E96: As directed by Engineer in charge
A97: ='Shedule B'!A127 -> 26 | B97: ='Shedule B'!C127 -> Providing & applying whitewash three coats on plastered or masonary surface including scafafolding & preparing the surface by brushing & brooming down complete. [Bd. P. 1/411] | C97: Bd. P. I | D97: 411 | E97: As directed by Engineer in charge
A98: ='Shedule B'!A129 -> 27 | B98: ='Shedule B'!C129 -> Providing & fixing in position solid core flush door single leaf 35 mm thick decorative type of exterior grade as per detailed drawing including superior Indian teak wood door frame 60 x 100 mm with ventilator as directed all necessary beads, moldings and lippings wrought iron hold fasts, chromium plated fixtures & fastenings without brass mortice lock including three coats of oilpainting as directed by Engineer – in charge [Bd. T. 34 P 499] | C98: Bd. T . 34 | D98: 499 | E98: As directed by Engineer in charge
A99: ='Shedule B'!A131 -> 28 | B99: ='Shedule B'!C131 -> Providing & fixing Country teak wood single leaf, second class fully panelled door, without ventilator as per detailed drawing including Iron Oxidiesed fixtures and fastenings and finishing the wood work with one coat of primer etc. including door frame 60 x 100 mm complete. Panels 12mm tk. exterior grade prelaminated particle boarf [Spec. No. Bd. T. 8/ P 482] (Item No. 6 / Page No. 81) | C99: BD. T. 11 | D99: 499 | E99: As directed by Engineer in charge
A100: ='Shedule B'!A133 -> 29 | B100: ='Shedule B'!C133 -> Providing & fixing Country teak wood Double leaf, second class fully panelled framed and braced door, with ventilator without / with Ironbars as per detailed drawing including the door frame 60 x 100 mm, Ironfixtures and fastenings and finishing with primer coat etc.complee [Spec. No. Bd. T. 19/ P 493] | C100: BD. T. 11 | D100: 499 | E100: As directed by Engineer in charge
A101: ='Shedule B'!A135 -> 30 | B101: ='Shedule B'!C135 -> Providing & fixing in position solid core flush door single leaf 32 mm thick decorative type of exterior grade as per detailed drawing including superior Indian teak woo door frame 60 x 100 mm without Ventilator as directed all necessary beads, moldings and lippings wrought iron hold fasts, chromium plated fixtures & fastening without brass mortice lock including three coats of oilpainting as directed by Engineer – in charge [ Bd. T. 36 P 500] | C101: BD. T. 11 | D101: 499 | E101: As directed by Engineer in charge
A102: ='Shedule B'!A137 -> 31 | B102: ='Shedule B'!C137 -> providing & fixing in position teak wood wall cupboard plain planked with three teakwood shelves 50cm wide & 25 mm thick including teakwood frame of 50 mm x 75mm and shutters of 25 mm thick teak wood planks with 12mm thick & 75 mm wide ladges with C. P. fixtures and fastenings hold fasts, with three coats of oilpainting complete as directed by Engineer – in charge | C102: -- | D102: -- | E102: As directed by Engineer in charge
A103: ='Shedule B'!A139 -> 32 | B103: ='Shedule B'!C139 -> Providing & fixing M. S. grillwork for windows & ventilators upto 20 kg/sqm as per drawing including fixtures necessary welding and painting one coat of anticorrosive paint & two coats of oilpainting complete as directed [Bd. U1 P 537] | C103: BD. V 1 | D103: 537 | E103: As directed by Engineer in charge
A104: ='Shedule B'!A141 -> 33 | B104: ='Shedule B'!C141 -> Providing Hard Murum cohesive non-swelling materials in plinth in layers of 20 cms etc. complete as directed. [ Only compacted thickness is payable ] | C104: Bd. M 12 | D104: 385 | E104: As directed by Engineer in charge
A105: ='Shedule B'!A143 -> 34 | B105: ='Shedule B'!C143 -> Providing & fixing in position for flooring, of vetrified tiles of approved quality & make 600 x 600 mm size & tk. for flooring width on 1 : 4 cement plaster including cement float filling cement joints with neat cement slurry, curing, rubbing polishing & cleaning complete. | C105: Bd. M 12 | D105: 385 | E105: As directed by Engineer in charge
A106: ='Shedule B'!A145 -> 35 | B106: ='Shedule B'!C145 -> Providing & fixing in position for dado & skirting of vetrified tiles of approved quality & make 600 x 600 mm size & tk. for Dado & Skirting width on 1 : 4 cement plaster including cement float filling cement joints with neat cement slurry, curing, rubbing polishing & cleaning complete. | C106: Bd. M 12 | D106: 385 | E106: As directed by Engineer in charge
A107: ='Shedule B'!A147 -> 36 | B107: ='Shedule B'!C147 -> Providing & fixing in position sills of polished shahabad stone slabs 25mm to 30mm tk and required width on 1 : 4 cement float filling cement joints with neat cement slurry, curing, rubbing polishing & cleaning complete. [ Bd. M. 29/331] | C107: BD. M. 29 b | D107: 391 | E107: As directed by Engineer in charge
A108: ='Shedule B'!A149 -> 37 | B108: ='Shedule B'!C149 -> Providing and laying matt finish ceramic tiles of having size 30cmx30cm confirming to I.S. 15622/2006 (groupDII-A) and 7to8mm thick for flooring in required position laid on a bed of 1:4 cement mortar including cement float, filling joint with white /colour cement slurry cleaning curing etc. complete. | C108: Bd. M. 12 | D108: 385 | E108: As directed by Engineer in charge
A109: ='Shedule B'!A151 -> 38 | B109: ='Shedule B'!C151 -> Providing and laying ceramic tiles of having size 30cm.x30cm. and confirming to corresponding I.S. for dado and skirting in required position with ready made adhesive mortar of approved quality on plaster of 1:2 cement mortar including joint filling with white/ colour cement slurry cleaning curing etc. complete. | C109: Bd. M. 13 | D109: 386 | E109: As directed by Engineer in charge
A110: ='Shedule B'!A153 -> 39 | B110: ='Shedule B'!C153 -> Providing & fixing Indian type white glazed Orissa type earthenware 580 x 440 mm water closet pan including S trap white earthenware foot rest cast iron soil & vent pipe upto the outside face of the wall 1:2:4 brickbat lime concrete bedding 10 Litre fibre highlevel tank flushing cistern with fittings, inlet pipe with stop tap, bracket for fixing the cistern 32 mm dia PVC pipe with fittings & clamps 20 mm dia G. I. Over flow pipe with mosquitoproof capping G. I. Chain pull, painting of cistren & exposed pipes & fittings & making good walls & floor with enameled tank & PVC pipe as directed [Bd. V. 30/565] | C110: BD. V | E110: As directed by Engineer in charge
A111: ='Shedule B'!A155 -> 40 | B111: ='Shedule B'!C155 -> Providing and fixing European type white glazed earthenware coupled closet symphonic trap with symphonic low level white glazed 10litres cistern with black back lite seat with all necessary pipe connection etc. complete [Bd. V. 30/565]. | C111: BD. V | E111: As directed by Engineer in charge
A112: ='Shedule B'!A157 -> 41 | B112: ='Shedule B'!C157 -> Providing & fixing white glazed wash hand basin of 55 x 40 cms size including cold water pillar tap brackets, rubber plug & brass chain, stop tap & necessary pipe connections including PVC vest pipe & trap upto outside face of the wall. [Bd. V. 30 / P 565] | C112: BD. V | D112: 30 | E112: As directed by Engineer in charge
A113: ='Shedule B'!A159 -> 42 | B113: ='Shedule B'!C159 -> Providing & fixing 10cms Rigid C.I. Nahani trap including C.I Grating bend & piece of C.I. Pipe upto the outside face of the wall complete | C113: BD. V. 32 | D113: 567 | E113: As directed by Engineer in charge
A114: ='Shedule B'!A161 -> 43 | B114: ='Shedule B'!C161 -> Providing & fixing 15 x 10cms salt glazed stoneware gully trap in C. C. 1:4:8 outside the building including cast iron grating in the sink, connecting glazed stoneware pipe, brick masonary chamber and cast iron lead & cast iron grating for gully trap. [bd. V. 38 / P 572] | C114: Bd. V. 38 | D114: 572 | E114: As directed by Engineer in charge
A115: ='Shedule B'!A163 -> 44 | B115: ='Shedule B'!C163 -> Providing & constructing brick masonary inspection chamber 60 x 45cms including 1:4:8 C. C. foundation 1:2:4 cement concrete channels half round G S W pipes, brick masonary, plastering from inside with frame fixed in cement concrete etc. complete with R. C. C. cover. [Bd. V. 43 / P 574] | C115: BD. V. 43 | D115: 574 | E115: As directed by Engineer in charge
A116: ='Shedule B'!A165 -> 45 | B116: ='Shedule B'!C165 -> Providing Soak pit including excavating and filling with brickbat [Bd. V. 46 / P 576] | C116: BD.V. 46 | D116: 576 | E116: As directed by Engineer in charge
A117: ='Shedule B'!A167 -> 46 | B117: ='Shedule B'!C167 -> Providing & fixing hume pipe septic tank 900 mm diameterwith vent pipe and cap including necessary fittings (incuding excavation and laying) Bd.V.45 Page No.575 | C117: BD. V. 45 | D117: 575 | E117: As directed by Engineer in charge
A118: ='Shedule B'!A169 -> 47 | B118: ='Shedule B'!C169 -> Providing & laying 110 MM dia U.P.V.C. SOIL / VENT / WASTE SWR pipesalt glazed stoneware pipe including fittings such as bends, tees, single junction, double junction laying, jointing ( including excavation & refilling the trenches) complete [Bd. V. 39 / P 573] | C118: BD. V | E118: As directed by Engineer in charge
A119: ='Shedule B'!A171 -> 48 | B119: ='Shedule B'!C171 -> Providing & fixing stainess steel sink 600 mm x 450 mm x 250 mm including all connection of the G.I. supply and lead waste pipes upto the out side face of the wall, cold water chromium plated screw down bib tap, rolled steel on C.I. brackets, rubber plug with chain and stop tap etc. complete. [Spec. No. Bd. V. 31 / P.No. 566] (It.No. 25 / P.No. 113) | C119: BD.V. 4 | E119: As directed by Engineer in charge
A120: ='Shedule B'!A173 -> 49 | B120: ='Shedule B'!C173 -> Providing & laying in trenches 15 mm dia heavy grade (type) having embossed as ISI marked G. I. Pipes weight of 1.25 kg/Mtrs. with screwed socket joints & necessary G. I. Fittings such as sockets, backnuts, elbows, bends, tees, reducers, enlargers, plugs, clamps etc including necessary drilling holes in walls, slabs etc. and remaking good the demolished portion to restore the same in original condition neatly and primer providing & applying anticorrosive primer paint and two coats of oilpaintings complete | C120: BD.V. 5 | D120: 551 | E120: As directed by Engineer in charge
A121: ='Shedule B'!A175 -> 50 | B121: ='Shedule B'!C175 -> Providing & laying in trenches 20 mm dia heavy grade (type) having embossed as ISI marked G. I. Pipes weight of 1.25 kg/Mtrs. with screwed socket joints & necessary G. I. Fittings such as sockets, backnuts, elbows, bends, tees, reducers, enlargers, plugs, clamps etc including necessary drilling holes in walls, slabs etc. and remaking good the demolished portion to restore the same in original condition neatly and primer providing & applying anticorrosive primer paint and two coats of oilpaintings complete | C121: BD.V.5 | D121: 551 | E121: As directed by Engineer in charge
A122: ='Shedule B'!A177 -> 51 | B122: ='Shedule B'!C177 -> Providing & fixing on walls, ceiling, flooring, 15 mm dia heavy grade (type) having embossed as ISI marked G. I. Pipes weight of 1.48 kg/Rms. with screwed socket joints & necessary G. I. Fittings such as sockets, backnuts, elbows, bends, tees, reducers, enlargers, plugs, clamps etc including necessary drilling holes in walls, slabs etc. and remaking good the demolished portion to restore the same in original condition neatly and providing & applying anticorrosive primer oilpaint and two coats of oilpaintings complete. [Bd. V. 5 / P 551] | C122: BD.V.5 | D122: 551 | E122: As directed by Engineer in charge
A123: ='Shedule B'!A179 -> 52 | B123: ='Shedule B'!C179 -> Providing & laying in treches 25 mm dia heavy grade (type) having embossed as ISI marked G. I. Pipes weight of 2.49 kg/Rms. with screwed socket joints & necessary G. I. Fittings such as sockets, backnuts, elbows, bends, tees, reducers, enlargers, plugs, clamps etc including necessary drilling holes in walls, slabs etc. and remaking good the demolished portion to restore the same in original condition neatly and providing & applying anticorrosive primer oilpaint and two coats of oilpaintings complete. [Bd. V. 5 / P 551] | C123: BD.V.5 | D123: 551 | E123: As directed by Engineer in charge
A124: ='Shedule B'!A181 -> 53 | B124: ='Shedule B'!C181 -> Providing & fixing on walls, ceiling, flooring, 25mm dia heavy grade (type) having embossed as ISI marked G. I. Pipes weight of 2.49 kg/Mtre. with screwed socket joints & necessary G. I. Fittings such as sockets, backnuts, elbows, bends, tees, reducers, enlargers, plugs, clamps etc including necessary drilling holes in walls, slabs etc. and remaking good the demolished portion to restore the same in original condition neatly and providing & applying anticorrosive primer oilpaint and two coats of oilpaintings complete. [Bd. V. 5 / P 551] | C124: BD.V.5 | D124: 551 | E124: As directed by Engineer in charge
A125: ='Shedule B'!A183 -> 54 | B125: ='Shedule B'!C183 -> Providing & fixing on walls, ceiling, flooring, 20mm dia heavy grade (type) having embossed as ISI marked G. I. Pipes weight of 1.93 kg/Mtre. with screwed socket joints & necessary G. I. Fittings such as sockets, backnuts, elbows, bends, tees, reducers, enlargers, plugs, clamps etc including necessary drilling holes in walls, slabs etc. and remaking good the demolished portion to restore the same in original condition neatly and providing & applying anticorrosive primer oilpaint and two coats of oilpaintings complete. [Bd. V. 5 / P 551] | C125: BD.V.5 c | D125: 551 | E125: As directed by Engineer in charge
A126: ='Shedule B'!A185 -> 55 | B126: ='Shedule B'!C185 -> Providing & fixing in position 45 x 55 cms high class mirror over wash hand basin including all accessories, and necessary fittings etc. Complete as directed. | C126: BD.V. | E126: As directed by Engineer in charge
A127: ='Shedule B'!A187 -> 56 | B127: ='Shedule B'!C187 -> Providing & fixing in position cast iron oxidised brackets mounted on country cut teak wood plank of size 90 x10 x 2.5 cms duly polished & fixed on wall properly etc. complete | C127: -- | D127: -- | E127: As directed by Engineer in charge
A128: ='Shedule B'!A189 -> 57 | B128: ='Shedule B'!C189 -> Providing & fixing H. D. P container one piece mouled watertank made out of low density polyethler and build corrugations inclusive of delivery upto destination housing fixing of accessories such as inlet, outlet, overflow inclusive of all taxes as directed. | C128: BD.5 | E128: As directed by Engineer in charge
A129: ='Shedule B'!A191 -> 58 | B129: ='Shedule B'!C191 -> Providing & fixing 15 mm dia screw down bib / stop tap of brass including necessary socket, union, nuts complete. [Bd. V. 8 / P 554] | C129: BD.V.8 | D129: 554 | E129: As directed by Engineer in charge
A130: ='Shedule B'!A193 -> 59 | B130: ='Shedule B'!C193 -> Providing, construction and erecting in position flag post as per drawing and design as directed by Engineer in charge | C130: -- | D130: -- | E130: As directed by Engineer in charge
A131: ='Shedule B'!A195 -> 60 | B131: ='Shedule B'!C195 -> Providing & constructing water platform as per drawing & design as directed by Engineer in charge. | C131: -- | D131: -- | E131: As directed by Engineer in charge
A132: ='Shedule B'!A197 -> 61 | B132: ='Shedule B'!C197 -> Providing cement based waterproofing treatment to terraces(Indian waterproofing or a like) with brickbats laid in required slope to drain the water for any span after cleaning the base surface. Applying a coat of cement slurry admixed with approved waterproofing compound and laying the brickbats on bottom layer in C.M. 1:5 admixed with approved waterproofing compound filling up to half depth of brick bats, curing this layer for 3days, applying cement slurry over this layer joints of brickbats with C.M. 1:3 admixed with approved waterproofing compound and finally top finishing with average 20mm. thick layers of same mortar added with jute fiber at 1Kg per bag including finishing the surface smooth with cement slurry admixed with approved waterproofing compound. Marking finished surface with false squares of 300mmx300mm. making the junctions at the parapet rounded and tapered top for required height, with dripmouldat the junction of plaster and parapet and curing and covering 10years Guarantee against leakproofness on Court fee stamp paper of Rs. 500/- including ponding test etc. complete. complete. | C132: BD.J. | E132: As directed by Engineer in charge
A133: ='Shedule B'!A199 -> 62 | B133: ='Shedule B'!C199 -> Providing & fixing 15mm dia. Screw down whealed stop tap of gun metal / brass including necessary socket / union nuts etc. complete. [Bd.V.9/555] | C133: BD.9 | D133: 555 | E133: As directed by Engineer in charge
A134: ='Shedule B'!A201 -> 63 | B134: ='Shedule B'!C201 -> Providing & fixing 25mm dia. Screw down whealed stop tap of gun metal / brass including necessary socket / union nuts etc. complete.[Bd.V.9/555] | C134: BD.9 | D134: 555 | E134: As directed by Engineer in charge
A135: ='Shedule B'!A203 -> 64 | B135: ='Shedule B'!C203 -> Providing & fixing 20mm dia. Screw down whealed stop tap of gun metal / brass including necessary socket / union nuts etc. complete.[Bd.V.9/555] | C135: BD.9 | D135: 555 | E135: As directed by Engineer in charge
A136: ='Shedule B'!A205 -> 65 | B136: ='Shedule B'!C205 -> Providing & fixing in position alluminium exctruded section two track sliding window up to 1.5 m. ht. outer frame made from section of over all size 62 x 45 mm with fixed vintilator fully glazed of any size with powder coating as per detailed drawing and as directed by Engineer-in-charge with all necessary alluminium section including necessary fixtures and fastening such as 5 mm thick clear glass etc. complete. ( as directed by Engineer-in-charge ) | C136: BD.T. | E136: As directed by Engineer in charge
A137: ='Shedule B'!A207 -> 66 | B137: ='Shedule B'!C207 -> Providing 25 to 30mm thick partions of polished black kadappa stone slab of approved shapes, quality and colour for platform urinals, including cutting holes of required sizes in the appropriate places to receive pipes etc., fixing in cement mortar 1:3 curing and cleaning complete. [Bd.M.35 / 393] | C137: BD.M. 35 | D137: 393 | E137: As directed by Engineer in charge
A138: ='Shedule B'!A209 -> 67 | B138: ='Shedule B'!C209 -> Providing & fixing 20 mm dia. alluminuim powder coated palemat rod including fixtures as directed. | C138: -- | D138: -- | E138: As directed by Engineer in charge
A139: ='Shedule B'!A211 -> 68 | B139: ='Shedule B'!C211 -> Providing & fixing white glazed earthenware semi stall type Urinals without cistern with inlet pipes stop tap, UPVC flush pipe, with fittings and flushing arrangement including UPVC soil pipe, UPVC trap and soil pipe connection upto the outside face of the wall, making good to damaged surface testing etc. complete. (Prior approval of sample and brand by Ex. Engineer is necessary befor use.) ( Spec.No. : As directed by Engineer - in - Charge) | C139: BD.V. 26 | D139: 564 | E139: As directed by Engineer in charge
A140: ='Shedule B'!A213 -> 69 | B140: ='Shedule B'!C213 -> Conveying the materials obtained from excavation including laying in layers, breaking clods, dressing to the required lines, curves, grades and section for all leads up to 3 Km. from the site of excavation to the site of deposition aeay from complex as directed. (Rd.18 Page No. 197) | C140: -- | D140: -- | E140: As directed by Engineer in charge
A141: ='Shedule B'!A215 -> 70 | B141: ='Shedule B'!C215 -> Filling in plinth with approved excavated stuff obtained from departmental land including watering, compacting etc. complete as directed.(Bd. A.10/262) | C141: MORTH | D141: 305 | E141: As directed by Engineer in charge
A142: ='Shedule B'!A217 -> 71 | B142: ='Shedule B'!C217 -> Providing & laying stone metal layer of 20 cm thickness with 60 mm over size metal 65% and 40 mm size metal 35% with sand or stone chips spreading & leveling handpacking complete.[Rd.22/201,Rd.20/200 &Rd.20/205 ] | C142: -- | D142: -- | E142: As directed by Engineer in charge
A143: ='Shedule B'!A219 -> 72 | B143: ='Shedule B'!C219 -> Providing and laying Cast in situ/Ready Mix cement concrete M-15 of trap/ granite/quartzite/gneiss metal for coping to plinth or parapet, moulded or chamfered as per drawing or as directed including steel centering, plywood/ steel formwork compacting, roughening them if special finish is to be provided, finishing uneven and honeycombed surface and curing etc. complete. The Cement Mortar 1:3 plaster is considered for rendering uneven and honeycombed surface only. Newly laid concrete shall be covered by gunny bag, plastic, tarpaulin etc. (Wooden centering will One Numbert be allowed.) With fine aggregate (Natural Sand / Crushed sand VSI Grade finely washed etc) | C143: Bd.E.4 | D143: 289 | E143: As directed by Engineer in charge
A144: ='Shedule B'!A221 -> 73 | B144: ='Shedule B'!C221 -> Providing & laying 20 to 25 mm th. Polished Kota stone slabs for treads & risers of steps & staircases with rounded nosing for the treads on a bed of 1:4 C.M. including cement float, filling joints with neat cement slurry,curring,polishing & cleaning complete.(Bd. M.22/390) | C144: BD.M. 22 | D144: 390 | E144: As directed by Engineer in charge
A145: ='Shedule B'!A223 -> 74 | B145: ='Shedule B'!C223 -> Providing & fixing chromium plated towel rod 16 mm dia. and 75 Cm in length including all accessories etc. complete ( As directed by Engineer incharge ) ( It No..49/Page No. 119) | C145: BD.V. | E145: As directed by Engineer in charge
A146: ='Shedule B'!A225 -> 75 | B146: ='Shedule B'!C225 -> Providing & fixing U.P.S.V. Soil / vent / waste pipe 75 mm dia.of approved make with standing min. pressure of 4 Kg. / Cm. Sq. from standard manufactres with necessary fixture and fittings such as bend, tees, single junction, double junction, slotted vent offsets on walls or in the ground including excavation, laying refilling the trench etc. complete. As directed by Engineer incharge (BDV - 36 C ) ( It No..32/Page No. 115) | C146: BD.V. | E146: As directed by Engineer in charge
A147: ='Shedule B'!A227 -> 76 | B147: ='Shedule B'!C227 -> Providing, laying & fixing C.P.V.C pipe 15 mm dia.on wall (with standing 4 Kg. to 6 Kg./ Cm. Sq. pressure) with fittings such as bend, tees, reducers, clamps etc. including necessary excavation trench filling etc. complete. As directed by Engineer incharge (BDV - 60 A ) ( It No..47/Page No. 118) | C147: BD.V.5 | D147: 551 | E147: As directed by Engineer in charge
A148: ='Shedule B'!A229 -> 77 | B148: ='Shedule B'!C229 -> Providing & fixing a set of 5 fire buckets of special quality 0.03 m diameter including painting lettering & providing M.S. stand, Iron hooks & locking arrangements & three coats of white zince paint for stand etc. complete. as per drawing. As directed by Engineer incharge ( It No..51/Page No. 131) | C148: -- | D148: -- | E148: As directed by Engineer in charge
A149: ='Shedule B'!A231 -> 78 | B149: ='Shedule B'!C231 -> Providing & fabricating cycle stand made up of M.S. Angle 50 x 50 x 6 mm & 16 mm diameter including cuting, joining, welding & prepring as per drawing including oil painting in three coats. As directed by Engineer incharge | C149: -- | D149: -- | E149: As directed by Engineer in charge
A150: ='Shedule B'!A233 -> 79 | B150: ='Shedule B'!C233 -> Providing and fixing collapsible steel gate in one/two leaves with hot rolled vertical channels of 18x9x3mm minimum size, crossings of M.S.flats of size 18x5mm Tor E secti on for runner of minimum 40x6mm size for flange, M.S.flat for top runner of minimum size 40x12mm with roller wheels confirming to grade F.G.150 fitted with snap headed rivets of minimum size 6mm max. spacing of vertical channels be 100mm enclosed gate position and clear space of 150mm between two sets of crossings with holdfasts, stoppers, spaces, handles, locking arrangement and one coat of red lead primer and oil painting etc. complete. (I.S. 10521 1983).(BDT.57) | C150: BD.T. 57 | D150: 511 | E150: As directed by Engineer in charge
A151: ='Shedule B'!A235 -> 80 | B151: ='Shedule B'!C235 -> Free Standing Table @ 1500Lx600Dx750HT Providing and fixing Table of Size 1500x600x750mm. Top: made from 25mm Prelaminated Particle board. All edges are covered by 2mm. Thk. PVC edge bands glued by hot melt glue applied by auto edge banding machine. Legs: C Shape made from CRCA Sheet with Powder Coat finish. Modesty panel: Made from 18mm bothside pre laminated particle boards. Al ledges are covered by 0.8mm PVC edge bands glued by hot melt glue applied by auto edge banding machine. KEYBOARD TRAY (WITHOUT MOUSE TRAY) :- Metal Powder Coated - Black Color, CPU TROLLEY :- Metal Powder Coated - Black Color, 3 DRAWER PEDESTAL UNIT having over all size 392Lx450Dx680Ht. mm. with central lock and key. Drawers and body are complete metal with powder coat finish, facia in 18 mm prelaminated particle board.(51.26/421) | C151: -- | D151: -- | E151: As directed by Engineer in charge
A152: ='Shedule B'!A237 -> 81 | B152: ='Shedule B'!C237 -> Providing & Arrangemnt of Mid Back, ECO CTS Mechanism, Fixed Armrest, Gaslift for Seat height adjustment, Standards- prongP/ Nylon Base with Fabric Upholstery (51.43/466). | C152: -- | D152: -- | E152: As directed by Engineer in charge
A153: ='Shedule B'!A239 -> 82 | B153: ='Shedule B'!C239 -> Providing and fixing Openable Steel Full Height Steel Storage of 750x450x2100Ht, with 4 adjustable shelves, Complete body & shutter made in 0.8 mm thick & Top in 2 mm thick CRCA, 4 Shutter to be mounted with the help of cup hinges, and 4 adjustable levelers, enitre storage in powder coated finish with 60 to 80 microns as as per drawing. | C153: -- | D153: -- | E153: As directed by Engineer in charge
B154: ='Shedule B'!B242 -> 
A155: ='Shedule B'!A243 -> 1A | B155: ='Shedule B'!C243 -> Excavation for roadway in earth, soil of all sorts, sand, gravel or soft murum including dressing section to the required grade, camber and side slopes and conveying the excavated materials with all lifts upto a lead of 50m. and spreading for embankment or stacking as directed. | C155: MORTH 301 | D155: -- | E155: As directed by Engineer in charge
A156: ='Shedule B'!A244 -> 1B | B156: ='Shedule B'!C244 -> Excavation for roadway in hard murum and boulder including dressing section to the required grade, camber and side slopes and conveying the excavated materials with all lifts upto a lead of 50m.and spreading for embankment or stacking as directed. | C156: MORTH 301 | D156: -- | E156: As directed by Engineer in charge
A157: ='Shedule B'!A245 -> 1C | B157: ='Shedule B'!C245 -> Excavation for roadway in soft rock, including dressing section to the required grade, camber and side slopes and conveying the excavated materials with all lifts upto a lead of 50m. and spreading or stacking as directed. | C157: MORTH 301 | D157: -- | E157: As directed by Engineer in charge
A158: ='Shedule B'!A246 -> 1D | B158: ='Shedule B'!C246 -> Excavation for roadway in hard rock by controlled blasting including dressing section to the required grade, camber and side slopes and conveying the excavated materials with all lifts upto a lead of 50m. and spreading for embankment or stocking as directed. | C158: MORTH 301 | D158: -- | E158: As directed by Engineer in charge
A159: ='Shedule B'!A247 -> 1E | B159: ='Shedule B'!C247 -> Providing soling using 23 cm trap metal in 15 cm. Layer including filling voids with Crushed sand/grit, ramming, watering etc. complete. | C159: Bd A. | D159: -- | E159: As directed by Engineer in charge
A160: ='Shedule B'!A248 -> 2 | B160: ='Shedule B'!C248 -> Supplying trap/granite/quartzite/gneiss stone metal of required size by bringing the boulders / Rubble at the road side breaking them to required gradation including conveying the boulders /Rubble and stacking the broken metal etc. complete . (Prior approval of sample stack of broken metal by the Ex. Engineer is necessary the date of approval will form part of the measurements) a) 60 mm Metal, By breaking Boulders (Hand broken). | C160: Rd.29 | D160: 205 | E160: As directed by Engineer in charge
A161: ='Shedule B'!A249 -> 3 | B161: ='Shedule B'!C249 -> Supplying trap/granite/quartzite/gneiss stone metal of required size by bringing the boulders / Rubble at the road side breaking them to required gradation including conveying the boulders /Rubble and stacking the broken metal etc. complete . (Prior approval of sample stack of broken metal by the Ex. Engineer is necessary the date of approval will form part of the measurements) a) 40 mm Metal, By breaking Boulders (Hand broken). | C161: Rd.29 | D161: 205 | E161: As directed by Engineer in charge
A162: ='Shedule B'!A250 -> 4 - A | B162: ='Shedule B'!C250 -> Supplying hard murum/ kankar at the road site, including conveying and stacking complete. | C162: Rd.23 | D162: 202 | E162: As directed by Engineer in charge
A163: ='Shedule B'!A251 -> 4 - B | B163: ='Shedule B'!C251 -> Supplying soft murum at the road site, including conveying and stacking complete. | C163: Rd.24 | D163: 203 | E163: As directed by Engineer in charge
A164: ='Shedule B'!A252 -> 5 - A | B164: ='Shedule B'!C252 -> Spreading hard murum/ soft murrum/ gravel or kankar for side width complete | C164: Rd.28 | D164: 205 | E164: As directed by Engineer in charge
A165: ='Shedule B'!A253 -> 5 - B | B165: ='Shedule B'!C253 -> Spreading soft murum/ soft murrum/ gravel or kankar for side width complete | C165: Rd.28 | D165: 205 | E165: As directed by Engineer in charge
A166: ='Shedule B'!A254 -> 6 | B166: ='Shedule B'!C254 -> Spreading 60 mm metal for road work including sectioOne Numberng etc complete as directed by Engineer in charge . | C166: Rd.29 | D166: 205 | E166: As directed by Engineer in charge
A167: ='Shedule B'!A255 -> 7 | B167: ='Shedule B'!C255 -> Spreading 40 mm metal for road work including sectioOne Numberng etc complete as directed by Engineer in charge . | C167: Rd.29 | D167: 205 | E167: As directed by Engineer in charge
A168: ='Shedule B'!A256 -> 8A | B168: ='Shedule B'!C256 -> Compacting the sub grade/gravel/oversize metal (200 mm loose) layers for all width with Power roller having weight 8 to 10 MT. including necessary, labour, materials and artificial watering complete. | C168: -- | D168: -- | E168: As directed by Engineer in charge
A169: ='Shedule B'!A257 -> 8B | B169: ='Shedule B'!C257 -> Compacting the sub grade/gravel/oversize metal (200 mm loose) layers for all width with Power roller having weight 8 to 10 MT. including necessary, labour, materials and artificial watering complete. | C169: -- | D169: -- | E169: As directed by Engineer in charge
A170: ='Shedule B'!A258 -> 9 | B170: ='Shedule B'!C258 -> Compacting the hard murum side widths including laying in layers on each side with vibratory roller including artificial watering etc.complete. | C170: Rd.38 | D170: 210 | E170: As directed by Engineer in charge
A171: ='Shedule B'!A259 -> 10 | B171: ='Shedule B'!C259 -> Providing and fixing trap/ granite/ quartzite/ gneiss guard stone/ indicator stones/ boundary stones of standard size and shape including fixing in block of fixing in M-15 R.C.C. 1:4:8 standard size with white washing etc.complete | C171: MORTH 807 | D171: 357 | E171: As directed by Engineer in charge
A172: ='Shedule B'!A260 -> 11A | B172: ='Shedule B'!C260 -> Excavation for foundation in earth, soil of all types, sand, gravel and soft murum, including removing the excavated material up to a distance of 50 m. beyond the building area and stacking and spreading as directed, dewatering, preparing the bed for the foundation and necessary back filling, ramming, watering including shoring and strutting etc. complete. (Lift upto 1.5 m.) By Mechanical Means | C172: Bd.A.1 | D172: 259 | E172: As directed by Engineer in charge
A173: ='Shedule B'!A261 -> 11 B | B173: ='Shedule B'!C261 -> Excavation for foundation in hard murum including removing the excavated material upto distance of 50 metres beyond the building area and stacking and spreading as directed, dewatering, preparing the bed for the foundation and necessary back filling, ramming, watering including shoring and strutting etc. complete. (Lift upto 1.50 m) By Mechanical Means | C173: Bd.A.2 | D173: 259 | E173: As directed by Engineer in charge
A174: ='Shedule B'!A262 -> 11C | B174: ='Shedule B'!C262 -> Excavation for foundation in hard murum and boulders including removing the excavated material up to a distance 50 metres, beyond the building area and stacking and spreading as directed, dewatering, preparing the bed for the foundation and necessary back filling, ramming, watering including shoring and strutting etc. complete. (Lift upto 1.5m.) By Mechanical Means | C174: Bd.A.3 | D174: 259 | E174: As directed by Engineer in charge
A175: ='Shedule B'!A263 -> 12 | B175: ='Shedule B'!C263 -> Providing and laying in situ / ready mix / ready mix M10 cement concrete of trap/ granite/ quartzite/ gneiss metal in foundation including necessary centering, formwork, bailing out water, compacting and curing etc. complete.(pan mixer) with natural /artifical sand) | C175: BR.5 & B.7 | D175: 105 & 38 | E175: As directed by Engineer in charge
A176: ='Shedule B'!A264 -> 13 | B176: ='Shedule B'!C264 -> Providing uncoursed rubble masonry of trap / granite / quartzite / gneiss stones in cement mortar 1:6 in foundation and plinth of inner walls / in plinth of external walls including bailing out water manually , striking joints on un exposed faces and watering etc.complete. | C176: Bd.H.1 | D176: 329 | E176: As directed by Engineer in charge
A177: ='Shedule B'!A265 -> 14 | B177: ='Shedule B'!C265 -> Providing and fixing in position TMT - FE - 500 bar reinforcement of various diameters for R.C.C. pile caps, footings, foundations, slabs, beams columns, caOne Numberpies, staircase, newels, chajjas, lintels pardis, copings, fins, arches etc. as per detailed designs, drawings and schedules. including cutting, bending, hooking the bars, binding with wires or tack welding and supporting as required complete. | C177: Bd.F.17 | D177: 306 | E177: As directed by Engineer in charge
A178: ='Shedule B'!A266 -> 15 | B178: ='Shedule B'!C266 -> Providing and laying Cast in situ/Ready Mix cement concrete M-30 of trap / granite /quartzite/ gneiss metal for R.C.C. beams and lintels as per detailed designs and drawings or as directed including steel centering, formwork, cover blocks, laying/pumping, compaction and roughening the surface if special finish is to be provided and curing etc. complete. (Excluding reinforcement and structural steel). With fine aggregate (Natural Sand / Crushed sand VSI Grade finely washed etc) | C178: Bd.F.6 & B.7 | D178: 300 & 38 | E178: As directed by Engineer in charge
A179: ='Shedule B'!A267 -> 16 | B179: ='Shedule B'!C267 -> Providing internal cement plaster 20mm thick in two coats in cement mortar 1:4 with cement slurry finish, to concrete, brick surface, in all positions including scaffolding and curing etc.complete. | C179: Bd.L.4 | D179: 369 | E179: As directed by Engineer in charge
A180: ='Shedule B'!A269 -> 18 | B180: ='Shedule B'!C269 -> Providing & laying C. C. pipe of NP2 class 600 mm dia metre in proper line, level & slope including providing & laying in position the coller in C. M. 1 : 2 etc. complete. | C180: CD7 | D180: 162 | E180: As directed by Engineer in charge
A181: ='Shedule B'!A270 -> 19 | B181: ='Shedule B'!C270 -> Supplynig & spreading Hard mumrum for cushioning of R C C pipe including watering rammi ng & leveling etc complete. | C181: -- | D181: -- | E181: As directed by Engineer in charge
A182: ='Shedule B'!A273 -> 22A | B182: ='Shedule B'!C273 -> Providing earth work in embankment with approved materials obtained from departmental land upto lead of 50m. including all lifts, laying in layers of 20cm. to 30cm. thickness breaking clods, dressing to the required lines, curves, grades & section, watering and compaction with vibratory roller to achieve One Numbert less than 97 % of standard proctor density etc. complete. (Material obtained from departmental Land) | C182: MORTH 305 | D182: -- | E182: As directed by Engineer in charge
A183: ='Shedule B'!A274 -> 22B | B183: ='Shedule B'!C274 -> Providing embankment with approved hard murum obtained from other sources including all leads & lifts, laying in layers of 20cm. to 30cm. thickness breaking clods, dressing to the required lines, curves, grades & section, watering and compaction with vibratory roller with V-Sat attachment to achieve One Numbert less than 97 % of standard proctor density etc. complete ( Material obtained from Other sources) | C183: MORTH 305 | D183: -- | E183: As directed by Engineer in charge
A184: ='Shedule B'!A275 -> 23 | B184: ='Shedule B'!C275 -> Conveying materials obtained from road cutting including all lifts, laying in layers of 20cm to 30cm. breaking clods, dressing to the required lines, curves, grades and section, watering and compacting to One Numbert less than 97% of standard Proctor density for a lead of over 50m. to 300m. inclusive from the site of excavation to the site of deposition as directed. | C184: Rd.M.18 | D184: 197 | E184: As directed by Engineer in charge
A185: ='Shedule B'!A276 -> 24 | B185: ='Shedule B'!C276 -> Conveying the materials obtained from excavation including all lifts, laying in layers, breaking clods, dressing to the required lines, curves, grades and section for all leads & lifts from the site of excavation to the site of deposition as directed. | C185: Rd.M.18 | D185: 197 | E185: As directed by Engineer in charge
A186: ='Shedule B'!A277 -> 25 | B186: ='Shedule B'!C277 -> 0 | C186: MORTH 505 | E186: As directed by Engineer in charge
B188: ='Shedule B'!B281:C281 -> 
A189: ='Shedule B'!A282 -> 1 | B189: ='Shedule B'!C282 -> Excavation for foundation in earth, soil of all types, sand, gravel and soft murum, including removing the excavated material up to a distance of 50 m. beyond the building area and stacking and spreading as directed, dewatering, preparing the bed for the foundation and necessary back filling, ramming, watering including shoring and strutting etc. complete. (Lift upto 1.5 m.) By Mechanical Means | C189: =C16 -> Bd.A.1 | E189: As directed by Engineer-in-charge.
A191: ='Shedule B'!A284 -> 2 | B191: ='Shedule B'!C284 -> Excavation for foundation in hard murum including removing the excavated material upto distance of 50 metres beyond the building area and stacking and spreading as directed, dewatering, preparing the bed for the foundation and necessary back filling, ramming, watering including shoring and strutting etc. complete. (Lift upto 1.50m) By Mechanical Means | C191: =C19 -> Bd.A.2 | E191: As directed by Engineer-in-charge.
A193: ='Shedule B'!A286 -> 3 | B193: ='Shedule B'!C286 -> Excavation for foundation in hard murum and boulders including removing the excavated material up to a distance 50 metres, beyond the building area and stacking and spreading as directed, dewatering,preparing the bed for the foundation and necessary back filling,ramming, watering including shoring and strutting etc. complete. (Lift upto 1.5m.) By Mechanical Means | C193: =C21 -> Bd.A.3 | E193: As directed by Engineer-in-charge.
A195: ='Shedule B'!A288 -> 4 | B195: ='Shedule B'!C288 -> Excavation for foundation in Soft rock and old cement or lime masonry foundations including removing the excavated material upto a distance of 50 metres beyond the building area and stacking as directed, including dewatering, preparing the bed for the foundation and necessary back filling with available earth /murum, ramming watering including shoring and strutting etc. complete (lift upto 1.5m) By Mechanical Means | C195: =C23 -> Bd.A.4 | E195: As directed by Engineer-in-charge.
A197: ='Shedule B'!A290 -> 5 | B197: ='Shedule B'!C290 -> Providing soling using 80mm size trap metal in15cm.layer including filling voids with Crushed sand/grit, ramming, watering etc. complete. | C197: =C69 -> Bd A. | E197: As directed by Engineer-in-charge.
A199: ='Shedule B'!A292 -> 6 | B199: ='Shedule B'!C292 -> Providing and filling in the foundation with sand of approved quality including watering, compacting etc.complete.(To be executed with prior approval of Superintending Engineer) | C199: Bd A | E199: As directed by Engineer-in-charge.
A201: ='Shedule B'!A294 -> 7 | B201: ='Shedule B'!C294 -> Providing and laying Cast in situ / Ready Mix cement concrete in M-10 of trap / granite/quartzite/gneiss metal for foundation and bedding including bailing out water, Steel centering, formwork, laying / pumping, compacting, roughening them if special finish is to be provided, finishing if required and curing complete, With fine aggregate (Natural Sand/Crusheds and VSI Grade finely washed etc) | C201: =C28 -> BR.5 & B.7 | E201: As directed by Engineer-in-charge.
A203: ='Shedule B'!A296 -> 8 | B203: ='Shedule B'!C296 -> Filling in plinth and floors with approved excavated materials approved by Engineer in charge in layers of 15cmto20cm including watering and compaction etc. complete. | C203: =C52 -> Bd.A.10 | E203: As directed by Engineer-in-charge.
A205: ='Shedule B'!A298 -> 9 | B205: ='Shedule B'!C298 -> Providing and fixing H.D.P container Syntex only 3 layer one piece moulded water tank made out of low density polythyler and built corrugation including of delivery up to destination hoisting and fixing of accessories such as inlet, outlet overflow of all tanks capacity above 1000 to 20,000 litres ( Syntex only ) | C205: … | E205: Syntex only & As directed by Engineer-in-charge.
A207: ='Shedule B'!A300 -> 10 | B207: ='Shedule B'!C300 -> Conveying the materials obtained from excavation (B C Soil) including laying in layers, breaking clods, dressing to the required lines, curves, grades and section for all leads & lifts from the site of excavation to the site of deposition away from | C207: =C184 -> Rd.M.18 | E207: As directed by Engineer-in-charge.
A209: ='Shedule B'!A302 -> 11 | B209: ='Shedule B'!C302 -> Conveying the materials obtained from excavation including laying in layers, breaking clods, dressing to the required lines, curves, grades and section for all leads & lifts from the site of excavation to the site of deposition aeay from 300 to 500 m | C209: =C207 -> Rd.M.18 | E209: As directed by Engineer-in-charge.
A211: ='Shedule B'!A304 -> 12 | B211: ='Shedule B'!C304 -> Providing and laying in trenches 25 mm dia. CPVC pipe including necessary excavation, fittings. Refilling trenches etc. complete. Including removing existing pipe line if necessary and conveying and stacking the same in PWD chowky or as directed etc. complete. | C211: BD.V. 5 | D211: 551 | E211: As directed by Engineer-in-charge.
A213: ='Shedule B'!A306 -> 13 | B213: ='Shedule B'!C306 -> Providing and laying in trenches 20 mm dai. CPVC pipe including necessary excavation, fittings. Refilling trenches etc. complete. Including removing existing pipe line if necessary and conveying and stacking the same in PWD chowky or as directed etc. complete. | C213: BD.V. 5 | D213: 551 | E213: As directed by Engineer-in-charge.
A215: ='Shedule B'!A308 -> 14 | B215: ='Shedule B'!C308 -> Providing and fixing screw down for 15 mm dia. wheeled stop tap of brass including necessary sockets/union nut complete). | C215: BD.V. 9 | D215: 555 | E215: As directed by Engineer-in-charge.
A217: ='Shedule B'!A310 -> 15 | B217: ='Shedule B'!C310 -> Providing and fixing screw down 15 mm dia. wheeled stop tap of brass including necessary sockets/union nut complete | C217: BD.V. 9 | D217: 555 | E217: As directed by Engineer-in-charge.
... 69 more rows

Sheet Shedule B Elect (hidden)
A1: MAHARASHTRA STATE WAREHOUSING CORPORATION
A2: ( A Govt. Public Sector Undertaking)
A3: 583/B, MARKET YARD, GULTEKADI, PUNE-411037
A5: =Recap!B6 -> NAME OF WORK :- CONSTRUCTION OF 1/2160 MT CAP PRE- ENGINEERED WH BLDG WITH ANCILLARY WORKS AT: NAGZARI DIST. LATUR
A7: SCHEDULE - 'B'
A9: Memorandum showing Items of work to be carried out by the contractor
A11: Item One Number. | B11: Quantity Estimated but may be more or less | C11: Items of work | D11: Estimated Rates | F11: Unit | G11: Total Amount in Rupees according to estimated quantity
D12: Rupees in Figures | E12: Rupees in Word
A13: 1 | B13: 2 | C13: 3 | D13: 4 | E13: 5 | F13: 6 | G13: 7
B15: =Recap!B16 -> S.W. II - Elecrification
A16: =EL!A14 -> 1 | B16: =EL!C14 -> 40 | C16: Supplying, erecting & terminating XLPE armoured cable 3 core 6 sq. mm. copper conductor continuous 5.48 sq. mm. (12 SWG) G.I. earth wire complete erected with glands & lugs, on wall/ trusses/ pole or laid in provided trench/ pipe as per specification no. CB-LT/CU | D16: =EL!J14 -> 281.4 | E16: Two Hundred Eighty One & Ps. Fourty Only | F16: One Running Meter | G16: =D16*B16 -> 11256 | H16: =NumberToWord(D16) -> Two Hundred Eighty One & Ps. Fourty Only
A17: =EL!A15 -> 2 | B17: =EL!C15 -> 20 | C17: Supplying, erecting & terminating XLPE armoured cable 3 core 10 sq. mm. copper conductor continuous 5.48 sq. mm. (12 SWG) G.I. earth wire complete erected with glands & lugs, on wall/ trusses/ pole or laid in provided trench/ pipe as per specification no. CB-LT/CU | D17: =EL!J15 -> 425.25 | E17: Four Hundred Twenty Five & Ps. Twenty Five Only | F17: One Running Meter | G17: 8505 | H17: Four Hundred Twenty Five & Ps. Twenty Five Only
A18: =EL!A16 -> 3-A | B18: =EL!C16 -> 15 | C18: Making trench of suitable width and depth in soft soil for laying provided LT cable up to and including 16 sq.mm complete as per specification no. CW-EXN-CTR | D18: =EL!J16 -> 150.15 | E18: One Hundred Fifty & Ps. Fifteen Only | F18: One Running Meter | G18: 2252.25 | H18: One Hundred Fifty & Ps. Fifteen Only
A19: =EL!A17 -> 3-B | B19: =EL!C17 -> 5 | C19: Making trench of suitable width and depth in hard murum / tar road for laying provided LT cable up to and including 16 sq. mm complete as per specification no. CW-EXN-CTR | D19: =EL!J17 -> 184.8 | E19: One Hundred Eighty Four & Ps. Eighty Only | F19: One Running Meter | G19: 924 | H19: One Hundred Eighty Four & Ps. Eighty Only
A20: =EL!A18 -> 4-A | B20: =EL!C18 -> 10 | C20: Supplying and erecting ISI mark GI pipe 75/80 mm dia. ‘B’ class at position with accessories complete. Specification no. CW PLB/GP. | D20: =EL!J18 -> 1087.8 | E20: One Thousand Eighty Seven & Ps. Eighty Only | F20: One Running Meter | G20: 10878 | H20: One Thousand Eighty Seven & Ps. Eighty Only
A21: =EL!A19 -> 4-B | B21: =EL!C19 -> 14 | C21: Supplying & erecting G.I. pipe ‘A’ class 25 mm dia. erected for enclosing XLPE armoured cable on wall/pole as per specification no. CB-CE | D21: =EL!J19 -> 194.25 | E21: One Hundred Ninety Four & Ps. Twenty Five Only | F21: One Running Meter | G21: 2719.5 | H21: One Hundred Ninety Four & Ps. Twenty Five Only
A22: =EL!A20 -> 5 | B22: =EL!C20 -> 14 | C22: Supplying & erecting Siemens type brass cable glands for 2 to 4 core 2.5 sq. mm. /2 to 4 core 4 sq. mm. /2 core 6 sq. mm. For XLPE armoured cable as per specification no. CB-GL | D22: =EL!J20 -> 54.6 | E22: Fifty Four & Ps. Sixty Only | F22: One Number | G22: 764.4 | H22: Fifty Four & Ps. Sixty Only
A23: =EL!A21 -> 6 | B23: =EL!C21 -> 5 | C23: Providing point wiring for street light with PVC unarmoured cable 1100Volt grade ISI mark 3 core 1.5 sqmm stranded / solid copper erected on wall with G. I. Saddle duly painted @ 0,25 m C/C rigidly grouted in the wall with the help of plated screw including 4” x 4” M. S. box 2 way with epoxy painting & inside 15 amp Nylon connector strip for street light connection etc. complete as directed by Engineer in charge. | D23: =EL!J21 -> 1083.9 | E23: One Thousand Eighty Three & Ps. Ninety Only | F23: One Number | G23: 5419.5 | H23: One Thousand Eighty Three & Ps. Ninety Only
A24: =EL!A22 -> 7 | B24: =EL!C22 -> 4 | C24: Supplying & erecting weatherproof powder coated distribution board 4 way with 2 x 6 Amp S. P. M. C. B. Industrial plug socket 10 A with top cover necessary connection etc complete with approved make. | D24: =EL!J22 -> 1279.95 | E24: One Thousand Two Hundred Seventy Nine & Ps. Ninety Five Only | F24: One Number | G24: 5119.8 | H24: One Thousand Two Hundred Seventy Nine & Ps. Ninety Five Only
A25: =EL!A23 -> 8 | B25: =EL!C23 -> 90 | C25: Supplying & erecting mains PVC unarmoured cable 1100Volt grade ISI mark 3 core / 2.5 sqmm stranded / solid copper complete erected on wall with duly painted G. I. Saddle @ 0.25 m C/C & rigidly grouted in the wall with the help of plated screws. | D25: =EL!J23 -> 109.4 | E25: One Hundred Nine & Ps. Fourty Only | F25: One Running Meter | G25: 9846 | H25: One Hundred Nine & Ps. Fourty Only
A26: =EL!A24 -> 9 | B26: =EL!C24 -> 3 | C26: Supplying, erecting & marking DPMCB 6 A to 32 A B- series (for lighting) in provided distribution board as per specification no. SWSWR/ MCB | D26: =EL!J24 -> 457.8 | E26: Four Hundred Fifty Seven & Ps. Eighty Only | F26: One Number | G26: 1373.4 | H26: Four Hundred Fifty Seven & Ps. Eighty Only
A27: =EL!A25 -> 10 | B27: =EL!C25 -> 1 | C27: Supplying shock proof type Hand Lamp with lamp holder, guarded glass and 10 m of 3 core PVC flexible cord with hand shield type 3 pin 6 amp plug top. | D27: =EL!J25 -> 1512 | E27: One Thousand Five Hundred Twelve Only | F27: One Number | G27: 1512 | H27: One Thousand Five Hundred Twelve Only
A28: =EL!A26 -> 11 | B28: =EL!C26 -> 3 | C28: Supplying and erecting LED street light fitting suitable for 20 to 25W, with PF > 0.95 class IP 65 and above housing of pressure die cast aluminium alloy and heat sink extruded aluminium complete as per specification No FG-ODF/FLS-2. | D28: =EL!J26 -> 2559.9 | E28: Two Thousand Five Hundred Fifty Nine & Ps. Ninety Only | F28: One Number | G28: 7679.7 | H28: Two Thousand Five Hundred Fifty Nine & Ps. Ninety Only
A29: =EL!A27 -> 12 | B29: =EL!C27 -> 1 | C29: Providing earthing with galvanized iron earth plate size 60 x 60 x 0.6 cm with funnel with a wire mesh for watering and brick masonry block C.l. cover complete with all materials, testing & recording the results as per specification no. EA-EP | D29: =EL!J27 -> 5416.95 | E29: Five Thousand Four Hundred Sixteen & Ps. Ninety Five Only | F29: One Number | G29: 5416.95 | H29: Five Thousand Four Hundred Sixteen & Ps. Ninety Five Only
A31: =EL!A28 -> 13 | B31: =EL!C28 -> 1 | C31: Supplying & erecting CRCA sheet metal one way enclosures suitable for DP MCB /TP MCB /FP MCB erected on angle iron/GI frame complete. | D31: =EL!J28 -> 358.05 | E31: Three Hundred Fifty Eight & Ps. Five Only | F31: One Number | G31: =D31*B31 -> 358.05 | H31: Three Hundred Fifty Eight & Ps. Five Only
A33: 14 | B33: =EL!C30 -> 7 | C33: Point wiring for light bell with 2-1.5 sq mm PVC insulated wire | D33: 409.5 | E33: Four Hundred Nine & Ps. Fifty Only | F33: One Number | G33: =D33*B33 -> 2866.5
A35: 15 | B35: 12 | C35: Point wiring for independent plug with 2 - 1.5 sq mm PVC insulated wire | D35: 462 | E35: Four Hundred Sixty Two Only | F35: One Number | G35: =D35*B35 -> 5544
A37: 16 | B37: 12 | C37: Point wiring with 2- 1.5 sq mm PVC insulated wire | D37: 409.5 | E37: Four Hundred Nine & Ps. Fifty Only | F37: One Number | G37: =D37*B37 -> 4914
A39: =EL!A32 -> 17 | B39: 6 | C39: S & F CFL lamps 11 W | D39: 229.95 | E39: Two Hundred Twenty Nine & Ps. Ninety Five Only | F39: One Number | G39: =D39*B39 -> 1379.7 | H39: Two Hundred Twenty Nine & Ps. Ninety Five Only
A41: 18 | B41: 2 | C41: S & E marine plywood 19 mm thick | D41: 1326.15 | E41: One Thousand Three Hundred Twenty Six & Ps. Fifteen Only | F41: sq mm | G41: =D41*B41 -> 2652.3
A46: 19 | B46: 2 | C46: P & F MS boxes of 16 SWG | D46: 2222.85 | E46: Two Thousand Two Hundred Twenty Two & Ps. Eighty Five Only | F46: sq mm | G46: =D46*B46 -> 4445.7
A49: 20 | B49: 4 | C49: Supplying & erecting ready to use Retrofit T 8 LED 18/20 | D49: 623.7 | E49: Six Hundred Twenty Three & Ps. Seventy Only | F49: One Number | G49: =D49*B49 -> 2494.8
A51: 21 | B51: 4 | C51: Supplying & erecting 48 " with step dimmer | D51: 2033.85 | E51: Two Thousand Thirty Three & Ps. Eighty Five Only | F51: One Number | G51: =D51*B51 -> 8135.4
A53: 22 | B53: 4 | C53: Supplying & erecting 4 pole insulator only switch version of MCB 40 Amp | D53: 620.55 | E53: Six Hundred Twenty & Ps. Fifty Five Only | F53: One Number | G53: =D53*B53 -> 2482.2
A56: 23 | B56: 1 | C56: Supplying & erecting 40 mm dia GI pipe 2.5 m length for earth plate | D56: 1311.45 | E56: One Thousand Three Hundred Eleven & Ps. Fourty Five Only | F56: One Number | G56: =D56*B56 -> 1311.45
A59: =EL!A39 -> 24 | B59: 1 | C59: Supplying and fixing wiremesh (Jali) cover suitable for fitting / fan or for any purpose, complete with necessary materials. The jali cover shall be made from good quality G.I. wire mesh size 25 x 25 (mm) and made up of 14 SWG G.I. wire with side / supporting MS strips of suitable size. | D59: 439.95 | E59: Four Hundred Thirty Nine & Ps. Ninety Five Only | F59: One Number | G59: =D59*B59 -> 439.95 | H59: Four Hundred Thirty Nine & Ps. Ninety Five Only
A60: 25 | B60: 2 | C60: S & E ding dong type call bell | D60: 129.15 | E60: One Hundred Twenty Nine & Ps. Fifteen Only | F60: One Number | G60: =D60*B60 -> 258.3
A61: =EL!A41 -> 26 | B61: =EL!C31 -> 7 | C61: Supplying & erecting 4"x4" epoxy coated 3 way junction box with 10 Amp. nylon connector strip as directed by Engineer-in-charge. | D61: 60 | E61: Sixty Only | F61: One Number | G61: =D61*B61 -> 420 | H61: Sixty Only
A62: =EL!A42 -> 27 | B62: =EL!C32 -> 4 | C62: Supplying and erecting steel cubular swaged pole 139.70x114.30x88.90 mm dia with 4.5 x3.65 x3.25 mm tk. ( 4.50 +1.75+1.75 ) mtr. Length respectively and total 8.00 mtr. Long with pole cap , base plate in provided foundatin ( weight 101.00 kg ) | D62: 8105 | E62: Eight Thousand One Hundred Five Only | F62: One Number | G62: =D62*B62 -> 32420
B63: In words | C63: Two Lakh Eighty Five Thousand Five Hundred Fifty One & Ps. Twenty Only | F63: Total | G63: =SUM(G16:G62) -> 143788.85

Sheet Shedule C Elect (hidden)
A1: MAHARASHTRA STATE WAREHOUSING CORPORATION
A2: ( A Govt. Public Sector Undertaking)
A3: 583/B, MARKET YARD, GULTEKADI, PUNE-411037
A4: ='Shedule B'!A5:G5 -> NAME OF WORK :- CONSTRUCTION OF 1/2160 MT CAP PRE- ENGINEERED WH BLDG WITH ANCILLARY WORKS AT: NAGZARI DIST. LATUR
A5: SCHEDULE - 'C'
A6: ITEM WISE STANDARD SPECIFICATIONS
A7: Specifications for the items of work to be carried out by the Contractor as given below
A10: Item No. | B10: Name of Work | C10: Standard Specifications as per Specification Book published by Govt. of Maharashtra Volume I-1979 and Volume -II 1981 Edition
C11: Specification No. | D11: Page No. | E11: Additional specification if any
A12: 1 | B12: 2 | C12: 3 | D12: 4 | E12: 5
B13: ='Shedule B'!#REF! -> 
A14: ='Shedule B'!#REF! ->  | B14: ='Shedule B'!#REF! ->  | C14: CB-LT/CU | D14: 113 | E14: As per enclosed specification sheet.
A15: ='Shedule B'!#REF! ->  | B15: ='Shedule B'!#REF! ->  | C15: CB-LT/CU | D15: 113 | E15: As per enclosed specification sheet.
A16: ='Shedule B'!#REF! ->  | B16: ='Shedule B'!#REF! ->  | C16: CW-EXN-CTR | D16: 207 | E16: As per enclosed specification sheet.
A17: ='Shedule B'!#REF! ->  | B17: ='Shedule B'!#REF! ->  | C17: CW-EXN-CTR | D17: 207 | E17: As per enclosed specification sheet.
A18: ='Shedule B'!#REF! ->  | B18: ='Shedule B'!#REF! ->  | C18: -- | D18: -- | E18: As directed by Engineer in charge
A19: ='Shedule B'!#REF! ->  | B19: ='Shedule B'!#REF! ->  | C19: -- | D19: -- | E19: As directed by Engineer in charge
A20: ='Shedule B'!#REF! ->  | B20: ='Shedule B'!#REF! ->  | C20: CB-GL | D20: 119 | E20: As per enclosed specification sheet.
A21: ='Shedule B'!#REF! ->  | B21: ='Shedule B'!#REF! ->  | C21: -- | D21: -- | E21: As directed by Engineer in charge
A22: ='Shedule B'!#REF! ->  | B22: ='Shedule B'!#REF! ->  | C22: SW-SWR/MCB | D22: -- | E22: As directed by Engineer in charge
A23: ='Shedule B'!#REF! ->  | B23: ='Shedule B'!#REF! ->  | C23: -- | D23: -- | E23: As directed by Engineer in charge
A24: ='Shedule B'!#REF! ->  | B24: ='Shedule B'!#REF! ->  | C24: SW-SWR/MCB | D24: -- | E24: As per enclosed specification sheet.
A25: ='Shedule B'!#REF! ->  | B25: ='Shedule B'!#REF! ->  | C25: -- | D25: -- | E25: As directed by Engineer in charge
A26: ='Shedule B'!#REF! ->  | B26: ='Shedule B'!#REF! ->  | C26: FG-ODF/LED | D26: 58 | E26: As per enclosed specification sheet.
A27: ='Shedule B'!#REF! ->  | B27: ='Shedule B'!#REF! ->  | C27: EA-EP | D27: 141 | E27: As per enclosed specification sheet.
A28: ='Shedule B'!#REF! ->  | B28: ='Shedule B'!#REF! ->  | C28: SW-SWR/MCBDB | D28: 103 | E28: As per enclosed specification sheet.
A29: 14 | B29: ='Shedule B Elect'!C33 -> Point wiring for light bell with 2-1.5 sq mm PVC insulated wire | C29: WG-MA/PC | D29: 9 | E29: As per enclosed specification sheet.
A30: 15 | B30: ='Shedule B Elect'!C35 -> Point wiring for independent plug with 2 - 1.5 sq mm PVC insulated wire | C30: WG/PW/SW | D30: 17 | E30: As per enclosed specification sheet.
A31: 16 | B31: ='Shedule B Elect'!C37 -> Point wiring with 2- 1.5 sq mm PVC insulated wire | C31: WG/PW/SW | D31: 17 | E31: As per enclosed specification sheet.
A32: ='Shedule B'!#REF! ->  | B32: ='Shedule B Elect'!C39 -> S & F CFL lamps 11 W | C32: CFL | D32: 53 | E32: As per enclosed specification sheet.
A33: 18 | B33: ='Shedule B Elect'!C41 -> S & E marine plywood 19 mm thick | C33: -- | D33: -- | E33: As directed by Engineer in charge
A34: 19 | B34: ='Shedule B Elect'!C46 -> P & F MS boxes of 16 SWG | C34: -- | D34: -- | E34: As directed by Engineer in charge
A35: 20 | B35: ='Shedule B Elect'!C49 -> Supplying & erecting ready to use Retrofit T 8 LED 18/20 | C35: -- | D35: -- | E35: As directed by Engineer in charge
A36: 21 | B36: ='Shedule B Elect'!C51 -> Supplying & erecting 48 " with step dimmer | C36: FG-FN/CF | D36: 66 | E36: As per enclosed specification sheet.
A37: 22 | B37: ='Shedule B Elect'!C53 -> Supplying & erecting 4 pole insulator only switch version of MCB 40 Amp | C37: SW-SWR/MCB | D37: 102 | E37: As per enclosed specification sheet.
A38: 23 | B38: ='Shedule B Elect'!C56 -> Supplying & erecting 40 mm dia GI pipe 2.5 m length for earth plate | C38: EA-EP | D38: 141 | E38: As per enclosed specification sheet.
A39: ='Shedule B'!#REF! ->  | B39: ='Shedule B'!#REF! ->  | C39: -- | D39: -- | E39: As directed by Engineer in charge
A40: ='Shedule B'!#REF! ->  | B40: ='Shedule B'!#REF! ->  | C40: -- | D40: -- | E40: As directed by Engineer in charge
A41: 27 | B41: ='Shedule B Elect'!C62 -> Supplying and erecting steel cubular swaged pole 139.70x114.30x88.90 mm dia with 4.5 x3.65 x3.25 mm tk. ( 4.50 +1.75+1.75 ) mtr. Length respectively and total 8.00 mtr. Long with pole cap , base plate in provided foundatin ( weight 101.00 kg ) | C41: OH-PL/STP | D41: 125 | E41: As per enclosed specification sheet.

Sheet Shedule B (hidden)
A1: MAHARASHTRA STATE WAREHOUSING CORPORATION
A2: ( A Govt. Public Sector Undertaking)
A3: 583/B, MARKET YARD, GULTEKADI, PUNE-411037
A5: =Recap!B6 -> NAME OF WORK :- CONSTRUCTION OF 1/2160 MT CAP PRE- ENGINEERED WH BLDG WITH ANCILLARY WORKS AT: NAGZARI DIST. LATUR
A7: SCHEDULE - 'B'
A9: Memorandum showing Items of work to be carried out by the contractor
A11: Item One Number. | B11: Quantity Estimated but may be more or less | C11: Items of work | D11: Estimated Rates | F11: Unit | G11: Total Amount in Rupees according to estimated quantity
D12: Rupees in Figures | E12: Rupees in Word
A13: 1 | B13: 2 | C13: 3 | D13: 4 | E13: 5 | F13: 6 | G13: 7
B14: =Recap!B14 -> S.W. I - W.H.BUILDING 1/2160M T
A15: ='DSR-Sheet I '!B65 -> 1' | B15: ='DSR-Sheet I '!D65 -> 0 | C15: Labour Charges for removing grass, thorney shurbs, subabhul & alike grass in plot making the ground clean by showel & phawaras etc. complete. | D15: ='DSR-Sheet I '!O65 -> 2 | E15: =NumberToWord(D15) -> Two Only | F15: One Square Meter | G15: =ROUND(B15*D15,0) -> 0
A16: ='DSR-Sheet I '!B66 -> 1" | B16: ='DSR-Sheet I '!D66 -> 0 | C16: Cutting down trees including trunks and branches with girths above 30cm to 60cm and stacking the materials neatly with all lifts and lead of 1000m as directed and earth filling in the depression / pit if any. | D16: ='DSR-Sheet I '!O66 -> 411 | E16: =NumberToWord(D16) -> Four Hundred Eleven Only | F16: One Number | G16: =ROUND(B16*D16,0) -> 0
A17: ='DSR-Sheet I '!B67 -> 1-A | B17: ='DSR-Sheet I '!D67 -> 265 | C17: Excavation for foundation in earth, soil of all types, sand, gravel and soft murum, including removing the excavated material up to a distance of 50 m. beyond the building area and stacking and spreading as directed, dewatering, preparing the bed for the foundation and necessary back filling, ramming, watering including shoring and strutting etc. complete. (Lift upto 1.5 m.) By Mechanical Means | D17: ='DSR-Sheet I '!O67 -> 157 | E17: =NumberToWord(D17) -> One Hundred Fifty Seven Only | F17: One Cubic Meter | G17: 41605
A18: ='DSR-Sheet I '!B68 -> 1-A' | B18: ='DSR-Sheet I '!D68 -> 1 | C18: Excavation for foundation in earth, soils of all types, sand,gravel and soft murum, including removing the excavated material upto a distance of 50 metres beyond the building area and stacking and spreading as directed, dewatering, preparing the bed for the foundation and necessary back filling, ramming, watering including shoring and strutting etc. complete. (Lift from 1.5m to 3.0m) By Mechanical Means | D18: ='DSR-Sheet I '!O68 -> 196 | E18: One Hundred Ninety Six Only | F18: One Cubic Meter | G18: 196
A19: ='DSR-Sheet I '!B69 -> (1-A") | B19: ='DSR-Sheet I '!D69 -> 0 | C19: Excavation for foundation in earth, soils of all types, sand,gravel and soft murum, including removing the excavated material upto a distance of 50 metres beyond the building area and stacking and spreading as directed, dewatering, preparing the bed for the foundation and necessary back filling, ramming, watering including shoring and strutting etc. complete. (Lift from 3m to 4.5 m) By Mechanical Means | D19: ='DSR-Sheet I '!O69 -> 0 | E19: Only | F19: One Cubic Meter | G19: 0
A20: ='DSR-Sheet I '!B70 -> 1-B | B20: ='DSR-Sheet I '!D70 -> 44 | C20: Excavation for foundation in hard murum including removing the excavated material upto distance of 50 metres beyond the building area and stacking and spreading as directed dewatering, preparing the bed for the foundation and necessary back filling, ramming, watering including shoring and strutting etc. complete. (Lift upto 1.50 m) By Mechanical Means | D20: ='DSR-Sheet I '!O70 -> 172 | E20: One Hundred Seventy Two Only | F20: One Cubic Meter | G20: 7568
A21: ='DSR-Sheet I '!B71 -> 1-B' | B21: ='DSR-Sheet I '!D71 -> 0 | C21: Excavation for foundation in Hard murum including removing the excavated material upto a distance of 50 metres beyond the building area and stacking and spreading as directed, dewatering, preparing the bed for the foundation and necessary back filling, ramming, watering including shoring and strutting etc. complete. (Lift from 1.5 to 3.0m.) By Mechanical Means | D21: ='DSR-Sheet I '!O71 -> 215 | E21: Two Hundred Fifteen Only | F21: One Cubic Meter | G21: 0
A22: ='DSR-Sheet I '!B72 -> 1-C | B22: ='DSR-Sheet I '!D72 -> 0 | C22: Excavation for foundation in hard murum and boulders including removing the excavated material up to a distance 50 metres, beyond the building area and stacking and spreading as directed, dewatering, preparing the bed for the foundation and necessary back filling, ramming, watering including shoring and strutting etc. complete. (Lift upto 1.5m.) By Mechanical Means | D22: ='DSR-Sheet I '!O72 -> 191 | E22: One Hundred Ninety One Only | F22: One Cubic Meter | G22: 0
A23: ='DSR-Sheet I '!B73 -> 1-C' | B23: ='DSR-Sheet I '!D73 -> 0 | C23: Excavation for foundation in Hard murum and boulders including removing the excavated material upto a distance of 50 metres, beyond the building area and stacking and spreading as directed, dewatering, preparing the bed for the foundation and necessary back filling, ramming, watering including shoring and strutting etc. complete. (Lift from 1.5 m to 3.0 m.) By Mechanical Means | D23: ='DSR-Sheet I '!O73 -> 236 | E23: Two Hundred Thirty Six Only | F23: One Cubic Meter | G23: 0
A24: ='DSR-Sheet I '!B74 -> 1-D | B24: ='DSR-Sheet I '!D74 -> 0 | C24: Excavation for foundation in Soft rock and old cement or lime masonry foundations including removing the excavated material upto a distance of 50 metres beyond the building area and stacking as directed, including dewatering, preparing the bed for the foundation and necessary back filling with available earth /murum, ramming, watering including shoring and strutting etc. complete (lift upto 1.5m) By Mechanical Means | D24: ='DSR-Sheet I '!O74 -> 329 | E24: Three Hundred Twenty Nine Only | F24: One Cubic Meter | G24: 0
A25: ='DSR-Sheet I '!B75 -> 1-E | B25: ='DSR-Sheet I '!D75 -> 0 | C25: Excavation for foundation in Hard rock by blasting including trimming and leveling the bed by chiseling where necessary and removing the excavated material and stacking it in measurable heaps within a distance of 50 metres from the building area including dewatering and back filling with available earth/murum, watering, ramming, etc. complete. (Lift upto 1.5m) By Mechanical Means | D25: ='DSR-Sheet I '!O75 -> 670 | E25: Six Hundred Seventy Only | F25: One Cubic Meter | G25: 0
A26: ='DSR-Sheet I '!B77 -> 1-G | B26: ='DSR-Sheet I '!D77 -> 0 | C26: Excavation for roadway in earth, soil of all sorts, sand, gravel or soft murum including dressing section to the required grade, camber and side slopes and conveying the excavated materials with all lifts upto a lead of 50m. and spreading for embankment or stacking as directed. | D26: ='DSR-Sheet I '!O77 -> 73 | E26: Seventy Three Only | F26: One Cubic Meter | G26: 0
A27: ='DSR-Sheet I '!B78 -> 1 - H | B27: ='DSR-Sheet I '!D78 -> 0 | C27: Excavation for roadway in hard murum and boulder including dressing section to the required grade, camber and side slopes and conveying the excavated materials with all lifts upto a lead of 50m.and spreading for embankment or stacking as directed. | D27: ='DSR-Sheet I '!O78 -> 84 | E27: Eighty Four Only | F27: One Cubic Meter | G27: 0
A28: ='DSR-Sheet I '!B79 -> 1-I | B28: ='DSR-Sheet I '!D79 -> 0 | C28: Providing and fixing 25mm diameter steel anchor dowel in hard rock including drilling hole of 32 mm diameter up to 0.75 mtrs depth, placing the dowel in position and effectively grouting the hole with CM 1:1 proportion etc. complete. | D28: ='DSR-Sheet I '!O79 -> 403 | E28: Four Hundred Three Only | F28: One Number | G28: 0
A29: ='DSR-Sheet I '!B80 -> 2 | B29: ='DSR-Sheet I '!D80 -> 100 | C29: Providing and laying in situ / ready mix / ready mix M10 cement concrete of trap/ granite/ quartzite/ gneiss metal in foundation including necessary centering, formwork, bailing out water, compacting and curing etc. complete. (pan mixer) with natural /artifical sand) | D29: ='DSR-Sheet I '!O80 -> 5341.48 | E29: Five Thousand Three Hundred Fourty One & Ps. Fourty Eight Only | F29: One Cubic Meter | G29: 534148
A30: ='DSR-Sheet I '!B81 -> 3 | B30: ='DSR-Sheet I '!D81 -> 0 | C30: Providing uncoursed rubble masonry of trap / granite / quartzite / gneiss stones in cement mortar 1:6 in foundation and plinth of inner walls / in plinth of external walls including bailing out water manually , striking joints on un exposed faces and watering etc.complete. | D30: ='DSR-Sheet I '!O81 -> 4972.13 | E30: Four Thousand Nine Hundred Seventy Two & Ps. Thirteen Only | F30: One Cubic Meter | G30: 0
A31: ='DSR-Sheet I '!B82 -> 4 | B31: ='DSR-Sheet I '!D82 -> 28 | C31: Providing second class Burnt Brick masonry with conventional/ I.S. type bricks in cement mortar 1:6 in foundations and plinth of inner walls/ in plinth external walls including bailing out water manually , striking joints on unexposed faces, raking out joints on exposed faces and watering etc. Complete. | D31: ='DSR-Sheet I '!O82 -> 6389.8 | E31: Six Thousand Three Hundred Eighty Nine & Ps. Eighty Only | F31: One Cubic Meter | G31: 178914
A32: ='DSR-Sheet I '!B83 -> 5 | B32: ='DSR-Sheet I '!D83 -> 14.72 | C32: Providing and fixing in position TMT - FE - 500 bar reinforcement of various diameters for R.C.C. pile caps, footings, foundations, slabs, beams columns, caOne Numberpies, staircase, newels, chajjas, lintels pardis, copings, fins, arches etc. as per detailed designs, drawings and schedules. including cutting, bending, hooking the bars, binding with wires or tack welding and supporting as required complete. | D32: ='DSR-Sheet I '!O83 -> 62581 | E32: Sixty Two Thousand Five Hundred Eighty One Only | F32: One Metric Tonne | G32: 921192
A33: ='DSR-Sheet I '!B84 -> 6 | B33: ='DSR-Sheet I '!D84 -> 19 | C33: Providing and laying in situ /Ready Mix cement concrete M-30 of trap / granite /quartzite/ gneiss metal for R.C.C. work in foundations like raft, strip foundations, grillage and footings of R.C.C. columns and steel stanchions etc. including bailing out water, Steel centering formwork, laying/pumping cover blocks, compaction and curing roughening the surface if special finish is to be provided (Excluding reinforcement and structural steel) etc. complete. With fine aggregate (Natural Sand / Crushed sand VSI Grade finely washed etc) | D33: ='DSR-Sheet I '!O84 -> 6220.31 | E33: Six Thousand Two Hundred Twenty & Ps. Thirty One Only | F33: One Cubic Meter | G33: 118186
A34: ='DSR-Sheet I '!B85 -> 7 | B34: ='DSR-Sheet I '!D85 -> 33 | C34: Providing and laying Cast in situ/Ready Mix cement concrete M-30 of trap / granite /quartzite/ gneiss metal for R.C.C. columns as per detailed designs and drawing or as directed including steel centering, formwork, cover blocks, laying/pumping, compaction finishing the formed surfaces with cement mortar 1:3 of sufficient minimum thickness to give a smooth and even surface or roughening if special finish is to be provided and curing etc. complete,(Excluding reinforcement and structural steel). With fine aggregate (Natural Sand / Crushed sand VSI Grade finely washed etc) | D34: ='DSR-Sheet I '!O85 -> 11490.91 | E34: Eleven Thousand Four Hundred Ninety & Ps. Ninety One Only | F34: One Cubic Meter | G34: 379200
A35: ='DSR-Sheet I '!B86 -> 8 | B35: ='DSR-Sheet I '!D86 -> 59 | C35: Providing and laying Cast in situ/Ready Mix cement concrete M-30 of trap / granite /quartzite/ gneiss metal for R.C.C. beams and lintels as per detailed designs and drawings or as directed including steel centering, formwork, cover blocks, laying/pumping, compaction and roughening the surface if special finish is to be provided and curing etc. complete. (Excluding reinforcement and structural steel) etc. complete. With fine aggregate (Natural Sand / Crushed sand VSI Grade finely washed etc) | D35: ='DSR-Sheet I '!O86 -> 10214.11 | E35: Ten Thousand Two Hundred Fouteen & Ps. Eleven Only | F35: One Cubic Meter | G35: 602632
A36: ='DSR-Sheet I '!B87 -> 9 | B36: ='DSR-Sheet I '!D87 -> 13 | C36: Providing and laying Cast in situ/Ready Mix cement concrete M-30 of trap/ granite / quartzite/ gneiss metal for R.C.C. slabs and landings as per detailed designs and drawings including steel centering, formwork, cover blocks, laying/pumping, compaction finishing the formed surfaces with cement mortar 1:3 of sufficient minimum thickness to give a smooth and even surface or roughening if special finish is to be provided and curing etc. complete. (Excluding reinforcement and structural steel). With fine aggregate (Natural Sand / Crushed sand VSI Grade finely washed etc) | D36: ='DSR-Sheet I '!O87 -> 12238.56 | E36: Twelve Thousand Two Hundred Thirty Eight & Ps. Fifty Six Only | F36: One Cubic Meter | G36: 159101
A37: ='DSR-Sheet I '!B88 -> 10 | B37: ='DSR-Sheet I '!D88 -> 4 | C37: Providing and laying Cast in situ/Ready Mix cement concrete M-30 of trap/ granite/ quartzite/ gneiss metal for R.C.C. chajja as per detailed design and drawings including steel centering, formwork, cover blocks compacting , curing , finishing and roughening the surface if special finish is to be provided and curing complete. (Excluding reinforcement and structural steel). With fine aggregate (Natural Sand / Crushed sand VSI Grade finely washed etc) | D37: ='DSR-Sheet I '!O88 -> 11442.46 | E37: Eleven Thousand Four Hundred Fourty Two & Ps. Fourty Six Only | F37: One Cubic Meter | G37: 45770
A38: ='DSR-Sheet I '!B89 -> 11 | B38: ='DSR-Sheet I '!D89 -> 144 | C38: Providing second class Burnt Brick masonry with conventional/ I.S. type bricks in cement mortar 1:6 in superstructure including striking joints, raking out joints, watering and scaffolding etc. Complete | D38: ='DSR-Sheet I '!O89 -> 6389.8 | E38: Six Thousand Three Hundred Eighty Nine & Ps. Eighty Only | F38: One Cubic Meter | G38: 920131
A39: ='DSR-Sheet I '!B90 -> 12 | B39: ='DSR-Sheet I '!D90 -> 0 | C39: Providing and laying Cast in situ/Ready Mix cement concrete M-15 of trap/ granite/quartzite/gneiss metal for coping to plinth or parapet, moulded or chamfered as per drawing or as directed including steel centering, plywood/ steel formwork compacting, roughening them if special finish is to be provided, finishing uneven and honeycombed surface and curing etc. complete. The Cement Mortar 1:3 plaster is considered for rendering uneven and honeycombed surface only. Newly laid concrete shall be covered by gunny bag, plastic, tarpaulin etc. (Wooden centering will One Numbert be allowed.) With fine aggregate (Natural Sand / Crushed sand VSI Grade finely washed etc) | D39: ='DSR-Sheet I '!O90 -> 5845.61 | E39: Five Thousand Eight Hundred Fourty Five & Ps. Sixty One Only | F39: One Cubic Meter | G39: 0
A40: ='DSR-Sheet I '!B91 -> 13A | B40: ='DSR-Sheet I '!D91 -> 902 | C40: Providing internal cement plaster 20mm thick in two coats in cement mortar 1:4 with neeru finish, to concrete, brick surface, in all positions including scaffolding and curing etc.complete. | D40: ='DSR-Sheet I '!O91 -> 411.91 | E40: Four Hundred Eleven & Ps. Ninety One Only | F40: One Square Meter | G40: 371543
A41: ='DSR-Sheet I '!B92 -> 13B | B41: ='DSR-Sheet I '!D92 -> 60 | C41: Providing internal cement plaster 20mm thick in two coats in cement mortar 1:4 with cement slurry finish, to concrete, brick surface, in all positions including scaffolding and curing etc.complete. | D41: ='DSR-Sheet I '!O92 -> 411.91 | E41: Four Hundred Eleven & Ps. Ninety One Only | F41: One Square Meter | G41: 24715
A42: ='DSR-Sheet I '!B93 -> 13C | B42: ='DSR-Sheet I '!D93 -> 1080 | C42: Providing internal cement plaster 20mm thick in two coats in cement mortar 1:4 with cement slurry finish, to concrete, brick surface, in all positions including scaffolding and curing etc.complete. | D42: ='DSR-Sheet I '!O93 -> 417.91 | E42: Four Hundred Seventeen & Ps. Ninety One Only | F42: One Square Meter | G42: 451343
A43: ='DSR-Sheet I '!B94 -> 13D | B43: ='DSR-Sheet I '!D94 -> 0 | C43: Providing internal cement plaster 20mm thick in two coats in cement mortar 1:4 with cement slurry finish, to concrete, brick surface, in all positions including scaffolding and curing etc.complete. | D43: ='DSR-Sheet I '!O94 -> 474.91 | E43: Four Hundred Seventy Four & Ps. Ninety One Only | F43: One Square Meter | G43: 0
A44: ='DSR-Sheet I '!B95 -> 13E | B44: ='DSR-Sheet I '!D95 -> 0 | C44: Providing and applying gypsum plaster (with Gypsum material of Gypsum India /Mega Sign or equivalent make) with finishing with gypsum material in 10 to 13 millimeter thickness to newly brick surface (Excluding rough cast plaster) in all position including preparing and Finishing the surface scaffolding etc. complete. | D44: ='DSR-Sheet I '!O95 -> 536 | E44: Five Hundred Thirty Six Only | F44: One Square Meter | G44: 0
A45: ='DSR-Sheet I '!B96 -> 14 | B45: ='DSR-Sheet I '!D96 -> 902 | C45: Providing and applying white-wash in three coats on old / new plastered or masonry surfaces and asbestos cement sheets including scaffolding and preparing the surface by brushing and brooming down etc. complete. | D45: ='DSR-Sheet I '!O96 -> 12.6 | E45: Twelve & Ps. Sixty Only | F45: One Square Meter | G45: 11365
A46: ='DSR-Sheet I '!B97 -> 15 | B46: ='DSR-Sheet I '!D97 -> 1080 | C46: Providing and applying three coats of exterior acraylic emulsion paint confirming to corresponding I.S. of approved manufacture and of approved colour to the plastered surfaces including cleaning, preparing the plaster surface, applying primer coat, scaffolding if necessary , and watering the surface for two days etc complete. | D46: ='DSR-Sheet I '!O97 -> 212 | E46: Two Hundred Twelve Only | F46: One Square Meter | G46: 228960
A47: ='DSR-Sheet I '!B98 -> 16 | B47: ='DSR-Sheet I '!D98 -> 35 | C47: Providing and applying three coats (exterior quality) of flat oil paint of approved colour and shade to the plastered surface in buildings and workshops including scaffolding if necessary, cleaning the surface and preparing surface etc. complete. (including primer coat) | D47: ='DSR-Sheet I '!O98 -> 73 | E47: Seventy Three Only | F47: One Square Meter | G47: 2555
A48: ='DSR-Sheet I '!B99 -> 17 | B48: ='DSR-Sheet I '!D99 -> 20 | C48: Providing sills of polished Kota stone 25 mm to 30mm thick, on a bed of 1:4 cement mortar including cement float, filling joints with slurry, curing polishing and cleaning etc. complete. | D48: ='DSR-Sheet I '!O99 -> 1080 | E48: One Thousand Eighty Only | F48: One Square Meter | G48: 21600
A49: ='DSR-Sheet I '!B100 -> 18 | B49: ='DSR-Sheet I '!D100 -> 51 | C49: Providing and fixing in position aluminium openable ventilators as per detailed drawing and as directed by Engineer in charge with all necessary alluminium sections with powder coating including necessary fixtures and fastening with 5 mm thick float glass etc. complete. ( Note While arriving at the rate of item of item weight at 6.90 kg/Sqm is considered for only alummium ventilators ) and with G.I. wiremesh of 18 Gauge, 6 mm square mesh fixed to outside the frame of ventilator and grill of 12 mm sq. bars in vertical directions at 10 cms c/c fixed to outside surface of the frame and approved quality and type fixtures, fittings including red oxide & oilpainting three coats.As per detailed drawing and as directed. | D49: ='DSR-Sheet I '!O100 -> 6038.04 | E49: Six Thousand Thirty Eight & Ps. Four Only | F49: One Square Meter | G49: 307940
A50: ='DSR-Sheet I '!B101 -> 19A | B50: ='DSR-Sheet I '!D101 -> 0 | C50: Providing & fixing steel rolling shutter fabricated from 20 gauge steel laths with side guides, bottom rails, brackets of 10 G.M.S. sheet door suspension shaft of 50 mm dia, rolling springs of 45 cm length, locking arrangements with not less than 6mm thick strip and central lock as per specifications, housing box prepared out of 20 G sheets at the top, handles prepared out of 6mm thick flats 4 nos, holdfast patti 6 nos,for each side guide with 12 concrete nails / fasterner, including applying three coats of oilpaint of approved colour & shade etc. complete | D50: ='DSR-Sheet I '!O101 -> 4294.1 | E50: Four Thousand Two Hundred Ninety Four & Ps. Ten Only | F50: One Square Meter | G50: 0
A51: ='DSR-Sheet I '!B102 -> 19B | B51: ='DSR-Sheet I '!D102 -> 0 | C51: Providing & fixing steel rolling Grill shutter fabricated from 20 gauge steel laths with side guides, bottom rails, brackets of 10 G.M.S. sheet door suspension shaft, rolling springs, locking arrangements with not less than 6mm thick strip and central lock as per specifications, housing box prepared out of 20 G sheets at the top, handles prepared out of 6mm thick flats 4 nos, holdfast patti 6 nos,for each side guide with 12 concrete nails / fasterner, including applying three coats of oilpaint of approved colour & shade etc. complete | D51: ='DSR-Sheet I '!O102 -> 3146.67 | E51: Three Thousand One Hundred Fourty Six & Ps. Sixty Seven Only | F51: One Square Meter | G51: 0
A52: ='DSR-Sheet I '!B103 -> 19C | B52: ='DSR-Sheet I '!D103 -> 0 | C52: Providing & fixing mechanical gear steel rolling shutter fabricated from 20 gauge steel laths with side guides, bottom rails, brackets of 10 G.M.S. sheet door suspension shaft of 50 mm dia, rolling springs of 45 cm length, locking arrangements with not less than 6mm thick strip and central lock as per specifications, housing box prepared out of 20 G sheets at the top, handles prepared out of 6mm thick flats 4 nos, holdfast patti 6 nos,for each side guide with 12 concrete nails / fasterner, including applying three coats of oilpaint of approved colour & shade etc. complete | D52: ='DSR-Sheet I '!O103 -> 4424.55 | E52: Four Thousand Four Hundred Twenty Four & Ps. Fifty Five Only | F52: One Square Meter | G52: =ROUND(B52*D52,0) -> 0
A53: ='DSR-Sheet I '!B104 -> 20 | B53: ='DSR-Sheet I '!D104 -> 106 | C53: Filling in plinth and floors with approved excavated material in 15cm. to 20cm. layers including watering and compacting etc. complete. | D53: ='DSR-Sheet I '!O104 -> 96 | E53: Ninety Six Only | F53: One Cubic Meter | G53: 10176
A54: ='DSR-Sheet I '!B105 -> 21A | B54: ='DSR-Sheet I '!D105 -> 859.425 | C54: Providing Hard Murum cohesive One Numbern-swelling materials in plinth in layers of 20 cms etc. complete as directed. [ Only compacted thickness is payable ] | D54: ='DSR-Sheet I '!O105 -> 733.21 | E54: Seven Hundred Thirty Three & Ps. Twenty One Only | F54: One Cubic Meter | G54: 630139
A55: ='DSR-Sheet I '!B106 -> 21B | B55: ='DSR-Sheet I '!D106 -> 3333 | C55: Compacting the hard murum including laying in layers on each side with vibratory roller including artificial watering etc. complete. | D55: ='DSR-Sheet I '!O106 -> 16 | E55: Sixteen Only | F55: One Square Meter | G55: 53328
A56: ='DSR-Sheet I '!B107 -> 22A | B56: ='DSR-Sheet I '!D107 -> 222.2 | C56: Providing & laying stone metal layer of 20 cm thickness with 60 mm over size metal 65% and 40 mm size metal 35% with sand or stone chips spreading & leveling handpacking complete. | D56: ='DSR-Sheet I '!O107 -> 1455.38 | E56: One Thousand Four Hundred Fifty Five & Ps. Thirty Eight Only | F56: One Cubic Meter | G56: 323385
A57: ='DSR-Sheet I '!B108 -> 22B | B57: ='DSR-Sheet I '!D108 -> 130.5 | C57: Compacting the sub grade / gravel / size metal (100 mm loose) layers for all widths with Power roller having weight 8 to 10 MT. Including necessary, labour, materials and artificial watering complete. | D57: ='DSR-Sheet I '!O108 -> 25 | E57: Twenty Five Only | F57: One Square Meter | G57: 3263
A58: ='DSR-Sheet I '!B109 -> 23A | B58: ='DSR-Sheet I '!D109 -> 1111 | C58: Providing and laying in situ cement concrete M20 with tremix treatment for 150mm thickness for flooring with groove cutting of 4mm wide and 20mm deep with necessary refilling with bitumen including hardner for flooring ( Fosrok Nitofloor hardtop non metallic floor harder or similar ,) etc.complete. | D58: ='DSR-Sheet I '!O109 -> 904.85 | E58: Nine Hundred Four & Ps. Eighty Five Only | F58: One Square Meter | G58: 1005288
A59: ='DSR-Sheet I '!B110 -> 23B | B59: ='DSR-Sheet I '!D110 -> 0 | C59: Providing and laying in situ / ready mix / ready mix M15 cement concrete of trap/ granite/ quartzite/ gneiss metal in foundation including necessary centering, formwork, bailing out water, compacting and curing etc. complete. (pan mixer) with natural /artifical sand) | D59: ='DSR-Sheet I '!O110 -> 4979.97 | E59: Four Thousand Nine Hundred Seventy Nine & Ps. Ninety Seven Only | F59: One Cubic Meter | G59: 0
A60: ='DSR-Sheet I '!B111 -> 23C | B60: ='DSR-Sheet I '!D111 -> 0 | C60: Providing groove cutting 50 mm x 6 mm in cement concrete flooring etc. complete as directed. | D60: ='DSR-Sheet I '!O111 -> 0 | E60: Only | F60: One Running Meter | G60: 0
A61: ='DSR-Sheet I '!B112 -> 24 | B61: ='DSR-Sheet I '!D112 -> 0 | C61: Providing & fixing M.S. angle 50 x 50 x 6 mm with holdfasts at doorsills including fixing in bed concrete and then applying three coats of oilpaint etc. complete | D61: ='DSR-Sheet I '!O112 -> 0 | E61: Only | F61: One Running Meter | G61: 0
A62: ='DSR-Sheet I '!B113 -> 25 | B62: ='DSR-Sheet I '!D113 -> 0 | C62: Providing and fabricating structural steel work in rolled sections like joists, channels, angles, tees etc. as per detailed design and drawings or as directed including cutting, fabricating, hoisting, erecting, fixing in position making riveted / bolted /welded connections without connecting plates, braces etc. and including one coat of anticorrosive paint and over it two coats of oil painting of approved quality and shade etc. complete. | D62: ='DSR-Sheet I '!O113 -> 73844 | E62: Seventy Three Thousand Eight Hundred Fourty Four Only | F62: One M.T. | G62: 0
A63: ='DSR-Sheet I '!B114 -> 26 | B63: ='DSR-Sheet I '!D114 -> 0 | C63: Providing & laying cement concrete pipe of 450 mm dia Np2 class in proper line level & slope including excavation providing & fixing collars in cement morter 1:1 complete. | D63: ='DSR-Sheet I '!O114 -> 946 | E63: Nine Hundred Fourty Six Only | F63: One Running Meter | G63: 0
A64: 27 | B64: ='DSR-Sheet I '!D115 -> 0 | C64: Providing & supplying single ladder of 45cm width made out of high tension aluminum alloy light in weight, side channel 2 5/8 x 1 ¼ dia approximately & of 1” dia nonslip corrugated tubings at 10” c/c with solid rubber shoes & caps etc complete | D64: ='DSR-Sheet I '!O115 -> 1000 | E64: One Thousand Only | F64: One Running Meter | G64: 0
A65: ='DSR-Sheet I '!B117 -> 28 | B65: ='DSR-Sheet I '!D117 -> 15 | C65: Providing & fixing lightening conductor system comprising of erecting Air termination consisting of tubular copper rod of 25 mm dia 1.2 mm thick with multiple points head 1.2 metre long [heavy duty] welded or clamped to G.I. pipe pole “ B” grade 50 mm dia of required length with M.S. round base plate 25 cm dia 10 cm thick at bottom embedded in cement concrete M-10 foundation of size 45 cm dia x 45 cm height and providing earthing with copper earth plate of size 60 x 60 x 0.3cms with cadmium plated nut bolts to fix earthing strip burried in specially prepared earth pit 1.50 m below ground level with 40 kg charcoal and salt with alternate layers of charcoal and salt and G.I. pipe 40 mm dia 2.00 m length burried in earth upto earthing plate remaining portion above ground level for watering and refilling including copper strip of 25 mm x 3 mm shall be rivated and soldered to the lower end of the conductor and carried along the strench up to this spot where the copper plate shall be burried. The other end of the strip shall be contected to the copper earth plate by rivating and soldering etc. complete | D65: ='DSR-Sheet I '!O117 -> 2098.13 | E65: Two Thousand Ninety Eight & Ps. Thirteen Only | F65: One Running Meter | G65: 31472
A66: ='DSR-Sheet I '!B118 -> 29 | B66: ='DSR-Sheet I '!D118 -> 0 | C66: Providing and fixing 90 cm x 60 cm Marble plate engraving 10 cm. height letter, figures including painting the lefters/figures with approved colour and shade complete | D66: ='DSR-Sheet I '!O118 -> 12424 | E66: Twelve Thousand Four Hundred Twenty Four Only | F66: One Square Meter | G66: 0
A67: ='DSR-Sheet I '!B119 -> 30A | B67: ='DSR-Sheet I '!D119 -> 0 | C67: Conveying the materials obtained from excavation including all lifts, laying in layers, breaking clods, dressing to the required lines, curves, grades and section for a lead over 50 to 300m from the site of excavation to the site of deposition as directed by Engineer in charge. | D67: ='DSR-Sheet I '!O119 -> 129 | E67: One Hundred Twenty Nine Only | F67: One Cubic Meter | G67: 0
A68: ='DSR-Sheet I '!B120 -> 30B | B68: ='DSR-Sheet I '!D120 -> 267 | C68: Conveying the materials obtained from excavation including laying in layers, breaking clods, dressing to the required lines, curves, grades and section for all leads & lifts from the site of excavation to the site of deposition away from building as directed engineer in charge. | D68: ='DSR-Sheet I '!O120 -> 186.55 | E68: One Hundred Eighty Six & Ps. Fifty Five Only | F68: One Cubic Meter | G68: 49809
A69: ='DSR-Sheet I '!B121 -> 31 | B69: ='DSR-Sheet I '!D121 -> 0 | C69: Providing expansion joints in R.C.C. framed structure (exterior Columns) with plain premoulded filler 25 mm thick and 3 mm thick alluminium plate, hold fast, fixing T.W. battens on internal face, finishing etc. complete as directed. | D69: ='DSR-Sheet I '!O121 -> 3979 | E69: Three Thousand Nine Hundred Seventy Nine Only | F69: One Square Meter | G69: 0
A70: ='DSR-Sheet I '!B122 -> 32 | B70: ='DSR-Sheet I '!D122 -> 0 | C70: Providing soling using 80 mm size trap metal in 15 cm. Layer including filling voids with Crushed sand/grit, ramming, watering etc. complete. | D70: ='DSR-Sheet I '!O122 -> 1640.48 | E70: One Thousand Six Hundred Fourty & Ps. Fourty Eight Only | F70: One Cubic Meter | G70: 0
A71: ='DSR-Sheet I '!B123 -> 33 | B71: ='DSR-Sheet I '!D123 -> 1111 | C71: Providing pre-constructional Anti-termite treatment as per I.S. 6313 (Part-II) - 1973 by treating the top surface of plinth filling at the rate of 5 litres of emulsion concentrates of 0.5 percent of Hephoclore per square meter of surface | D71: ='DSR-Sheet I '!O123 -> 83 | E71: Eighty Three Only | F71: One Square Meter | G71: =ROUND(B71*D71,0) -> 92213
F72: Total | G72: =SUM(G15:G71) -> 7527737
B73: In words | C73: =NumberToWord(G72) -> 
B75: Sub Work II - Office Building
A77: 1 | B77: ='Sheet -Office'!C73 -> 0 | C77: Excavation for foundation in earth, soil of all types, sand, gravel and soft murum, including removing the excavated material up to a distance of 50 m. beyond the building area and stacking and spreading as directed, dewatering, preparing the bed for the foundation and necessary back filling, ramming, watering including shoring and strutting etc. complete. (Lift upto 1.5 m.) By Mechanical Means | D77: ='Sheet -Office'!O73 -> 157 | E77: =NumberToWord(D77) -> One Hundred Fifty Seven Only | F77: One Cubic Meter | G77: =ROUND(B77*D77,0) -> 0
A79: 2 | B79: ='Sheet -Office'!C75 -> 0 | C79: Excavation for foundation in earth, soils of all types, sand,gravel and soft murum, including removing the excavated material upto a distance of 50 metres beyond the building area and stacking and spreading as directed, dewatering, preparing the bed for the foundation and necessary back filling, ramming, watering including shoring and strutting etc. complete. (Lift from 1.5m to 3.0m) By Mechanical Means | D79: ='Sheet -Office'!O75 -> 196 | E79: One Hundred Ninety Six Only | F79: One Cubic Meter | G79: =ROUND(B79*D79,0) -> 0
A81: 3 | B81: ='Sheet -Office'!C77 -> 0 | C81: Excavation for foundation in hard murum including removing the excavated material upto distance of 50 metres beyond the building area and stacking and spreading as directed dewatering, preparing the bed for the foundation and necessary back filling, ramming, watering including shoring and strutting etc. complete. (Lift upto 1.50 m) By Mechanical Means | D81: ='Sheet -Office'!O77 -> 172 | E81: One Hundred Seventy Two Only | F81: One Cubic Meter | G81: =ROUND(B81*D81,0) -> 0
A83: 4 | B83: ='Sheet -Office'!C79 -> 0 | C83: Excavation for foundation in hard murum and boulders including removing the excavated material up to a distance 50 metres, beyond the building area and stacking and spreading as directed, dewatering, preparing the bed for the foundation and necessary back filling, ramming, watering including shoring and strutting etc. complete. (Lift upto 1.5m.) By Mechanical Means | D83: ='Sheet -Office'!O79 -> 191 | E83: One Hundred Ninety One Only | F83: One Cubic Meter | G83: =ROUND(B83*D83,0) -> 0
A85: 5 | B85: ='Sheet -Office'!C81 -> 0 | C85: Excavation for foundation in Soft rock and old cement or lime masonry foundations including removing the excavated material upto a distance of 50 metres beyond the building area and stacking as directed, including dewatering, preparing the bed for the foundation and necessary back filling with available earth /murum, ramming, watering including shoring and strutting etc. complete (lift upto 3.0m) By Mechanical Means | D85: ='Sheet -Office'!O81 -> 329 | E85: Three Hundred Twenty Nine Only | F85: One Cubic Meter | G85: =ROUND(B85*D85,0) -> 0
A87: 6 | B87: ='Sheet -Office'!C83 -> 0 | C87: Excavation for foundation in Hard rock by chiselling, wedging, line drilling, etc. including trimming and levelling the bed, removing the excavated material upto a distance of 50metres beyond the building area stacking as directed, dewatering and back filling with available earth /murum watering, ramming etc. complete. (all lifts). By Mechanical Means | D87: ='Sheet -Office'!O83 -> 1027 | E87: One Thousand Twenty Seven Only | F87: One Cubic Meter | G87: =ROUND(B87*D87,0) -> 0
A89: 7 | B89: ='Sheet -Office'!C85 -> 0 | C89: Excavation for foundation in Hard rock by controlled blasting including trimming and leveling the bed by chiseling where necessary and removing the excavated material and stacking it in measurable heaps within a distance of 50 metres from the building area including dewatering and back filling with available earth/murum, watering, ramming, etc. complete. (all lifts) By Mechanical Means | D89: ='Sheet -Office'!O85 -> 893 | E89: Eight Hundred Ninety Three Only | F89: One Cubic Meter | G89: =ROUND(B89*D89,0) -> 0
A91: 8 | B91: ='Sheet -Office'!C87 -> 0 | C91: Excavation for roadway in earth, soil of all sorts, sand, gravel or soft murum including dressing section to the required grade, camber and side slopes and conveying the excavated materials with all lifts upto a lead of 50m. and spreading for embankment or stacking as directed. | D91: ='Sheet -Office'!O87 -> 73 | E91: Seventy Three Only | F91: One Cubic Meter | G91: =ROUND(B91*D91,0) -> 0
A93: 9 | B93: ='Sheet -Office'!C89 -> 0 | C93: Providing and laying in situ / ready mix / ready mix M10 cement concrete of trap/ granite/ quartzite/ gneiss metal in foundation including necessary centering, formwork, bailing out water, compacting and curing etc. complete. (pan mixer) with natural /artifical sand) | D93: ='Sheet -Office'!O89 -> 5579.78 | E93: Five Thousand Five Hundred Seventy Nine & Ps. Seventy Eight Only | F93: One Cubic Meter | G93: =ROUND(B93*D93,0) -> 0
A95: 10 | B95: ='Sheet -Office'!C91 -> 0 | C95: Providing uncoursed rubble masonry of trap / granite / quartzite / gneiss stones in cement mortar 1:6 in foundation and plinth of inner walls / in plinth of external walls including bailing out water manually , striking joints on un exposed faces and watering etc.complete. | D95: ='Sheet -Office'!O91 -> 5012.05 | E95: Five Thousand Twelve & Ps. Five Only | F95: One Cubic Meter | G95: =ROUND(B95*D95,0) -> 0
A97: 11 | B97: ='Sheet -Office'!C93 -> 0 | C97: Providing second class Burnt Brick masonry with conventional/ I.S. type bricks in cement mortar 1:6 in foundations and plinth of inner walls/ in plinth external walls including bailing out water manually , striking joints on unexposed faces, raking out joints on exposed faces and watering etc. Complete. | D97: ='Sheet -Office'!O93 -> 6369.07 | E97: Six Thousand Three Hundred Sixty Nine & Ps. Seven Only | F97: One Cubic Meter | G97: =ROUND(B97*D97,0) -> 0
A99: 12 | B99: ='Sheet -Office'!C95 -> 0 | C99: Providing second class Burnt Brick masonry with conventional/ I.S. type bricks in cement mortar 1:6 in superstructure including striking joints, raking out joints, watering and scaffolding etc. Complete | D99: ='Sheet -Office'!O95 -> 5175.22 | E99: Five Thousand One Hundred Seventy Five & Ps. Twenty Two Only | F99: One Cubic Meter | G99: =ROUND(B99*D99,0) -> 0
A101: 13 | B101: ='Sheet -Office'!C97 -> 0 | C101: Providing and laying in situ /Ready Mix cement concrete M-20 of trap / granite /quartzite/ gneiss metal for R.C.C. work in foundations like raft, strip foundations, grillage and footings of R.C.C. columns and steel stanchions etc. including bailing out water, Steel centering formwork, laying/pumping cover blocks, compaction and curing roughening the surface if special finish is to be provided (Excluding reinforcement and structural steel) etc. complete. With fine aggregate (Natural Sand / Crushed sand VSI Grade finely washed etc) | D101: ='Sheet -Office'!O97 -> 6154.66 | E101: Six Thousand One Hundred Fifty Four & Ps. Sixty Six Only | F101: One Cubic Meter | G101: =ROUND(B101*D101,0) -> 0
A103: 14 | B103: ='Sheet -Office'!C99 -> 0 | C103: Providing and laying Cast in situ/Ready Mix cement concrete M-20 of trap / granite /quartzite/ gneiss metal for R.C.C. columns as per detailed designs and drawing or as directed including steel centering, formwork, cover blocks, laying/pumping, compaction finishing the formed surfaces with cement mortar 1:3 of sufficient minimum thickness to give a smooth and even surface or roughening if special finish is to be provided and curing etc. complete,(Excluding reinforcement and structural steel). With fine aggregate (Natural Sand / Crushed sand VSI Grade finely washed etc) | D103: ='Sheet -Office'!O99 -> 11425.26 | E103: Eleven Thousand Four Hundred Twenty Five & Ps. Twenty Six Only | F103: One Cubic Meter | G103: =ROUND(B103*D103,0) -> 0
A105: 15 | B105: ='Sheet -Office'!C101 -> 0 | C105: Providing and laying Cast in situ/Ready Mix cement concrete M-20 of trap / granite /quartzite/ gneiss metal for R.C.C. beams and lintels as per detailed designs and drawings or as directed including steel centering, formwork, cover blocks, laying/pumping, compaction and roughening the surface if special finish is to be provided and curing etc. complete. (Excluding reinforcement and structural steel) etc. complete. With fine aggregate (Natural Sand / Crushed sand VSI Grade finely washed etc) | D105: ='Sheet -Office'!O101 -> 10148.46 | E105: Ten Thousand One Hundred Fourty Eight & Ps. Fourty Six Only | F105: One Cubic Meter | G105: =ROUND(B105*D105,0) -> 0
A107: 16 | B107: ='Sheet -Office'!C103 -> 0 | C107: Providing and laying Cast in situ/Ready Mix cement concrete M-20 of trap/ granite/ quartzite/ gneiss metal for R.C.C. chajja as per detailed design and drawings including steel centering, formwork, cover blocks compacting , curing , finishing and roughening the surface if special finish is to be provided and curing complete. (Excluding reinforcement and structural steel). With fine aggregate (Natural Sand / Crushed sand VSI Grade finely washed etc) | D107: ='Sheet -Office'!O103 -> 11374.91 | E107: Eleven Thousand Three Hundred Seventy Four & Ps. Ninety One Only | F107: One Cubic Meter | G107: =ROUND(B107*D107,0) -> 0
A109: 17 | B109: ='Sheet -Office'!C105 -> 0 | C109: Providing and laying Cast in situ/Ready Mix cement concrete M-20 of trap/ granite / quartzite/ gneiss metal for R.C.C. slabs and landings as per detailed designs and drawings including steel centering, formwork, cover blocks, laying/pumping, compaction finishing the formed surfaces with cement mortar 1:3 of sufficient minimum thickness to give a smooth and even surface or roughening if special finish is to be provided and curing etc. complete. (Excluding reinforcement and structural steel). With fine aggregate (Natural Sand / Crushed sand VSI Grade finely washed etc) | D109: ='Sheet -Office'!O105 -> 12171.01 | E109: Twelve Thousand One Hundred Seventy One & Ps. One Only | F109: One Cubic Meter | G109: =ROUND(B109*D109,0) -> 0
A111: 18 | B111: ='Sheet -Office'!C107 -> 0 | C111: Providing and fixing in position TMT - FE - 500 bar reinforcement of various diameters for R.C.C. pile caps, footings, foundations, slabs, beams columns, caOne Numberpies, staircase, newels, chajjas, lintels pardis, copings, fins, arches etc. as per detailed designs, drawings and schedules. including cutting, bending, hooking the bars, binding with wires or tack welding and supporting as required complete. | D111: ='Sheet -Office'!O107 -> 62581 | E111: Sixty Two Thousand Five Hundred Eighty One Only | F111: One Metric Ton | G111: =ROUND(B111*D111,0) -> 0
A113: 19 | B113: ='Sheet -Office'!C109 -> 0 | C113: Providing II class B.B. masonary with conventional / I. s. type bricks in cement morter ( 1: 4 ) in half brick thick wall including longitudinal reinforcement of 2 bars of 6mm dia / 2 hoop iron strips 25mm x 1.6 mm at every III course properly bent & bounded at ends scaffolding, racking out joints and watering complete. [Bd.G.7 / P 316 ] | D113: ='Sheet -Office'!O109 -> 852.32 | E113: Eight Hundred Fifty Two & Ps. Thirty Two Only | F113: One Cubic Meter | G113: =ROUND(B113*D113,0) -> 0
A115: 20 | B115: ='Sheet -Office'!C111 -> 0 | C115: Providing cement plaster 12 mm thick in C. M. 1 : 4 in single coat with neeru finish with even & smooth finish to concrete or brick surface in all positions including scaffolding curing etc. complete as directed. [Bd. L. 2/368 + Bd. L. 10] | D115: ='Sheet -Office'!O111 -> 302.62 | E115: Three Hundred Two & Ps. Sixty Two Only | F115: One Square Meter | G115: =ROUND(B115*D115,0) -> 0
A117: 21 | B117: ='Sheet -Office'!C113 -> 0 | C117: Providing sand faced plaster externally in cement mortar using approved screened sand, in all positions including base coat of 15mm thick in cement mortar 1:4 using waterproofing compound at 1kg per cement bag curing the same for not less than 2days and keeping the surface of the base coat rough to receive the sand faced treatment 6to8mm thick in cement mortar 1:4 finishing the surface by taking out grains and curing for fourteen days scaffolding etc.complete. (Bd.L.7/369) | D117: ='Sheet -Office'!O113 -> 718.39 | E117: Seven Hundred Eighteen & Ps. Thirty Nine Only | F117: One Square Meter | G117: =ROUND(B117*D117,0) -> 0
A119: 22 | B119: ='Sheet -Office'!C115 -> 0 | C119: Providing rough cast cement plster externally in two coats to concrete, brick or stone masonry surfaces in all positions with base coat of 12 to 15 mm. thick in C.M. 1:4 and rough cast treatment 12 mm. thick in proportion 1:1.5:3 including scaffolding and fourteen days curing etc. complete. [ Spec. No.: Bd. L. 8/Page No. 370 ]( It.No. 12 / Page No. 370) | D119: ='Sheet -Office'!O115 -> 570.39 | E119: Five Hundred Seventy & Ps. Thirty Nine Only | F119: One Square Meter | G119: =ROUND(B119*D119,0) -> 0
A121: 23 | B121: ='Sheet -Office'!C117 -> 0 | C121: Providing cement plaster 20 mm thick in C.M. 1:4( PLINTH) with 1.5mm thick cement finish to concrete /brick surface in all positions including scaffolding curing etc. complete as directed.(Bd.L.4/368) | D121: ='Sheet -Office'!O117 -> 488.39 | E121: Four Hundred Eighty Eight & Ps. Thirty Nine Only | F121: One Square Meter | G121: =ROUND(B121*D121,0) -> 0
A123: 24 | B123: ='Sheet -Office'!C119 -> 0 | C123: Providing & applying cement paint in three coats on plastered or masonary surface of approved manufacture & of approved colour including primer coat scafdfolding & preparing the surface complete. [ Bd. O. 8/406] | D123: ='Sheet -Office'!O119 -> 86 | E123: Eighty Six Only | F123: One Square Meter | G123: =ROUND(B123*D123,0) -> 0
A125: 25 | B125: ='Sheet -Office'!C121 -> 0 | C125: Providing & applying oilbound distemper in three coats on plastered or masonary surface of approved manufacturer & of approved colour including primer coat scafolding & preparing the surface watering for two days complete. [Bd. P. 5/413] | D125: ='Sheet -Office'!O121 -> 69.5 | E125: Sixty Nine & Ps. Fifty Only | F125: One Square Meter | G125: =ROUND(B125*D125,0) -> 0
A127: 26 | B127: ='Sheet -Office'!C123 -> 0 | C127: Providing & applying whitewash three coats on plastered or masonary surface including scafafolding & preparing the surface by brushing & brooming down complete. [Bd. P. 1/411] | D127: ='Sheet -Office'!O123 -> 12.6 | E127: Twelve & Ps. Sixty Only | F127: One Square Meter | G127: =ROUND(B127*D127,0) -> 0
A129: 27 | B129: ='Sheet -Office'!C125 -> 0 | C129: Providing & fixing in position solid core flush door single leaf 35 mm thick decorative type of exterior grade as per detailed drawing including superior Indian teak wood door frame 60 x 100 mm with ventilator as directed all necessary beads, moldings and lippings wrought iron hold fasts, chromium plated fixtures & fastenings without brass mortice lock including three coats of oilpainting as directed by Engineer – in charge [Bd. T. 34 P 499] | D129: ='Sheet -Office'!O125 -> 6004.95 | E129: Six Thousand Four & Ps. Ninety Five Only | F129: One Square Meter | G129: =ROUND(B129*D129,0) -> 0
A131: 28 | B131: ='Sheet -Office'!C127 -> 0 | C131: Providing & fixing Country teak wood single leaf, second class fully panelled door, without ventilator as per detailed drawing including Iron Oxidiesed fixtures and fastenings and finishing the wood work with one coat of primer etc. including door frame 60 x 100 mm complete. Panels 12mm tk. exterior grade prelaminated particle boarf [Spec. No. Bd. T. 8/ P 482] (Item No. 6 / Page No. 81) | D131: ='Sheet -Office'!O127 -> 7862.17 | E131: Seven Thousand Eight Hundred Sixty Two & Ps. Seventeen Only | F131: One Cubic Meter | G131: =ROUND(B131*D131,0) -> 0
A133: 29 | B133: ='Sheet -Office'!C129 -> 0 | C133: Providing & fixing Country teak wood Double leaf, second class fully panelled framed and braced door, with ventilator without / with Ironbars as per detailed drawing including the door frame 60 x 100 mm, Ironfixtures and fastenings and finishing with primer coat etc.complee [Spec. No. Bd. T. 19/ P 493] | D133: ='Sheet -Office'!O129 -> 9445.95 | E133: Nine Thousand Four Hundred Fourty Five & Ps. Ninety Five Only | F133: One Square Meter | G133: =ROUND(B133*D133,0) -> 0
A135: 30 | B135: ='Sheet -Office'!C131 -> 0 | C135: Providing & fixing in position solid core flush door single leaf 32 mm thick decorative type of exterior grade as per detailed drawing including superior Indian teak woo door frame 60 x 100 mm without Ventilator as directed all necessary beads, moldings and lippings wrought iron hold fasts, chromium plated fixtures & fastening without brass mortice lock including three coats of oilpainting as directed by Engineer – in charge [ Bd. T. 36 P 500] | D135: ='Sheet -Office'!O131 -> 6805.89 | E135: Six Thousand Eight Hundred Five & Ps. Eighty Nine Only | F135: One Square Meter | G135: =ROUND(B135*D135,0) -> 0
A137: 31 | B137: ='Sheet -Office'!C133 -> 0 | C137: providing & fixing in position teak wood wall cupboard plain planked with three teakwood shelves 50cm wide & 25 mm thick including teakwood frame of 50 mm x 75mm and shutters of 25 mm thick teak wood planks with 12mm thick & 75 mm wide ladges with C. P. fixtures and fastenings hold fasts, with three coats of oilpainting complete as directed by Engineer – in charge | D137: ='Sheet -Office'!O133 -> 11792 | E137: Eleven Thousand Seven Hundred Ninety Two Only | F137: One Square Meter | G137: =ROUND(B137*D137,0) -> 0
A139: 32 | B139: ='Sheet -Office'!C135 -> 0 | C139: Providing & fixing M. S. grillwork for windows & ventilators upto 20 kg/sqm as per drawing including fixtures necessary welding and painting one coat of anticorrosive paint & two coats of oilpainting complete as directed [Bd. U1 P 537] | D139: ='Sheet -Office'!O135 -> 1528 | E139: One Thousand Five Hundred Twenty Eight Only | F139: One Square Meter | G139: =ROUND(B139*D139,0) -> 0
A141: 33 | B141: ='Sheet -Office'!C137 -> 0 | C141: Providing Hard Murum cohesive non-swelling materials in plinth in layers of 20 cms etc. complete as directed. [ Only compacted thickness is payable ] | D141: ='Sheet -Office'!O137 -> 875.45 | E141: =NumberToWord(D141) -> Eight Hundred Seventy Five & Ps. Fourty Five Only | F141: One Cubic Meter | G141: =ROUND(B141*D141,0) -> 0
A143: 34 | B143: ='Sheet -Office'!C139 -> 0 | C143: Providing & fixing in position for flooring, of vetrified tiles of approved quality & make 600 x 600 mm size & tk. for flooring width on 1 : 4 cement plaster including cement float filling cement joints with neat cement slurry, curing, rubbing polishing & cleaning complete. | D143: ='Sheet -Office'!O139 -> 1051.88 | E143: One Thousand Fifty One & Ps. Eighty Eight Only | F143: One Square Meter | G143: =ROUND(B143*D143,0) -> 0
A145: 35 | B145: ='Sheet -Office'!C141 -> 0 | C145: Providing & fixing in position for dado & skirting of vetrified tiles of approved quality & make 600 x 600 mm size & tk. for Dado & Skirting width on 1 : 4 cement plaster including cement float filling cement joints with neat cement slurry, curing, rubbing polishing & cleaning complete. | D145: ='Sheet -Office'!O141 -> 1111.88 | E145: One Thousand One Hundred Eleven & Ps. Eighty Eight Only | F145: One Square Meter | G145: 0
A147: 36 | B147: ='Sheet -Office'!C143 -> 0 | C147: Providing & fixing in position sills of polished shahabad stone slabs 25mm to 30mm tk and required width on 1 : 4 cement float filling cement joints with neat cement slurry, curing, rubbing polishing & cleaning complete. [ Bd. M. 29/331] | D147: ='Sheet -Office'!O143 -> 1104.88 | E147: One Thousand One Hundred Four & Ps. Eighty Eight Only | F147: One Square Meter | G147: =ROUND(B147*D147,0) -> 0
A149: 37 | B149: ='Sheet -Office'!C145 -> 0 | C149: Providing and laying matt finish ceramic tiles of having size 30cmx30cm confirming to I.S. 15622/2006 (groupDII-A) and 7to8mm thick for flooring in required position laid on a bed of 1:4 cement mortar including cement float, filling joint with white /colour cement slurry cleaning curing etc. complete. | D149: ='Sheet -Office'!O145 -> 1074.88 | E149: One Thousand Seventy Four & Ps. Eighty Eight Only | F149: One Square Meter | G149: =ROUND(B149*D149,0) -> 0
A151: 38 | B151: ='Sheet -Office'!C147 -> 0 | C151: Providing and laying ceramic tiles of having size 30cm.x30cm. and confirming to corresponding I.S. for dado and skirting in required position with ready made adhesive mortar of approved quality on plaster of 1:2 cement mortar including joint filling with white/ colour cement slurry cleaning curing etc. complete. | D151: ='Sheet -Office'!O147 -> 1132.88 | E151: One Thousand One Hundred Thirty Two & Ps. Eighty Eight Only | F151: One Square Meter | G151: =ROUND(B151*D151,0) -> 0
A153: 39 | B153: ='Sheet -Office'!C149 -> 0 | C153: Providing & fixing Indian type white glazed Orissa type earthenware 580 x 440 mm water closet pan including S trap white earthenware foot rest cast iron soil & vent pipe upto the outside face of the wall 1:2:4 brickbat lime concrete bedding 10 Litre fibre highlevel tank flushing cistern with fittings, inlet pipe with stop tap, bracket for fixing the cistern 32 mm dia PVC pipe with fittings & clamps 20 mm dia G. I. Over flow pipe with mosquitoproof capping G. I. Chain pull, painting of cistren & exposed pipes & fittings & making good walls & floor with enameled tank & PVC pipe as directed [Bd. V. 30/565] | D153: ='Sheet -Office'!O149 -> 6011 | E153: Six Thousand Eleven Only | F153: One Number | G153: =ROUND(B153*D153,0) -> 0
A155: 40 | B155: ='Sheet -Office'!C151 -> 0 | C155: Providing and fixing European type white glazed earthenware coupled closet symphonic trap with symphonic low level white glazed 10litres cistern with black back lite seat with all necessary pipe connection etc. complete [Bd. V. 30/565]. | D155: ='Sheet -Office'!O151 -> 9287 | E155: Nine Thousand Two Hundred Eighty Seven Only | F155: One Number | G155: =ROUND(B155*D155,0) -> 0
A157: 41 | B157: ='Sheet -Office'!C153 -> 0 | C157: Providing & fixing white glazed wash hand basin of 55 x 40 cms size including cold water pillar tap brackets, rubber plug & brass chain, stop tap & necessary pipe connections including PVC vest pipe & trap upto outside face of the wall. [Bd. V. 30 / P 565] | D157: ='Sheet -Office'!O153 -> 4711 | E157: Four Thousand Seven Hundred Eleven Only | F157: One Number | G157: =ROUND(B157*D157,0) -> 0
A159: 42 | B159: ='Sheet -Office'!C155 -> 0 | C159: Providing & fixing 10cms Rigid C.I. Nahani trap including C.I Grating bend & piece of C.I. Pipe upto the outside face of the wall complete | D159: ='Sheet -Office'!O155 -> 684 | E159: Six Hundred Eighty Four Only | F159: One Number | G159: =ROUND(B159*D159,0) -> 0
A161: 43 | B161: ='Sheet -Office'!C157 -> 0 | C161: Providing & fixing 15 x 10cms salt glazed stoneware gully trap in C. C. 1:4:8 outside the building including cast iron grating in the sink, connecting glazed stoneware pipe, brick masonary chamber and cast iron lead & cast iron grating for gully trap. [bd. V. 38 / P 572] | D161: ='Sheet -Office'!O157 -> 1169 | E161: One Thousand One Hundred Sixty Nine Only | F161: One Number | G161: =ROUND(B161*D161,0) -> 0
A163: 44 | B163: ='Sheet -Office'!C159 -> 0 | C163: Providing & constructing brick masonary inspection chamber 60 x 45cms including 1:4:8 C. C. foundation 1:2:4 cement concrete channels half round G S W pipes, brick masonary, plastering from inside with frame fixed in cement concrete etc. complete with R. C. C. cover. [Bd. V. 43 / P 574] | D163: ='Sheet -Office'!O159 -> 6975 | E163: Six Thousand Nine Hundred Seventy Five Only | F163: One Number | G163: =ROUND(B163*D163,0) -> 0
A165: 45 | B165: ='Sheet -Office'!C161 -> 0 | C165: Providing Soak pit including excavating and filling with brickbat [Bd. V. 46 / P 576] | D165: ='Sheet -Office'!O161 -> 2363 | E165: Two Thousand Three Hundred Sixty Three Only | F165: One Number | G165: =ROUND(B165*D165,0) -> 0
A167: 46 | B167: ='Sheet -Office'!C163 -> 0 | C167: Providing & fixing hume pipe septic tank 900 mm diameterwith vent pipe and cap including necessary fittings (incuding excavation and laying) Bd.V.45 Page No.575 | D167: ='Sheet -Office'!O163 -> 14018 | E167: Fouteen Thousand Eighteen Only | F167: One Number | G167: =ROUND(B167*D167,0) -> 0
A169: 47 | B169: ='Sheet -Office'!C165 -> 0 | C169: Providing & laying 110 MM dia U.P.V.C. SOIL / VENT / WASTE SWR pipesalt glazed stoneware pipe including fittings such as bends, tees, single junction, double junction laying, jointing ( including excavation & refilling the trenches) complete [Bd. V. 39 / P 573] | D169: ='Sheet -Office'!O165 -> 652 | E169: Six Hundred Fifty Two Only | F169: One Running Meter | G169: =ROUND(B169*D169,0) -> 0
A171: 48 | B171: ='Sheet -Office'!C167 -> 0 | C171: Providing & fixing stainess steel sink 600 mm x 450 mm x 250 mm including all connection of the G.I. supply and lead waste pipes upto the out side face of the wall, cold water chromium plated screw down bib tap, rolled steel on C.I. brackets, rubber plug with chain and stop tap etc. complete. [Spec. No. Bd. V. 31 / P.No. 566] (It.No. 25 / P.No. 113) | D171: ='Sheet -Office'!O167 -> 14490 | E171: Fouteen Thousand Four Hundred Ninety Only | F171: One Number | G171: =ROUND(B171*D171,0) -> 0
A173: 49 | B173: ='Sheet -Office'!C169 -> 0 | C173: Providing & laying in trenches 15 mm dia heavy grade (type) having embossed as ISI marked G. I. Pipes weight of 1.25 kg/Mtrs. with screwed socket joints & necessary G. I. Fittings such as sockets, backnuts, elbows, bends, tees, reducers, enlargers, plugs, clamps etc including necessary drilling holes in walls, slabs etc. and remaking good the demolished portion to restore the same in original condition neatly and primer providing & applying anticorrosive primer paint and two coats of oilpaintings complete | D173: ='Sheet -Office'!O169 -> 357 | E173: Three Hundred Fifty Seven Only | F173: One Running Meter | G173: =ROUND(B173*D173,0) -> 0
A175: 50 | B175: ='Sheet -Office'!C171 -> 0 | C175: Providing & laying in trenches 20 mm dia heavy grade (type) having embossed as ISI marked G. I. Pipes weight of 1.25 kg/Mtrs. with screwed socket joints & necessary G. I. Fittings such as sockets, backnuts, elbows, bends, tees, reducers, enlargers, plugs, clamps etc including necessary drilling holes in walls, slabs etc. and remaking good the demolished portion to restore the same in original condition neatly and primer providing & applying anticorrosive primer paint and two coats of oilpaintings complete | D175: ='Sheet -Office'!O171 -> 425 | E175: Four Hundred Twenty Five Only | F175: One Running Meter | G175: 0
A177: 51 | B177: ='Sheet -Office'!C173 -> 0 | C177: Providing & fixing on walls, ceiling, flooring, 15 mm dia heavy grade (type) having embossed as ISI marked G. I. Pipes weight of 1.48 kg/Rms. with screwed socket joints & necessary G. I. Fittings such as sockets, backnuts, elbows, bends, tees, reducers, enlargers, plugs, clamps etc including necessary drilling holes in walls, slabs etc. and remaking good the demolished portion to restore the same in original condition neatly and providing & applying anticorrosive primer oilpaint and two coats of oilpaintings complete. [Bd. V. 5 / P 551] | D177: ='Sheet -Office'!O173 -> 357 | E177: Three Hundred Fifty Seven Only | F177: One Running Meter | G177: =ROUND(B177*D177,0) -> 0
A179: 52 | B179: ='Sheet -Office'!C175 -> 0 | C179: Providing & laying in treches 25 mm dia heavy grade (type) having embossed as ISI marked G. I. Pipes weight of 2.49 kg/Rms. with screwed socket joints & necessary G. I. Fittings such as sockets, backnuts, elbows, bends, tees, reducers, enlargers, plugs, clamps etc including necessary drilling holes in walls, slabs etc. and remaking good the demolished portion to restore the same in original condition neatly and providing & applying anticorrosive primer oilpaint and two coats of oilpaintings complete. [Bd. V. 5 / P 551] | D179: ='Sheet -Office'!O175 -> 458 | E179: Four Hundred Fifty Eight Only | F179: One Running Meter | G179: =ROUND(B179*D179,0) -> 0
A181: 53 | B181: ='Sheet -Office'!C177 -> 0 | C181: Providing & fixing on walls, ceiling, flooring, 25mm dia heavy grade (type) having embossed as ISI marked G. I. Pipes weight of 2.49 kg/Mtre. with screwed socket joints & necessary G. I. Fittings such as sockets, backnuts, elbows, bends, tees, reducers, enlargers, plugs, clamps etc including necessary drilling holes in walls, slabs etc. and remaking good the demolished portion to restore the same in original condition neatly and providing & applying anticorrosive primer oilpaint and two coats of oilpaintings complete. [Bd. V. 5 / P 551] | D181: ='Sheet -Office'!O177 -> 503 | E181: Five Hundred Three Only | F181: One Running Meter | G181: =ROUND(B181*D181,0) -> 0
A183: 54 | B183: ='Sheet -Office'!C179 -> 0 | C183: Providing & fixing on walls, ceiling, flooring, 20mm dia heavy grade (type) having embossed as ISI marked G. I. Pipes weight of 1.93 kg/Mtre. with screwed socket joints & necessary G. I. Fittings such as sockets, backnuts, elbows, bends, tees, reducers, enlargers, plugs, clamps etc including necessary drilling holes in walls, slabs etc. and remaking good the demolished portion to restore the same in original condition neatly and providing & applying anticorrosive primer oilpaint and two coats of oilpaintings complete. [Bd. V. 5 / P 551] | D183: ='Sheet -Office'!O179 -> 430 | E183: Four Hundred Thirty Only | F183: One Running Meter | G183: =ROUND(B183*D183,0) -> 0
A185: 55 | B185: ='Sheet -Office'!C181 -> 0 | C185: Providing & fixing in position 45 x 55 cms high class mirror over wash hand basin including all accessories, and necessary fittings etc. Complete as directed. | D185: ='Sheet -Office'!O181 -> 703 | E185: Seven Hundred Three Only | F185: One Number | G185: =ROUND(B185*D185,0) -> 0
A187: 56 | B187: ='Sheet -Office'!C183 -> 0 | C187: Providing & fixing in position cast iron oxidised brackets mounted on country cut teak wood plank of size 90 x10 x 2.5 cms duly polished & fixed on wall properly etc. complete | D187: ='Sheet -Office'!O183 -> 200 | E187: Two Hundred Only | F187: One Number | G187: 0
A189: 57 | B189: ='Sheet -Office'!C185 -> 0 | C189: Providing & fixing H. D. P container one piece mouled watertank made out of low density polyethler and build corrugations inclusive of delivery upto destination housing fixing of accessories such as inlet, outlet, overflow inclusive of all taxes as directed. | D189: ='Sheet -Office'!O185 -> 11 | E189: Eleven Only | F189: One Liter | G189: =ROUND(B189*D189,0) -> 0
A191: 58 | B191: ='Sheet -Office'!C187 -> 0 | C191: Providing & fixing 15 mm dia screw down bib / stop tap of brass including necessary socket, union, nuts complete. [Bd. V. 8 / P 554] | D191: ='Sheet -Office'!O187 -> 548 | E191: Five Hundred Fourty Eight Only | F191: One Number | G191: =ROUND(B191*D191,0) -> 0
A193: 59 | B193: ='Sheet -Office'!C189 -> 0 | C193: Providing, construction and erecting in position flag post as per drawing and design as directed by Engineer in charge | D193: ='Sheet -Office'!O189 -> 6424 | E193: Six Thousand Four Hundred Twenty Four Only | F193: One Number | G193: =ROUND(B193*D193,0) -> 0
A195: 60 | B195: ='Sheet -Office'!C191 -> 0 | C195: Providing & constructing water platform as per drawing & design as directed by Engineer in charge. | D195: ='Sheet -Office'!O191 -> 6822 | E195: Six Thousand Eight Hundred Twenty Two Only | F195: One Number | G195: =ROUND(B195*D195,0) -> 0
A197: 61 | B197: ='Sheet -Office'!C193 -> 0 | C197: Providing cement based waterproofing treatment to terraces(Indian waterproofing or a like) with brickbats laid in required slope to drain the water for any span after cleaning the base surface. Applying a coat of cement slurry admixed with approved waterproofing compound and laying the brickbats on bottom layer in C.M. 1:5 admixed with approved waterproofing compound filling up to half depth of brick bats, curing this layer for 3days, applying cement slurry over this layer joints of brickbats with C.M. 1:3 admixed with approved waterproofing compound and finally top finishing with average 20mm. thick layers of same mortar added with jute fiber at 1Kg per bag including finishing the surface smooth with cement slurry admixed with approved waterproofing compound. Marking finished surface with false squares of 300mmx300mm. making the junctions at the parapet rounded and tapered top for required height, with dripmouldat the junction of plaster and parapet and curing and covering 10years Guarantee against leakproofness on Court fee stamp paper of Rs. 500/- including ponding test etc. complete. complete. | D197: ='Sheet -Office'!O193 -> 937 | E197: Nine Hundred Thirty Seven Only | F197: One Square Meter | G197: =ROUND(B197*D197,0) -> 0
A199: 62 | B199: ='Sheet -Office'!C195 -> 0 | C199: Providing & fixing 15mm dia. Screw down whealed stop tap of gun metal / brass including necessary socket / union nuts etc. complete. [Bd.V.9/555] | D199: ='Sheet -Office'!O195 -> 402 | E199: Four Hundred Two Only | F199: One Number | G199: =ROUND(B199*D199,0) -> 0
A201: 63 | B201: ='Sheet -Office'!C197 -> 0 | C201: Providing & fixing 25mm dia. Screw down whealed stop tap of gun metal / brass including necessary socket / union nuts etc. complete.[Bd.V.9/555] | D201: ='Sheet -Office'!O197 -> 707 | E201: Seven Hundred Seven Only | F201: One Number | G201: =ROUND(B201*D201,0) -> 0
A203: 64 | B203: ='Sheet -Office'!C199 -> 0 | C203: Providing & fixing 20mm dia. Screw down whealed stop tap of gun metal / brass including necessary socket / union nuts etc. complete.[Bd.V.9/555] | D203: ='Sheet -Office'!O199 -> 516 | E203: Five Hundred Sixteen Only | F203: One Number | G203: =ROUND(B203*D203,0) -> 0
A205: 65 | B205: ='Sheet -Office'!C201 -> 0 | C205: Providing & fixing in position alluminium exctruded section two track sliding window up to 1.5 m. ht. outer frame made from section of over all size 62 x 45 mm with fixed vintilator fully glazed of any size with powder coating as per detailed drawing and as directed by Engineer-in-charge with all necessary alluminium section including necessary fixtures and fastening such as 5 mm thick clear glass etc. complete. ( as directed by Engineer-in-charge ) | D205: ='Sheet -Office'!O201 -> 4924 | E205: =NumberToWord(D205) -> Four Thousand Nine Hundred Twenty Four Only | F205: One Square Meter | G205: =ROUND(B205*D205,0) -> 0
A207: 66 | B207: ='Sheet -Office'!C203 -> 0 | C207: Providing 25 to 30mm thick partions of polished black kadappa stone slab of approved shapes, quality and colour for platform urinals, including cutting holes of required sizes in the appropriate places to receive pipes etc., fixing in cement mortar 1:3 curing and cleaning complete. [Bd.M.35 / 393] | D207: ='Sheet -Office'!O203 -> 997 | E207: Nine Hundred Ninety Seven Only | F207: One Square Meter | G207: =ROUND(B207*D207,0) -> 0
A209: 67 | B209: ='Sheet -Office'!C205 -> 0 | C209: Providing & fixing 20 mm dia. alluminuim powder coated palemat rod including fixtures as directed. | D209: ='Sheet -Office'!O205 -> 150 | E209: One Hundred Fifty Only | F209: One Running Meter | G209: =ROUND(B209*D209,0) -> 0
A211: 68 | B211: ='Sheet -Office'!C207 -> 0 | C211: Providing & fixing white glazed earthenware semi stall type Urinals without cistern with inlet pipes stop tap, UPVC flush pipe, with fittings and flushing arrangement including UPVC soil pipe, UPVC trap and soil pipe connection upto the outside face of the wall, making good to damaged surface testing etc. complete. (Prior approval of sample and brand by Ex. Engineer is necessary befor use.) ( Spec.No. : As directed by Engineer - in - Charge) | D211: ='Sheet -Office'!O207 -> 3947 | E211: Three Thousand Nine Hundred Fourty Seven Only | F211: One Number | G211: =ROUND(B211*D211,0) -> 0
A213: 69 | B213: ='Sheet -Office'!C209 -> 0 | C213: Conveying the materials obtained from excavation including laying in layers, breaking clods, dressing to the required lines, curves, grades and section for all leads up to 3 Km. from the site of excavation to the site of deposition aeay from complex as directed. (Rd.18 Page No. 197) | D213: ='Sheet -Office'!O209 -> 154.79 | E213: One Hundred Fifty Four & Ps. Seventy Nine Only | F213: One Cubic Meter | G213: =ROUND(B213*D213,0) -> 0
A215: 70 | B215: ='Sheet -Office'!C211 -> 0 | C215: Filling in plinth with approved excavated stuff obtained from departmental land including watering, compacting etc. complete as directed.(Bd. A.10/262) | D215: ='Sheet -Office'!O211 -> 155 | E215: One Hundred Fifty Five Only | F215: One Cubic Meter | G215: =ROUND(B215*D215,0) -> 0
A217: 71 | B217: ='Sheet -Office'!C213 -> 0 | C217: Providing & laying stone metal layer of 20 cm thickness with 60 mm over size metal 65% and 40 mm size metal 35% with sand or stone chips spreading & leveling handpacking complete.[Rd.22/201,Rd.20/200 &Rd.20/205 ] | D217: ='Sheet -Office'!O213 -> 1440.25 | E217: One Thousand Four Hundred Fourty & Ps. Twenty Five Only | F217: One Cubic Meter | G217: =ROUND(B217*D217,0) -> 0
A219: 72 | B219: ='Sheet -Office'!C215 -> 0 | C219: Providing and laying Cast in situ/Ready Mix cement concrete M-15 of trap/ granite/quartzite/gneiss metal for coping to plinth or parapet, moulded or chamfered as per drawing or as directed including steel centering, plywood/ steel formwork compacting, roughening them if special finish is to be provided, finishing uneven and honeycombed surface and curing etc. complete. The Cement Mortar 1:3 plaster is considered for rendering uneven and honeycombed surface only. Newly laid concrete shall be covered by gunny bag, plastic, tarpaulin etc. (Wooden centering will One Numbert be allowed.) With fine aggregate (Natural Sand / Crushed sand VSI Grade finely washed etc) | D219: ='Sheet -Office'!O215 -> 5681.88 | E219: Five Thousand Six Hundred Eighty One & Ps. Eighty Eight Only | F219: One Cubic Meter | G219: =ROUND(B219*D219,0) -> 0
A221: 73 | B221: ='Sheet -Office'!C217 -> 0 | C221: Providing & laying 20 to 25 mm th. Polished Kota stone slabs for treads & risers of steps & staircases with rounded nosing for the treads on a bed of 1:4 C.M. including cement float, filling joints with neat cement slurry,curring,polishing & cleaning complete.(Bd. M.22/390) | D221: ='Sheet -Office'!O217 -> 951.88 | E221: Nine Hundred Fifty One & Ps. Eighty Eight Only | F221: One Cubic Meter | G221: =ROUND(B221*D221,0) -> 0
A223: 74 | B223: ='Sheet -Office'!C219 -> 0 | C223: Providing & fixing chromium plated towel rod 16 mm dia. and 75 Cm in length including all accessories etc. complete ( As directed by Engineer incharge ) ( It No..49/Page No. 119) | D223: ='Sheet -Office'!O219 -> 242 | E223: Two Hundred Fourty Two Only | F223: One Square Meter | G223: =ROUND(B223*D223,0) -> 0
A225: 75 | B225: ='Sheet -Office'!C221 -> 0 | C225: Providing & fixing U.P.S.V. Soil / vent / waste pipe 75 mm dia.of approved make with standing min. pressure of 4 Kg. / Cm. Sq. from standard manufactres with necessary fixture and fittings such as bend, tees, single junction, double junction, slotted vent offsets on walls or in the ground including excavation, laying refilling the trench etc. complete. As directed by Engineer incharge (BDV - 36 C ) ( It No..32/Page No. 115) | D225: ='Sheet -Office'!O221 -> 480 | E225: Four Hundred Eighty Only | F225: One Cubic Meter | G225: =ROUND(B225*D225,0) -> 0
A227: 76 | B227: ='Sheet -Office'!C223 -> 0 | C227: Providing, laying & fixing C.P.V.C pipe 15 mm dia.on wall (with standing 4 Kg. to 6 Kg./ Cm. Sq. pressure) with fittings such as bend, tees, reducers, clamps etc. including necessary excavation trench filling etc. complete. As directed by Engineer incharge (BDV - 60 A ) ( It No..47/Page No. 118) | D227: ='Sheet -Office'!O223 -> 219 | E227: Two Hundred Nineteen Only | F227: One Square Meter | G227: =ROUND(B227*D227,0) -> 0
A229: 77 | B229: ='Sheet -Office'!C225 -> 0 | C229: Providing & fixing a set of 5 fire buckets of special quality 0.03 m diameter including painting lettering & providing M.S. stand, Iron hooks & locking arrangements & three coats of white zince paint for stand etc. complete. as per drawing. As directed by Engineer incharge ( It No..51/Page No. 131) | D229: ='Sheet -Office'!O225 -> 1000 | E229: One Thousand Only | F229: One Running Meter | G229: =ROUND(B229*D229,0) -> 0
A231: 78 | B231: ='Sheet -Office'!C227 -> 0 | C231: Providing & fabricating cycle stand made up of M.S. Angle 50 x 50 x 6 mm & 16 mm diameter including cuting, joining, welding & prepring as per drawing including oil painting in three coats. As directed by Engineer incharge | D231: ='Sheet -Office'!O227 -> 3913 | E231: Three Thousand Nine Hundred Thirteen Only | F231: One Running Meter | G231: =ROUND(B231*D231,0) -> 0
A233: 79 | B233: ='Sheet -Office'!C229 -> 0 | C233: Providing and fixing collapsible steel gate in one/two leaves with hot rolled vertical channels of 18x9x3mm minimum size, crossings of M.S.flats of size 18x5mm Tor E secti on for runner of minimum 40x6mm size for flange, M.S.flat for top runner of minimum size 40x12mm with roller wheels confirming to grade F.G.150 fitted with snap headed rivets of minimum size 6mm max. spacing of vertical channels be 100mm enclosed gate position and clear space of 150mm between two sets of crossings with holdfasts, stoppers, spaces, handles, locking arrangement and one coat of red lead primer and oil painting etc. complete. (I.S. 10521 1983).(BDT.57) | D233: ='Sheet -Office'!O229 -> 2939 | E233: Two Thousand Nine Hundred Thirty Nine Only | F233: One Kilogram | G233: =ROUND(B233*D233,0) -> 0
A235: 80 | B235: ='Sheet -Office'!C231 -> 0 | C235: Free Standing Table @ 1500Lx600Dx750HT Providing and fixing Table of Size 1500x600x750mm. Top: made from 25mm Prelaminated Particle board. All edges are covered by 2mm. Thk. PVC edge bands glued by hot melt glue applied by auto edge banding machine. Legs: C Shape made from CRCA Sheet with Powder Coat finish. Modesty panel: Made from 18mm bothside pre laminated particle boards. Al ledges are covered by 0.8mm PVC edge bands glued by hot melt glue applied by auto edge banding machine. KEYBOARD TRAY (WITHOUT MOUSE TRAY) :- Metal Powder Coated - Black Color, CPU TROLLEY :- Metal Powder Coated - Black Color, 3 DRAWER PEDESTAL UNIT having over all size 392Lx450Dx680Ht. mm. with central lock and key. Drawers and body are complete metal with powder coat finish, facia in 18 mm prelaminated particle board.(51.26/421) | D235: ='Sheet -Office'!O231 -> 16893 | E235: Sixteen Thousand Eight Hundred Ninety Three Only | G235: 0
A237: 81 | B237: ='Sheet -Office'!C233 -> 0 | C237: Providing & Arrangemnt of Mid Back, ECO CTS Mechanism, Fixed Armrest, Gaslift for Seat height adjustment, Standards- prongP/ Nylon Base with Fabric Upholstery (51.43/466). | D237: ='Sheet -Office'!O233 -> 6520 | E237: Six Thousand Five Hundred Twenty Only | G237: 0
A239: 82 | B239: ='Sheet -Office'!C235 -> 0 | C239: Providing and fixing Openable Steel Full Height Steel Storage of 750x450x2100Ht, with 4 adjustable shelves, Complete body & shutter made in 0.8 mm thick & Top in 2 mm thick CRCA, 4 Shutter to be mounted with the help of cup hinges, and 4 adjustable levelers, enitre storage in powder coated finish with 60 to 80 microns as as per drawing. | D239: ='Sheet -Office'!O235 -> 18925 | E239: Eighteen Thousand Nine Hundred Twenty Five Only | G239: 0
B240: In words | C240: Thirty Lakh Sixty Seven Thousand Fourty Three Only | F240: Total | G240: =SUM(G77:G239) -> 0
B242: =Recap!#REF! -> 
A243: ='DSR-Sheet I '!B143 -> 1A | B243: ='DSR-Sheet I '!D143 -> 0 | C243: Excavation for roadway in earth, soil of all sorts, sand, gravel or soft murum including dressing section to the required grade, camber and side slopes and conveying the excavated materials with all lifts upto a lead of 50m. and spreading for embankment or stacking as directed. | D243: ='DSR-Sheet I '!O143 -> 73 | E243: =NumberToWord(D243) -> Seventy Three Only | F243: One Cubic Meter | G243: =ROUND(B243*D243,0) -> 0
A244: ='DSR-Sheet I '!B144 -> 1B | B244: ='DSR-Sheet I '!D144 -> 0 | C244: Excavation for roadway in hard murum and boulder including dressing section to the required grade, camber and side slopes and conveying the excavated materials with all lifts upto a lead of 50m.and spreading for embankment or stacking as directed. | D244: ='DSR-Sheet I '!O144 -> 84 | E244: Eighty Four Only | F244: One Cubic Meter | G244: 0
A245: ='DSR-Sheet I '!B145 -> 1C | B245: ='DSR-Sheet I '!D145 -> 0 | C245: Excavation for roadway in soft rock, including dressing section to the required grade, camber and side slopes and conveying the excavated materials with all lifts upto a lead of 50m. and spreading or stacking as directed. | D245: ='DSR-Sheet I '!O145 -> 120 | E245: One Hundred Twenty Only | F245: One Cubic Meter | G245: 0
A246: ='DSR-Sheet I '!B146 -> 1D | B246: ='DSR-Sheet I '!D146 -> 0 | C246: Excavation for roadway in hard rock by controlled blasting including dressing section to the required grade, camber and side slopes and conveying the excavated materials with all lifts upto a lead of 50m. and spreading for embankment or stocking as directed. | D246: ='DSR-Sheet I '!O146 -> 167 | E246: One Hundred Sixty Seven Only | F246: One Cubic Meter | G246: 0
A247: 1E | B247: ='DSR-Sheet I '!D147 -> 0 | C247: Providing soling using 23 cm trap metal in 15 cm. Layer including filling voids with Crushed sand/grit, ramming, watering etc. complete. | D247: ='DSR-Sheet I '!O147 -> 1402.45 | E247: One Thousand Four Hundred Two & Ps. Fourty Five Only | F247: One Cubic Meter | G247: 0
A248: ='DSR-Sheet I '!B148 -> 2 | B248: ='DSR-Sheet I '!D148 -> 0 | C248: Supplying trap/granite/quartzite/gneiss stone metal of required size by bringing the boulders / Rubble at the road side breaking them to required gradation including conveying the boulders /Rubble and stacking the broken metal etc. complete . (Prior approval of sample stack of broken metal by the Ex. Engineer is necessary the date of approval will form part of the measurements) a) 60 mm Metal, By breaking Boulders (Hand broken). | D248: ='DSR-Sheet I '!O148 -> 1047.45 | E248: One Thousand Fourty Seven & Ps. Fourty Five Only | F248: One Cubic Meter | G248: 0
A249: ='DSR-Sheet I '!B149 -> 3 | B249: ='DSR-Sheet I '!D149 -> 0 | C249: Supplying trap/granite/quartzite/gneiss stone metal of required size by bringing the boulders / Rubble at the road side breaking them to required gradation including conveying the boulders /Rubble and stacking the broken metal etc. complete . (Prior approval of sample stack of broken metal by the Ex. Engineer is necessary the date of approval will form part of the measurements) a) 40 mm Metal, By breaking Boulders (Hand broken). | D249: ='DSR-Sheet I '!O149 -> 1097.45 | E249: One Thousand Ninety Seven & Ps. Fourty Five Only | F249: One Cubic Meter | G249: 0
A250: ='DSR-Sheet I '!B150 -> 4 - A | B250: ='DSR-Sheet I '!D150 -> 0 | C250: Supplying hard murum/ kankar at the road site, including conveying and stacking complete. | D250: ='DSR-Sheet I '!O150 -> 537.71 | E250: Five Hundred Thirty Seven & Ps. Seventy One Only | F250: One Cubic Meter | G250: 0
A251: ='DSR-Sheet I '!B151 -> 4 - B | B251: ='DSR-Sheet I '!D151 -> 0 | C251: Supplying soft murum at the road site, including conveying and stacking complete. | D251: ='DSR-Sheet I '!O151 -> 507.71 | E251: Five Hundred Seven & Ps. Seventy One Only | F251: One Cubic Meter | G251: 0
A252: ='DSR-Sheet I '!B152 -> 5 - A | B252: ='DSR-Sheet I '!D152 -> 0 | C252: Spreading hard murum/ soft murrum/ gravel or kankar for side width complete | D252: ='DSR-Sheet I '!O152 -> 63 | E252: Sixty Three Only | F252: One Cubic Meter | G252: 0
A253: ='DSR-Sheet I '!B153 -> 5 - B | B253: ='DSR-Sheet I '!D153 -> 0 | C253: Spreading soft murum/ soft murrum/ gravel or kankar for side width complete | D253: ='DSR-Sheet I '!O153 -> 63 | E253: Sixty Three Only | F253: One Cubic Meter | G253: 0
A254: ='DSR-Sheet I '!B154 -> 6 | B254: ='DSR-Sheet I '!D154 -> 0 | C254: Spreading 60 mm metal for road work including sectioOne Numberng etc complete as directed by Engineer in charge . | D254: ='DSR-Sheet I '!O154 -> 85 | E254: Eighty Five Only | F254: One Cubic Meter | G254: 0
A255: ='DSR-Sheet I '!B155 -> 7 | B255: ='DSR-Sheet I '!D155 -> 0 | C255: Spreading 40 mm metal for road work including sectioOne Numberng etc complete as directed by Engineer in charge . | D255: ='DSR-Sheet I '!O155 -> 85 | E255: Eighty Five Only | F255: One Cubic Meter | G255: 0
A256: ='DSR-Sheet I '!B156 -> 8A | B256: ='DSR-Sheet I '!D156 -> 0 | C256: Compacting the sub grade/gravel/oversize metal (200 mm loose) layers for all width with Power roller having weight 8 to 10 MT. including necessary, labour, materials and artificial watering complete. | D256: ='DSR-Sheet I '!O156 -> 27 | E256: Twenty Seven Only | F256: One Square Meter | G256: 0
A257: ='DSR-Sheet I '!B157 -> 8B | B257: ='DSR-Sheet I '!D157 -> 0 | C257: Compacting the sub grade/gravel/oversize metal (200 mm loose) layers for all width with Power roller having weight 8 to 10 MT. including necessary, labour, materials and artificial watering complete. | D257: ='DSR-Sheet I '!O157 -> 27 | E257: Twenty Seven Only | F257: One Square Meter | G257: 0
A258: ='DSR-Sheet I '!B158 -> 9 | B258: ='DSR-Sheet I '!D158 -> 0 | C258: Compacting the hard murum side widths including laying in layers on each side with vibratory roller including artificial watering etc.complete. | D258: ='DSR-Sheet I '!O158 -> 16 | E258: Sixteen Only | F258: One Square Meter | G258: 0
A259: ='DSR-Sheet I '!B159 -> 10 | B259: ='DSR-Sheet I '!D159 -> 0 | C259: Providing and fixing trap/ granite/ quartzite/ gneiss guard stone/ indicator stones/ boundary stones of standard size and shape including fixing in block of fixing in M-15 R.C.C. 1:4:8 standard size with white washing etc.complete | D259: ='DSR-Sheet I '!O159 -> 885 | E259: Eight Hundred Eighty Five Only | F259: One Number | G259: 0
A260: ='DSR-Sheet I '!B160 -> 11A | B260: ='DSR-Sheet I '!D160 -> 0 | C260: Excavation for foundation in earth, soil of all types, sand, gravel and soft murum, including removing the excavated material up to a distance of 50 m. beyond the building area and stacking and spreading as directed, dewatering, preparing the bed for the foundation and necessary back filling, ramming, watering including shoring and strutting etc. complete. (Lift upto 1.5 m.) By Mechanical Means | D260: ='DSR-Sheet I '!O160 -> 157 | E260: One Hundred Fifty Seven Only | F260: One Cubic Meter | G260: 0
A261: ='DSR-Sheet I '!B161 -> 11 B | B261: ='DSR-Sheet I '!D161 -> 0 | C261: Excavation for foundation in hard murum including removing the excavated material upto distance of 50 metres beyond the building area and stacking and spreading as directed, dewatering, preparing the bed for the foundation and necessary back filling, ramming, watering including shoring and strutting etc. complete. (Lift upto 1.50 m) By Mechanical Means | D261: ='DSR-Sheet I '!O161 -> 172 | E261: One Hundred Seventy Two Only | F261: One Cubic Meter | G261: 0
A262: ='DSR-Sheet I '!B162 -> 11C | B262: ='DSR-Sheet I '!D162 -> 0 | C262: Excavation for foundation in hard murum and boulders including removing the excavated material up to a distance 50 metres, beyond the building area and stacking and spreading as directed, dewatering, preparing the bed for the foundation and necessary back filling, ramming, watering including shoring and strutting etc. complete. (Lift upto 1.5m.) By Mechanical Means | D262: ='DSR-Sheet I '!O162 -> 191 | E262: One Hundred Ninety One Only | F262: One Cubic Meter | G262: 0
A263: ='DSR-Sheet I '!B164 -> 12 | B263: ='DSR-Sheet I '!D164 -> 0 | C263: Providing and laying in situ / ready mix / ready mix M10 cement concrete of trap/ granite/ quartzite/ gneiss metal in foundation including necessary centering, formwork, bailing out water, compacting and curing etc. complete.(pan mixer) with natural /artifical sand) | D263: ='DSR-Sheet I '!O164 -> 5014.88 | E263: Five Thousand Fouteen & Ps. Eighty Eight Only | F263: One Cubic Meter | G263: 0
A264: ='DSR-Sheet I '!B165 -> 13 | B264: ='DSR-Sheet I '!D165 -> 0 | C264: Providing uncoursed rubble masonry of trap / granite / quartzite / gneiss stones in cement mortar 1:6 in foundation and plinth of inner walls / in plinth of external walls including bailing out water manually , striking joints on un exposed faces and watering etc.complete. | D264: ='DSR-Sheet I '!O165 -> 4457.62 | E264: Four Thousand Four Hundred Fifty Seven & Ps. Sixty Two Only | F264: One Cubic Meter | G264: 0
A265: ='DSR-Sheet I '!B166 -> 14 | B265: ='DSR-Sheet I '!D166 -> 0 | C265: Providing and fixing in position TMT - FE - 500 bar reinforcement of various diameters for R.C.C. pile caps, footings, foundations, slabs, beams columns, caOne Numberpies, staircase, newels, chajjas, lintels pardis, copings, fins, arches etc. as per detailed designs, drawings and schedules. including cutting, bending, hooking the bars, binding with wires or tack welding and supporting as required complete. | D265: ='DSR-Sheet I '!O166 -> 62581 | E265: Sixty Two Thousand Five Hundred Eighty One Only | F265: One Metric Tonne | G265: 0
A266: ='DSR-Sheet I '!B167 -> 15 | B266: ='DSR-Sheet I '!D167 -> 0 | C266: Providing and laying Cast in situ/Ready Mix cement concrete M-30 of trap / granite /quartzite/ gneiss metal for R.C.C. beams and lintels as per detailed designs and drawings or as directed including steel centering, formwork, cover blocks, laying/pumping, compaction and roughening the surface if special finish is to be provided and curing etc. complete. (Excluding reinforcement and structural steel). With fine aggregate (Natural Sand / Crushed sand VSI Grade finely washed etc) | D266: ='DSR-Sheet I '!O167 -> 9946.57 | E266: Nine Thousand Nine Hundred Fourty Six & Ps. Fifty Seven Only | F266: One Cubic Meter | G266: 0
A267: ='DSR-Sheet I '!B168 -> 16 | B267: ='DSR-Sheet I '!D168 -> 0 | C267: Providing internal cement plaster 20mm thick in two coats in cement mortar 1:4 with cement slurry finish, to concrete, brick surface, in all positions including scaffolding and curing etc.complete. | D267: ='DSR-Sheet I '!O168 -> 411.91 | E267: Four Hundred Eleven & Ps. Ninety One Only | F267: One Square Meter | G267: 0
A268: 17 | B268: ='DSR-Sheet I '!D169 -> 0 | C268: Providing pointing with Cement Morter (1: 3) for stone masonary including scaffolding curing etc. complete [Bd. L. 15 / 372] | D268: ='DSR-Sheet I '!O169 -> 149 | E268: One Hundred Fourty Nine Only | F268: =F257 -> One Square Meter | G268: 0
A269: ='DSR-Sheet I '!B170 -> 18 | B269: ='DSR-Sheet I '!D170 -> 0 | C269: Providing & laying C. C. pipe of NP2 class 600 mm dia metre in proper line, level & slope including providing & laying in position the coller in C. M. 1 : 2 etc. complete. | D269: ='DSR-Sheet I '!O170 -> 1480 | E269: One Thousand Four Hundred Eighty Only | F269: One Running Meter | G269: 0
A270: ='DSR-Sheet I '!B171 -> 19 | B270: ='DSR-Sheet I '!D171 -> 0 | C270: Supplynig & spreading Hard mumrum for cushioning of R C C pipe including watering rammi ng & leveling etc complete. | D270: ='DSR-Sheet I '!O171 -> 733.21 | E270: Seven Hundred Thirty Three & Ps. Twenty One Only | F270: One Cubic Meter | G270: 0
A271: ='DSR-Sheet I '!B172 -> 20 | B271: ='DSR-Sheet I '!D172 -> 0 | C271: Providing & laying in situ cement concrete 1 : 2 : 4 of trap metal for coping to column & compound wall moulded chamfered as per drawing and design as directed including necessary centering, formwork, compaction, finishing the formed surface with C. M. 1 : 3 of sufficient minimum thickness to give smooth finish and even surface or roughening if special finish is to be provided and curing etc. complete. (Excluding reinforcement) | D271: ='DSR-Sheet I '!O172 -> 1511.54 | E271: One Thousand Five Hundred Eleven & Ps. Fifty Four Only | F271: One Cubic Meter | G271: 0
A272: ='DSR-Sheet I '!B173 -> 21 | B272: ='DSR-Sheet I '!D173 -> 0 | C272: Providing soling using 80 mm size trap metal in 15 cm. layer including filling voids with Crushed sand/grit, ramming, watering etc. complete. | D272: 0 | E272: Only | G272: 0
A273: ='DSR-Sheet I '!B174 -> 22A | B273: ='DSR-Sheet I '!D174 -> 0 | C273: Providing earth work in embankment with approved materials obtained from departmental land upto lead of 50m. including all lifts, laying in layers of 20cm. to 30cm. thickness breaking clods, dressing to the required lines, curves, grades & section, watering and compaction with vibratory roller to achieve One Numbert less than 97 % of standard proctor density etc. complete. (Material obtained from departmental Land) | D273: ='DSR-Sheet I '!O174 -> 155 | E273: One Hundred Fifty Five Only | F273: One Cubic Meter | G273: 0
A274: ='DSR-Sheet I '!B175 -> 22B | B274: ='DSR-Sheet I '!D175 -> 0 | C274: Providing embankment with approved hard murum obtained from other sources including all leads & lifts, laying in layers of 20cm. to 30cm. thickness breaking clods, dressing to the required lines, curves, grades & section, watering and compaction with vibratory roller with V-Sat attachment to achieve One Numbert less than 97 % of standard proctor density etc. complete ( Material obtained from Other sources) | D274: ='DSR-Sheet I '!O175 -> 634.71 | E274: Six Hundred Thirty Four & Ps. Seventy One Only | F274: One Cubic Meter | G274: 0
A275: ='DSR-Sheet I '!B176 -> 23 | B275: ='DSR-Sheet I '!D176 -> 0 | C275: Conveying materials obtained from road cutting including all lifts, laying in layers of 20cm to 30cm. breaking clods, dressing to the required lines, curves, grades and section, watering and compacting to One Numbert less than 97% of standard Proctor density for a lead of over 50m. to 300m. inclusive from the site of excavation to the site of deposition as directed. | D275: ='DSR-Sheet I '!O176 -> 139 | E275: One Hundred Thirty Nine Only | F275: One Cubic Meter | G275: 0
A276: ='DSR-Sheet I '!B177 -> 24 | B276: ='DSR-Sheet I '!D177 -> 0 | C276: Conveying the materials obtained from excavation including all lifts, laying in layers, breaking clods, dressing to the required lines, curves, grades and section for all leads & lifts from the site of excavation to the site of deposition as directed. | D276: ='DSR-Sheet I '!O177 -> 186.55 | E276: One Hundred Eighty Six & Ps. Fifty Five Only | F276: One Cubic Meter | G276: =ROUND(B276*D276,0) -> 0
A277: 25 | B277: ='DSR-Sheet I '!D178 -> 0 | C277: ='DSR-Sheet I '!C178 -> 0 | D277: ='DSR-Sheet I '!O178 -> 138 | E277: One Hundred Thirty Eight Only | F277: One Square metre | G277: =ROUND(B277*D277,0) -> 0
B278: In words | C278: =NumberToWord(G278) -> Two Only | F278: Total | G278: =SUM(G243:G277)-27 -> -27
B281: =Recap!#REF! -> 
A282: ='DSR-Sheet I '!B187 -> 1 | B282: ='DSR-Sheet I '!D187 -> 0 | C282: Excavation for foundation in earth, soil of all types, sand, gravel and soft murum, including removing the excavated material up to a distance of 50 m. beyond the building area and stacking and spreading as directed, dewatering, preparing the bed for the foundation and necessary back filling, ramming, watering including shoring and strutting etc. complete. (Lift upto 1.5 m.) By Mechanical Means | D282: ='DSR-Sheet I '!O187 -> 157 | E282: =NumberToWord(D282) -> One Hundred Fifty Seven Only | F282: One Cubic Meter | G282: =ROUND(B282*D282,0) -> 0
A284: ='DSR-Sheet I '!B189 -> 2 | B284: ='DSR-Sheet I '!D189 -> 0 | C284: Excavation for foundation in hard murum including removing the excavated material upto distance of 50 metres beyond the building area and stacking and spreading as directed, dewatering, preparing the bed for the foundation and necessary back filling, ramming, watering including shoring and strutting etc. complete. (Lift upto 1.50m) By Mechanical Means | D284: ='DSR-Sheet I '!O189 -> 172 | E284: One Hundred Seventy Two Only | F284: One Cubic Meter | G284: 0
A286: ='DSR-Sheet I '!B191 -> 3 | B286: ='DSR-Sheet I '!D191 -> 0 | C286: Excavation for foundation in hard murum and boulders including removing the excavated material up to a distance 50 metres, beyond the building area and stacking and spreading as directed, dewatering,preparing the bed for the foundation and necessary back filling,ramming, watering including shoring and strutting etc. complete. (Lift upto 1.5m.) By Mechanical Means | D286: ='DSR-Sheet I '!O191 -> 191 | E286: One Hundred Ninety One Only | F286: One Cubic Meter | G286: 0
A288: ='DSR-Sheet I '!B193 -> 4 | B288: ='DSR-Sheet I '!D193 -> 0 | C288: Excavation for foundation in Soft rock and old cement or lime masonry foundations including removing the excavated material upto a distance of 50 metres beyond the building area and stacking as directed, including dewatering, preparing the bed for the foundation and necessary back filling with available earth /murum, ramming watering including shoring and strutting etc. complete (lift upto 1.5m) By Mechanical Means | D288: ='DSR-Sheet I '!O193 -> 329 | E288: Three Hundred Twenty Nine Only | F288: One Cubic Meter | G288: 0
A290: ='DSR-Sheet I '!B195 -> 5 | B290: ='DSR-Sheet I '!D195 -> 0 | C290: Providing soling using 80mm size trap metal in15cm.layer including filling voids with Crushed sand/grit, ramming, watering etc. complete. | D290: ='DSR-Sheet I '!O195 -> 1402.45 | E290: One Thousand Four Hundred Two & Ps. Fourty Five Only | F290: One Cubic Meter | G290: 0
A292: ='DSR-Sheet I '!B197 -> 6 | B292: ='DSR-Sheet I '!D197 -> 0 | C292: Providing and filling in the foundation with sand of approved quality including watering, compacting etc.complete.(To be executed with prior approval of Superintending Engineer) | D292: ='DSR-Sheet I '!O197 -> 3057.55 | E292: Three Thousand Fifty Seven & Ps. Fifty Five Only | F292: One Cubic Meter | G292: 0
A294: ='DSR-Sheet I '!B199 -> 7 | B294: ='DSR-Sheet I '!D199 -> 0 | C294: Providing and laying Cast in situ / Ready Mix cement concrete in M-10 of trap / granite/quartzite/gneiss metal for foundation and bedding including bailing out water, Steel centering, formwork, laying / pumping, compacting, roughening them if special finish is to be provided, finishing if required and curing complete, With fine aggregate (Natural Sand/Crusheds and VSI Grade finely washed etc) | D294: ='DSR-Sheet I '!O199 -> 5341.48 | E294: Five Thousand Three Hundred Fourty One & Ps. Fourty Eight Only | F294: One Cubic Meter | G294: 0
A296: ='DSR-Sheet I '!B201 -> 8 | B296: ='DSR-Sheet I '!D201 -> 0 | C296: Filling in plinth and floors with approved excavated materials approved by Engineer in charge in layers of 15cmto20cm including watering and compaction etc. complete. | D296: ='DSR-Sheet I '!O201 -> 440 | E296: Four Hundred Fourty Only | F296: One Cubic Meter | G296: 0
A298: ='DSR-Sheet I '!B203 -> 9 | B298: ='DSR-Sheet I '!D203 -> 0 | C298: Providing and fixing H.D.P container Syntex only 3 layer one piece moulded water tank made out of low density polythyler and built corrugation including of delivery up to destination hoisting and fixing of accessories such as inlet, outlet overflow of all tanks capacity above 1000 to 20,000 litres ( Syntex only ) | D298: ='DSR-Sheet I '!O203 -> 11 | E298: Eleven Only | F298: One Liter | G298: 0
... 111 more rows

Sheet Shedule B Abst (hidden)
A1: MAHARASHTRA STATE WAREHOUSING CORPORATION
A2: ( A Govt. Public Sector Undertaking)
A3: 583/B, MARKET YARD, GULTEKADI, PUNE-411037
A5: =Recap!B6 -> NAME OF WORK :- CONSTRUCTION OF 1/2160 MT CAP PRE- ENGINEERED WH BLDG WITH ANCILLARY WORKS AT: NAGZARI DIST. LATUR
A7: Total amount of Schedule - 'B'
A9: A B S T R A C T
B12: ='Shedule B'!B14:C14 -> S.W. I - W.H.BUILDING 1/2160M T | C12: Rs. | D12: ='Shedule B'!G72 -> 7527737
B13: S.W. II -OFFICE BUILDING | C13: Rs. | D13: ='Shedule B'!G240 -> 0
B14: ='Shedule B'!B242:C242 ->  | C14: Rs. | D14: 0
B15: ='Shedule B'!B281:C281 ->  | C15: Rs. | D15: 0
B16: ='Shedule B'!B336 ->  | C16: Rs. | D16: 0
B17: ='Shedule B'!B373:C373 ->  | C17: Rs. | D17: 0
B18: ='Shedule B'!B405:C405 ->  | C18: Rs. | D18: 0
B19: ='Shedule B'!B436:C436 -> Sub work III:- Material Lab Testing charges | C19: Rs. | D19: ='Shedule B'!G460 -> 79550
B20: ='Shedule B'!B462:C462 -> SUBWORK IV :- Royalty Charges | C20: Rs. | D20: ='Shedule B'!G468 -> 223651
B21: PEB STRUCTURE | C21: Rs. | D21: =Recap!#REF! -> 
B22: Total | C22: Rs. | D22: =SUM(D12:D21) -> 
A25: In Words :- | B25: =NumberToWord(D22) -> 

Sheet TS (2)
A2: MAHARASHTRA STATE WAREHOUSING CORPORATION
C3: 583/B, Market Yard, Gultekadi, Pune-37
C4: Tel. 020-,24206850/55
A5: Email: - enggbranch.ho@mswc.in, gmengg@mswc.in Website: mswarehousing.com
H6: Dated :-
A10: TECHNICAL SANCTION
A12: NAME OF WORK | C12: CONSTRUCTION OF 1/2160 MT CAP PRE- ENGINEERED WH BLDG WITH ANCILLARY WORKS AT: NAGZARI DIST. LATUR
B13: This is certified that,
B14: Technical sanction has been accorded to the Construction of 1/2160 MT Cap.Pre -Engineered Wh Bldg. With ancillary work for Vikas Agro Producer Co.Ltd. At Nagzari Latur,Dist.Latur and is amounting to Rs. 1,43,09,267/-
B16: (In words Rupees One Crore Fourty Three Lakh Nine Thousand Two Hundread Sixty Seven Only)
B17: The Estimate is sanctioned in Hon.Balasaheb Thakare Agri Business And Rural Transforamation (SMART ) Project,Pune .
F21: GENERAL MANAGER (ENGG)
F22: MSWC PUNE

Sheet Recap
A1: ='DSR-Sheet I '!B52 -> VIKAS AGRO PRODUCER CO.LTD
A2: ='Wh. '!B3 -> Gat No.79 / Nagzari, Tal- Latur Dist- Latur
B4: R E C A P U L A T I O N S H E E T
B6: ='Wh. '!B5 -> NAME OF WORK :- CONSTRUCTION OF 1/2160 MT CAP PRE- ENGINEERED WH BLDG WITH ANCILLARY WORKS AT: NAGZARI DIST. LATUR
G8: ='Wh. '!C6 -> 2160
B10: ='DSR-Sheet I '!D5 -> Based on E S S R -2019-20 & MR
G11: Rate per MT | H11: Rate per Unit
B12: PARTICULARS | C12: UNIT | D12: Unit | F12: AMOUNT
B14: ='DSR-Sheet I '!C56 -> S.W. I - W.H.BUILDING 1/2160M T | C14: ='Wh. '!K7 -> 1144.5616 | D14: sq m | E14: Rs | F14: ='DSR-Sheet I '!P124 -> 7549178 | G14: =F14/G8 -> 3494.989815 | H14: =F14/C14 -> 6595.693932 | I14: 13280899
B16: =EL!B11 -> S.W. II - Elecrification | C16: =G8 -> 2160 | D16: MT | E16: Rs | F16: =EL!K44 -> 106524.95
B18: ='Lab Tests'!A3 -> Sub work III:- Material Lab Testing charges | E18: Rs | F18: ='Lab Tests'!H33 -> 79550 | I18: 135750
B20: ='Royaly '!B8:M8 -> SUBWORK IV :- Royalty Charges | E20: Rs | F20: ='Royaly '!J105 -> 223652 | I20: 831680
B22: Above Plinth (PEB WH. BLDG.) | C22: ='Wh. '!K8 -> 1111 | D22: sq m | E22: Rs | F22: ='DSR-Sheet I '!P130 -> 4116425.74 | G22: =F22/G8 -> 1905.752657 | H22: =F22/C22 -> 3705.153681
B24: Gross Total ( Civil + PEB ) | E24: Rs | F24: =SUM(F14:F23) -> 12075330.69 | G24: =F24/$G$8 -> 5590.430875 | H24: =F24/C14 -> 10550.17982
B27: Add GST 18% | E27: Rs | F27: =F24*0.18 -> 2173559.524
B29: Add 0.50% labour Insurance | E29: Rs | F29: =F24*0.5% -> 60376.65345
B31: Grand Total | E31: Rs | F31: =SUM(F24:F30) -> 14309266.87 | G31: =F31/$G$8 -> 6624.660587 | H31: =F31/C14 -> 12501.96308
B43: PARTICULARS | C43: UNIT | D43: Unit | F43: AMOUNT
B45: S.W. I - W.H.BUILDING 2/3600M T | C45: ='Wh. '!K59 -> 0 | D45: sq m | E45: Rs | F45: 13325855.99 | G45: =F45/G39 ->  | H45: =F45/C$14 -> 11642.75998
B47: Above Plinth (PEB WH. BLDG.) | C47: ='Wh. '!K60 -> 0.6 | D47: sq m | E47: Rs | F47: 9949767.631 | G47: =F47/$G$8 -> 4606.373903 | H47: =F47/C47 -> 16582946.05
B49: Total cost of godown | F49: =SUM(F45:F47) -> 23275623.62 | G49: =SUM(G45:G47) ->  | H49: =SUM(H45:H47) -> 16594588.81
B77: Add GST 12% on civil work except PEB | E77: Rs | F77: =F45*0.12 -> 1599102.718
B79: Add GST 18% on PEB | E79: Rs | F79: =F47*0.18 -> 1790958.174
B81: Add 0.50% labour Insurance | E81: Rs | F81: =F49*0.05 -> 1163781.181
B83: Grand Total | E83: Rs | F83: =F81+F79+F77+F49 -> 27829465.69 | G83: =F83/G8 -> 12884.01189

Sheet DSR-Sheet I
B1: ='Wh. '!B2 -> VIKAS AGRO PRODUCER CO.LTD
B2: ='Wh. '!B3 -> Gat No.79 / Nagzari, Tal- Latur Dist- Latur
C3: ='Wh. '!B5 -> NAME OF WORK :- CONSTRUCTION OF 1/2160 MT CAP PRE- ENGINEERED WH BLDG WITH ANCILLARY WORKS AT: NAGZARI DIST. LATUR | R3: 1:5:10 PCC | S3: 01:02:04 | T3: RCC M20 | U3: UCR | V3: BBM | W3: HM | X3: Steel Bar | Y3: Struct. Steel | Z3: Plaster | AA3: 40/60 MM | AB3: HM for Road
C5: LEADS & RATES OF MATERIALS | D5: Based on E S S R -2019-20 & MR
B7: S.N. | C7: MATERIAL & LOCATION | D7: UNIT | E7: LEADS | F7: CHARGES | H7: LEAD | I7: Pay load | J7: NET | K7: rate/unit
E8: KM | F8: ACTUAL | G8: INITIAL | H8: DIFF | I8: Factor | R8: =477.85+((532.55-477.85)/5)*2.5 -> 505.2
B9: 1 | C9: SAND | D9: CU M | E9: 89 | F9: =M9 -> 1036.551 | G9: 0 | H9: =F9-G9 -> 1036.551 | I9: 1 | J9: =H9 -> 1036.551 | K9: =H9/I9 -> 1036.551 | M9: =((1046.46-947.37)/10*9)+947.37 -> 1036.551
B10: 2 | C10: METAL UPTO 40MM crushed | D10: CU M | E10: 18 | F10: =M10 -> 347.446 | G10: 0 | H10: =F10-G10 -> 347.446 | I10: 1 | J10: =H10 -> 347.446 | K10: =H10/I10 -> 347.446 | M10: =((369.63-314.17)/5*3)+314.17 -> 347.446
B11: 3 | C11: METAL ABOVE 40 MM Road | D11: CU M | E11: 18 | F11: =M11 -> 347.446 | G11: 0 | H11: 347.446 | I11: 1 | J11: =H11 -> 347.446 | K11: =H11/I11 -> 347.446 | M11: =((369.63-314.17)/5*3)+314.17 -> 347.446
B12: 4 | C12: RUBBLE | D12: CU M | E12: 18 | F12: =M12 -> 443.546 | G12: 0 | H12: 443.546 | I12: 1 | J12: =H12 -> 443.546 | K12: =H12/I12 -> 443.546 | M12: =((471.87-401.06)/5*3)+401.06 -> 443.546
B13: 5 | C13: BRICKS | D13: Cum | E13: 18 | F13: =M13 -> 501.268 | G13: 0 | H13: 501.268 | I13: 1 | J13: =H13 -> 501.268 | K13: =H13/I13 -> 501.268 | M13: =((540.88-441.85)/5*3)+441.85 -> 501.268
C14: ( 475 bricks per Cum )
B15: 6 | C15: HARD MURUM/Soft Murumn | D15: CU M | E15: 5 | F15: =M15 -> 210.71 | G15: 0 | H15: 210.71 | I15: 1 | J15: =H15 -> 210.71 | K15: =H15/I15 -> 210.71 | M15: 210.71
B16: 7 | C16: Royalty | D16: 1 | E16: 141.34
C17: Cement | E17: 5 | F17: =F15 -> 210.71 | H17: =F17 -> 210.71 | I17: =7.5*20 -> 150 | J17: =H17/I17 -> 1.404733333 | K17: =J17 -> 1.404733333
C18: Steel | E18: 5 | F18: =F17 -> 210.71 | H18: =F18 -> 210.71 | K18: =F18 -> 210.71
E20: QTY | F20: RATE | G20: AMOUNT
B21: 1 | C21: C.C. M 10 for foundation & beddding | D21: SAND | E21: 0.47 | F21: =K9 -> 1036.551 | G21: =E21*F21 -> 487.17897
D22: METAL | E22: 0.94 | F22: =H10 -> 347.446 | G22: =E22*F22 -> 326.59924
D23: Total | G23: =SUM(G21:G22) -> 813.77821 | I23: The centre under MIDC area
B24: 2 | C24: P & C U.C.R masonary | D24: SAND | E24: 0.4 | F24: =F21 -> 1036.551 | G24: =E24*F24 -> 414.6204 | I24: Hence percentage required to be added will be percentage | M24: 0
D25: RUBBLE | E25: 1.16 | F25: =H12 -> 443.546 | G25: =E25*F25 -> 514.51336 | I25: BLDG.WORKS | M25: 0
D26: ROYALTY | E26: 0 | F26: =E16 -> 141.34 | G26: =E26*F26 -> 0 | I26: Tribal Area | M26: 0
D27: Total | G27: =SUM(G24:G26) -> 929.13376 | I27: SERVICE CHARGES. | M27: 0
B28: 3 | C28: P &C B.B. masonary in plinth & S.S | D28: SAND | E28: 0.32 | F28: =F24 -> 1036.551 | G28: =E28*F28 -> 331.69632 | I28: Total Tax | M28: =SUM(M24:M27) -> 0
D29: BRICKS | E29: 0.475 | F29: =J13 -> 501.268 | G29: =E29*F29 -> 238.1023
D30: Total | G30: =SUM(G28:G29) -> 569.79862
B31: 4 | C31: P & L R.C.C. (M-25) | D31: SAND | E31: 0.385 | F31: =F28 -> 1036.551 | G31: =E31*F31 -> 399.072135
D32: METAL | E32: 0.77 | F32: =F22 -> 347.446 | G32: 267.53342
D33: Total | G33: =SUM(G31:G32) -> 666.605555
B34: 4-A | C34: P & L R.C.C. M 15 | D34: SAND | E34: =E31 -> 0.385 | F34: =F31 -> 1036.551 | G34: 399.072135
D35: METAL | E35: =E32 -> 0.77 | F35: =F32 -> 347.446 | G35: 267.53342
G36: =SUM(G34:G35) -> 666.605555
B37: 5 | C37: P & A 25mm tk plaster | D37: SAND | E37: 0.031 | F37: =F34 -> 1036.551 | G37: =E37*F37 -> 32.133081
D38: ROYALTY | E38: 0 | F38: 0 | G38: 0
D39: Total | G39: =SUM(G37:G38) -> 32.133081
B40: 6 | C40: P & A 20 mm tk plaster | D40: SAND | E40: 0.025 | F40: =F37 -> 1036.551 | G40: 25.913775
D41: ROYALTY | E41: 0 | F41: 0 | G41: 0
D42: Total | G42: =SUM(G40:G41) -> 25.913775
B43: 7 | C43: P & F ploished shahabad for sills & dado | D43: SAND | E43: 0.024 | F43: =F40 -> 1036.551 | G43: 24.877224
D44: ROYALTY | E44: 0 | F44: 0 | G44: 0
D45: Total | G45: =SUM(G43:G44) -> 24.877224
B46: 8 | C46: P & C half brick wall | D46: sand | E46: 0.036 | F46: =F43 -> 1036.551 | G46: 37.315836
C47: 50 bricks per SQM | D47: bricks | E47: 1 | F47: =50*H13/475 -> 52.76505263 | G47: 52.76505263
D48: ROYALTY | E48: 0 | F48: 0 | G48: 0
D49: Total | G49: =SUM(G46:G48) -> 90.08088863
B50: 9 | C50: P & a flush pointing in c.m.1:3 for stone masonary | D50: sand | E50: 0.003 | F50: =F46 -> 1036.551 | G50: 3.109653
D51: ROYALTY | E51: =E48 -> 0 | F51: 0 | G51: 0
B52: =B1 -> VIKAS AGRO PRODUCER CO.LTD | AF52: 2
B53: =B2 -> Gat No.79 / Nagzari, Tal- Latur Dist- Latur
C54: =C3 -> NAME OF WORK :- CONSTRUCTION OF 1/2160 MT CAP PRE- ENGINEERED WH BLDG WITH ANCILLARY WORKS AT: NAGZARI DIST. LATUR
C55: RATE ANALYSIS
C56: S.W. I - W.H.BUILDING 1/2160M T | J56: =D5 -> Based on E S S R -2019-20 & MR
B59: I.N. | C59: DESCRIPTON OF ITEM | D59: QTY. | E59: UNIT | F59: I.N./ P.N | G59: BASIC | H59: LEAD CHARGES | J59: Deduct SCADA | K59: TOTAL | L59: Add 0 % | M59: TOTAL OF | N59: ADD % | O59: TOTAL OF | P59: AMOUNT | AC59: REMARKS
G60: RATE | H60: SAND | I60: METAL | L60: C Area | M60: RATES | N60: FOR | O60: RATES
H61: HM | I61: Bricks | J61: 0.05 | L61: Charges | M61: 6 TO 11 | N61: CHARGES | O61: 6 TO 14
J62: 0.05 | L62: 0 | N62: =M28 -> 0
A63: Sr No | B63: 1 | C63: 2 | D63: 3 | E63: 4 | F63: 5 | G63: 6 | H63: 7 | I63: 8 | J63: 9 | K63: 10 | L63: 11 | M63: 12 | N63: 13 | O63: 14 | P63: 15
B65: 1' | C65: Labour charges for removing grass | D65: ='Wh. '!M86 -> 0 | E65: sq m | F65: M.R. | G65: 2 | K65: =SUM(G65:J65) -> 2 | M65: =K65+L65 -> 2 | N65: =M65*$N$62 -> 0 | O65: =ROUND(M65+N65,2) -> 2 | P65: =D65*O65 -> 0 | AC65: =P65 -> 0
B66: 1" | C66: Cutting down trees 30 cms to 60 cms dia. | D66: ='Wh. '!M92 -> 0 | E66: Nos. | F66: 2.01/26 | G66: 411 | K66: =SUM(G66:J66) -> 411 | M66: 411 | N66: 0 | O66: 411 | P66: 0
A67: ='Wh. '!A94 -> 1 | B67: 1-A | C67: Ex for foundation in soil , soft murum up to 1.5 m etc | D67: ='Wh. '!M114 -> 265 | E67: cu m | F67: 21.02/197 | G67: 157 | K67: 157 | M67: 157 | N67: 0 | O67: 157 | P67: =D67*O67 -> 41605
A68: ='Wh. '!A116 -> 2 | B68: 1-A' | C68: Ex for foundation in soil from 1.50 m to 3.00 m etc | D68: ='Wh. '!M125 -> 1 | E68: cu m | F68: 21.04/197 | G68: 196 | K68: 196 | M68: 196 | N68: 0 | O68: 196 | P68: 196
B69: (1-A") | C69: Ex for foundation in Soil, upto 3.00 to 4.5 meters | D69: 0 | E69: cu m | F69: 21.04/187 | G69: 0 | K69: 0 | M69: 0 | N69: 0 | O69: 0 | P69: 0
A70: ='Wh. '!A147 -> 3 | B70: 1-B | C70: Ex for foundation in H.m. up to 1.50 m etc | D70: ='Wh. '!M165 -> 44 | E70: cu m | F70: 21.06/197 | G70: 172 | K70: 172 | M70: 172 | N70: 0 | O70: 172 | P70: 7568
B71: 1-B' | C71: Ex for foundation in H.m. from 1.50 m to 3.00 mtr. etc | D71: 0 | E71: cu m | F71: 21.08/197 | G71: 215 | K71: 215 | M71: 215 | N71: 0 | O71: 215 | P71: 0
B72: 1-C | C72: Ex for foundation in H.m. & boulder 1.50 m etc | D72: 0 | E72: cu m | F72: 21.10/197 | G72: 191 | K72: 191 | M72: 191 | N72: 0 | O72: 191 | P72: 0
B73: 1-C' | C73: Ex for foundation in H.m. & boulder 1.50 m etc | D73: 0 | E73: cu m | F73: 21.12/198 | G73: 236 | K73: 236 | M73: 236 | N73: 0 | O73: 236 | P73: 0
B74: 1-D | C74: Ex for foundation in soft rock up to 1.50 m | D74: 0 | E74: cu m | F74: 21.14/198 | G74: 329 | K74: 329 | M74: 329 | N74: 0 | O74: 329 | P74: 0
B75: 1-E | C75: Ex for foundation in hard rock up to 1.50 m by chiselling | D75: ='Wh. '!M169 -> 0 | E75: cu m | F75: 21.17/198 | G75: 670 | K75: 670 | M75: 670 | N75: 0 | O75: 670 | P75: 0 | R75: =D75 -> 0
A76: ='Wh. '!A171 -> 4 | B76: 1-F | C76: Ex in hard rock up to 1.50 m by proclain machine | D76: ='Wh. '!M189 -> 32 | E76: cu m | F76: 21.17/197 | G76: 670 | K76: 670 | M76: 670 | N76: 0 | O76: 670 | P76: 21440 | U76: =D76 -> 32 | AC76: =P76 -> 21440
B77: 1-G | C77: Ex inside plinth in soil , soft murum etc | D77: 0 | E77: cu m | F77: 2.11/27 | G77: 73 | K77: 73 | M77: 73 | N77: 0 | O77: 73 | P77: 0 | V77: =D77 -> 0
B78: 1 - H | C78: Ex inside plinth in Hard murum etc | D78: 0 | E78: cu m | F78: 2.13/27 | G78: 84 | K78: 84 | M78: 84 | N78: 0 | O78: 84 | P78: 0 | X78: =D78 -> 0
B79: 1-I | C79: P/F Dowel bars | D79: 0 | E79: No | F79: 51.14/512 | G79: 403 | K79: 403 | M79: 403 | N79: 0 | O79: 403 | P79: 0
A80: ='Wh. '!A190 -> 5 | B80: 2 | C80: P & L P.C.C.M 10 for foundation & bedding | D80: ='Wh. '!M210 -> 100 | E80: cu m | F80: 24.01/226 | G80: 4766 | H80: =G21 -> 487.17897 | I80: =G22 -> 326.59924 | J80: =-G80*$J$62 -> -238.3 | K80: 5341.47821 | M80: 5341.47821 | N80: 0 | O80: 5341.48 | P80: 534148 | T80: =D80 -> 100
B81: 3 | C81: P & C U.C.R masonary for foundation & plinth in C.M.1:6 | D81: ='Wh. '!M217 -> 0 | E81: cu m | F81: 28.01/257 | G81: 4043 | H81: =G24 -> 414.6204 | I81: =G25 -> 514.51336 | K81: 4972.13376 | M81: 4972.13376 | N81: 0 | O81: 4972.13 | P81: 0 | T81: =D81 -> 0
A82: ='Wh. '!A218 -> 6 | B82: 4 | C82: P &C B.B. masonary for foundation & plinth in C.M.1:6 | D82: ='Wh. '!M229 -> 28 | E82: cu m | F82: 27.01/254 | G82: 5820 | H82: =G28 -> 331.69632 | I82: =G29 -> 238.1023 | K82: 6389.79862 | M82: 6389.79862 | N82: 0 | O82: 6389.8 | P82: 178914.4 | T82: =D82 -> 28
A83: ='Wh. '!A242 -> 7 | B83: 5 | C83: P & F TMT bar reinforcement | D83: ='Wh. '!M246 -> 14.72 | E83: M T | F83: 26.33/245 | G83: 62581 | K83: 62581 | M83: 62581 | N83: 0 | O83: 62581 | P83: 921192.32 | T83: =D83 -> 14.72
A84: ='Wh. '!A248 -> 8 | B84: 6 | C84: P & L R.C.C. M-25 for footing | D84: ='Wh. '!M258 -> 19 | E84: cu m | F84: 25.13/232 | G84: 5846 | H84: =G31 -> 399.072135 | I84: =G32 -> 267.53342 | J84: =-G84*$J$62 -> -292.3 | K84: 6220.305555 | M84: 6220.305555 | N84: 0 | O84: 6220.31 | P84: 118185.89 | T84: =D84 -> 19
A85: ='Wh. '!A260 -> 9 | B85: 7 | C85: P & L R.C.C. M-25 for column | D85: ='Wh. '!M283 -> 33 | E85: cu m | F85: 25.33/233 | G85: 11394 | H85: =H84 -> 399.072135 | I85: =I84 -> 267.53342 | J85: =-G85*$J$62 -> -569.7 | K85: 11490.90555 | M85: 11490.90555 | N85: 0 | O85: 11490.91 | P85: 379200.03 | V85: =D85 -> 33
A86: ='Wh. '!A285 -> 10 | B86: 8 | C86: P & L R.C.C. M-25 for beams & lintels | D86: ='Wh. '!M321 -> 59 | E86: cu m | F86: 25.52/235 | G86: 10050 | H86: =H85 -> 399.072135 | I86: =I84 -> 267.53342 | J86: =-G86*$J$62 -> -502.5 | K86: 10214.10556 | M86: 10214.10556 | N86: 0 | O86: 10214.11 | P86: 602632.49 | S86: =D86 -> 59
A87: ='Wh. '!A323 -> 11 | B87: 9 | C87: P & L R.C.C. M-25 for slabs | D87: ='Wh. '!M327 -> 13 | E87: cu m | F87: 25.72/237 | G87: 12181 | H87: =H86 -> 399.072135 | I87: =I84 -> 267.53342 | J87: =-G87*$J$62 -> -609.05 | K87: 12238.55556 | M87: 12238.55556 | N87: 0 | O87: 12238.56 | P87: 159101.28 | Z87: =D87 -> 13
A88: ='Wh. '!A328 -> 12 | B88: 10 | C88: P & L R.C.C. M-25 for wethershed | D88: ='Wh. '!M336 -> 4 | E88: cu m | F88: 26.07/239 | G88: 11343 | H88: =H87 -> 399.072135 | I88: =I84 -> 267.53342 | J88: =-G88*$J$62 -> -567.15 | K88: 11442.45556 | M88: 11442.45556 | N88: 0 | O88: 11442.46 | P88: 45769.84 | Z88: =D88 -> 4
A89: ='Wh. '!A338 -> 13 | B89: 11 | C89: P & L II class B.B masonary in superstructure | D89: ='Wh. '!M356 -> 144 | E89: cu m | F89: 27.01/254 | G89: 5820 | H89: =H82 -> 331.69632 | I89: =I82 -> 238.1023 | K89: 6389.79862 | M89: 6389.79862 | N89: 0 | O89: 6389.8 | P89: 920131.2 | Z89: =D89 -> 144
B90: 12 | C90: P & L C.C M-15 for bed block | D90: ='Wh. '!M362 -> 0 | E90: cu m | F90: 24.16/229 | G90: 5179 | H90: =G34 -> 399.072135 | I90: =G35 -> 267.53342 | K90: 5845.605555 | M90: 5845.605555 | N90: 0 | O90: 5845.61 | P90: 0 | Z90: =D90 -> 0
A91: ='Wh. '!A364 -> 14 | B91: 13A | C91: P C.P. 20 mm in C.M 1:4 inside with neeru | D91: ='Wh. '!M379 -> 902 | E91: sq m | F91: 32.06/268 | G91: 386 | H91: =G42 -> 25.913775 | K91: 411.913775 | M91: 411.913775 | N91: 0 | O91: 411.91 | P91: 371542.82
A92: ='Wh. '!A381 -> 15 | B92: 13B | C92: P C.P. 20 mm in C.M 1:4 with cement finish | D92: ='Wh. '!M385 -> 60 | E92: cu m | F92: 32.07/268+32.21/270 | G92: 386 | H92: =H91 -> 25.913775 | K92: 411.913775 | M92: 411.913775 | N92: 0 | O92: 411.91 | P92: 24714.6
A93: ='Wh. '!A387 -> 16 | B93: 13C | C93: P C.P. 20 mm tk in C.M 1:4 OUTSIDE | D93: ='Wh. '!M399 -> 1080 | E93: sq m | F93: 32.07/268 | G93: 392 | H93: =H91 -> 25.913775 | K93: 417.913775 | M93: 417.913775 | N93: 0 | O93: 417.91 | P93: 451342.8
B94: 13D | C94: P C.P. 20 mm tk in C.M 1:4 with slurry finish | D94: ='Wh. '!M412 -> 0 | E94: sq m | F94: 32.07+32.21 | G94: =G93+57 -> 449 | H94: =G40 -> 25.913775 | K94: 474.913775 | M94: 474.913775 | N94: 0 | O94: 474.91 | P94: 0
B95: 13E | C95: P/A gypsum plaster (with Gypsum material of Gypsum India /Mega Sign or equivalent make) with finishing with gypsum material in 10 to 13 millimeter thickness to newly brick surface (Excluding rough cast plaster) in all position including preparing and Finishing the surface scaffolding etc. complete. | D95: ='Wh. '!M419 -> 0 | E95: sq m | F95: 32.31/271 | G95: 536 | H95: =G41 -> 0 | K95: =SUM(G95:J95) -> 536 | M95: =K95+L95 -> 536 | N95: =M95*$N$62 -> 0 | O95: =ROUND(M95+N95,2) -> 536 | P95: =D95*O95 -> 0
A96: ='Wh. '!A421 -> 17 | B96: 14 | C96: P/ Applying White wash | D96: ='Wh. '!M436 -> 902 | E96: sq m | F96: 36.03/290+36.01/290 | G96: =9.3+3.3 -> 12.6 | K96: 12.6 | M96: 12.6 | N96: =M96*$N$62 -> 0 | O96: 12.6 | P96: 11365.2
A97: ='Wh. '!A437 -> 18 | B97: 15 | C97: P & A Apex paint | D97: ='Wh. '!M449 -> 1080 | E97: sq m | F97: 35.25/288 | G97: 212 | K97: 212 | M97: 212 | N97: 0 | O97: 212 | P97: 228960
A98: ='Wh. '!A451 -> 19 | B98: 16 | C98: P & A oil paint 3 coats for parapet,stack lines & plinth | D98: ='Wh. '!M464 -> 35 | E98: sq m | F98: 35.11/287 | G98: 73 | K98: 73 | M98: =K98+L98 -> 73 | N98: 0 | O98: 73 | P98: =D98*O98 -> 2555
A99: ='Wh. '!A466 -> 20 | B99: 17 | C99: P/F sills of polished kota stone | D99: ='Wh. '!M469 -> 20 | E99: sq m | F99: 33.19/276 | G99: 1080 | K99: 1080 | M99: 1080 | N99: 0 | O99: 1080 | P99: 21600 | W99: =D99 -> 20
A100: ='Wh. '!A471 -> 21 | B100: 18 | C100: P/F alluminium shutter ventilators | D100: ='Wh. '!M476 -> 51 | E100: sq m | F100: R.A. | G100: =RA!F109 -> 6038.04 | K100: 6038.04 | M100: 6038.04 | N100: 0 | O100: 6038.04 | P100: 307940.04
B101: 19A | C101: P/F Steel Rilling shutters with | D101: ='Wh. '!M480 -> 0 | E101: sq m | F101: R.A. | G101: =RA!F34 -> 4294.104575 | K101: 4294.104575 | M101: 4294.104575 | N101: 0 | O101: 4294.1 | P101: 0
B102: 19B | C102: P/F Steel Grill Rilling shutters | D102: ='Wh. '!M485 -> 0 | E102: sq m | F102: R.A. | G102: =RA!F75 -> 3146.673763 | K102: 3146.673763 | M102: 3146.673763 | N102: 0 | O102: 3146.67 | P102: 0
B103: 19C | C103: P/F Steel Rilling shutters with mechanical gear | D103: ='Wh. '!M490 -> 0 | E103: sq m | F103: R.A. | G103: =RA!F49 -> 4424.546667 | K103: =SUM(G103:J103) -> 4424.546667 | M103: =K103+L103 -> 4424.546667 | N103: =M103*$N$62 -> 0 | O103: =ROUND(M103+N103,2) -> 4424.55 | P103: =D103*O103 -> 0
A104: ='Wh. '!A492 -> 22 | B104: 20 | C104: Filling in plinth with approved excavated stuff | D104: ='Wh. '!M495 -> 106 | E104: cu m | F104: 21.36/201 | G104: 96 | K104: 96 | M104: 96 | N104: =M104*$N$62 -> 0 | O104: 96 | P104: 10176 | S104: =D104 -> 106 | AF104: 4
A105: ='Wh. '!A497 -> 23 | B105: 21A | C105: P H.M. Filling in plinth R.A. | D105: ='Wh. '!M511-D104 -> 859.425 | E105: cu m | F105: RA | G105: =RA!F172 -> 733.212 | K105: 733.212 | M105: 733.212 | N105: =M105*$N$62 -> 0 | O105: 733.21 | P105: 630139.0043
A106: ='Wh. '!A513 -> 24 | B106: 21B | C106: Compaction of H.M.filling in plinth | D106: ='Wh. '!M519 -> 3333 | E106: sq m | F106: 2.31/29 | G106: 16 | I106: ` | K106: 16 | M106: 16 | N106: =M106*$N$62 -> 0 | O106: 16 | P106: =D106*O106 -> 53328
A107: ='Wh. '!A521 -> 25 | B107: 22A | C107: P & L stone metal layer in plinth R.A | D107: ='Wh. '!M530 -> 222.2 | E107: cu m | F107: RA | G107: =RA!G203 -> 1455.38 | K107: 1455.38 | M107: 1455.38 | N107: =M107*$N$62 -> 0 | O107: 1455.38 | P107: 323385.436
A108: ='Wh. '!A532 -> 26 | B108: 22B | C108: Compaction of stone metal layer | D108: ='Wh. '!M538 -> 130.5 | E108: sq m | F108: 50.61/447 | G108: 25 | K108: 25 | M108: 25 | N108: =M108*$N$62 -> 0 | O108: 25 | P108: 3262.5
A109: ='Wh. '!A540 -> 27 | B109: 23A | C109: P & L C.C. M 20 Tremix for flooring | D109: ='Wh. '!M546 -> 1111 | E109: Sq.m | F109: 24.08/227 | G109: =RA!F250 -> 889.4 | H109: =H87/6.66 -> 59.92074099 | I109: =I106 -> ` | J109: =-G109*$J$62 -> -44.47 | K109: =SUM(G109:J109) -> 904.850741 | M109: 904.850741 | N109: =M109*$N$62 -> 0 | O109: =ROUND(M109+N109,2) -> 904.85 | P109: 1005288.35
B110: 23B | C110: Providing M-15 for coping & flooring | D110: 0 | E110: cum | F110: 817/226 | G110: 5179 | H110: =H109 -> 59.92074099 | J110: =-G110*$J$62 -> -258.95 | K110: 4979.970741 | M110: 4979.970741 | N110: =M110*$N$62 -> 0 | O110: 4979.97 | P110: 0
B111: 23C | C111: Providing groove cutting | D111: ='Wh. '!M562 -> 0 | E111: R M | F111: R A | G111: =RA!F228 -> 0 | K111: 0 | M111: 0 | N111: 0 | O111: 0 | P111: 0
B112: 24 | C112: P & F M .S.Angle sill of 50x50x6 mm R.A. | D112: 0 | E112: R M | F112: RA | G112: 0 | K112: 0 | M112: 0 | N112: 0 | O112: 0 | P112: 0
B113: 25 | C113: P & F M.S.Chanal ISMC 150 | D113: 0 | E113: MT | F113: 23.01/223 | G113: 73844 | K113: 73844 | M113: 73844 | N113: 0 | O113: 73844 | P113: 0
B114: 26 | C114: P & L NP2 class pipe of 450 mm dia | D114: 0 | E114: R M | F114: 23/528 | G114: 946 | K114: 946 | M114: 946 | N114: 0 | O114: 946 | P114: 0
B115: 27A | C115: P & supplying Alluminium ladder R.A. | D115: 0 | E115: R M | F115: M.R. | G115: 1000 | K115: 1000 | M115: 1000 | N115: 0 | O115: 1000 | P115: 0
B116: 27B | C116: P & F M.S.ladder R.A. | D116: 0 | E116: R M | F116: RA | G116: 0 | K116: 0 | M116: 0 | N116: 0 | O116: 0 | P116: 0
A117: ='Wh. '!A563 -> 28 | B117: 28 | C117: P & F lightening conductor | D117: ='Wh. '!M566 -> 15 | E117: R M | F117: RA | G117: =RA!F237 -> 2098.133333 | K117: 2098.133333 | M117: 2098.133333 | N117: 0 | O117: 2098.13 | P117: 31471.95
B118: 29 | C118: P & F marble plate | D118: ='Wh. '!M571 -> 0 | E118: sq m | F118: 44.11/374 | G118: 12424 | K118: 12424 | M118: 12424 | N118: 0 | O118: 12424 | P118: 0
B119: 30A | C119: Conveying material for lead of 50 to 300 m | D119: ='Wh. '!M576 -> 0 | E119: cu m | F119: 2.25/28 | G119: 129 | K119: 129 | M119: 129 | N119: 0 | O119: 129 | P119: 0
A120: ='Wh. '!A577 -> 29 | B120: 30B | C120: Conveying material for lead of _3 Km | D120: ='Wh. '!M582 -> 267 | E120: cu m | F120: lead stat. | G120: 186.55 | K120: 186.55 | M120: 186.55 | N120: 0 | O120: 186.55 | P120: 49808.85
B121: 31 | C121: Providing Expansion joint in RCC frame | D121: ='Wh. '!M588 -> 0 | E121: Sq.m | F121: 30.02/261 | G121: 3979 | K121: 3979 | M121: 3979 | N121: 0 | O121: 3979 | P121: 0
B122: 32 | C122: Prov. Solling below footing | D122: ='Wh. '!M600 -> 0 | E122: Cum | F122: 21.41/201 | G122: 1055 | H122: =1.32*J12 -> 585.48072 | K122: 1640.48072 | M122: 1640.48072 | N122: 0 | O122: 1640.48 | P122: 0
A123: ='Wh. '!A602 -> 30 | B123: 33 | C123: Providing pre-constructional Anti-termite treatment | D123: ='Wh. '!M605 -> 1111 | E123: sq m | F123: 21.24/199 | G123: 83 | K123: 83 | M123: 83 | N123: 0 | O123: 83 | P123: 92213
C124: TOTAL FOR W.H.BLDG | O124: TOTAL RS | P124: =SUM(P67:P123) -> 7549178
C126: Above Plinth ( PEB WH. BLDG.)
B127: 1 | C127: Prov. & erecting PEB (roofing of clip lock sheet) | D127: ='Wh. '!K8 -> 1111 | E127: Sqm, | F127: RA | G127: ='RA (PEB)'!I56 -> 3568.335279 | H127: 0 | K127: =SUM(G127:J127) -> 3568.335279 | M127: =K127+L127 -> 3568.335279 | O127: =ROUND(M127+N127,2) -> 3568.34 | P127: =D127*O127 -> 3964425.74
B128: 2 | C128: Prov.& fixing 24" S S turbo ventilators with polycorbonate sheet | D128: 16 | E128: No. | F128: 42/516 | G128: 8090 | H128: 410 | I128: 1000 | K128: =SUM(G128:J128) -> 9500 | M128: =K128+L128 -> 9500 | O128: =ROUND(M128+N128,2) -> 9500 | P128: =D128*O128 -> 152000
O130: TOTAL RS | P130: =SUM(P127:P128) -> 4116425.74
M132: Grand Total | P132: =P124+P130 -> 11665603.74
B137: I.N. | C137: DESCRIPTON OF ITEM | D137: QTY. | E137: UNIT | F137: I.N./ P.N | G137: BASIC | H137: LEAD CHARGES | J137: Deduct SCADA | K137: TOTAL | L137: Add 0 % | M137: TOTAL OF | N137: ADD % | O137: TOTAL OF | P137: AMOUNT | AC137: REMARKS
G138: RATE | H138: SAND | I138: METAL | L138: C Area | M138: RATES | N138: FOR | O138: RATES
H139: HM | I139: Bricks | J139: 0.05 | L139: Charges | M139: 6 TO 11 | N139: CHARGES | O139: 6 TO 14
J140: 0.05 | L140: 0 | N140: =N62 -> 0
B141: 1 | C141: 2 | D141: 3 | E141: 4 | F141: 5 | G141: 6 | H141: 7 | I141: 8 | J141: 9 | K141: 11 | L141: 12 | M141: 13 | N141: 14 | O141: 15 | P141: 16
C142: S.W.- III INTERNAL ROAD
B143: 1A | C143: Excavation for side gutters & road formation in earth soil of all type sand gravel including conveying the excavated materials up | D143: 0 | E143: Cum | F143: 2.11/27 | G143: 73 | K143: =SUM(G143:J143) -> 73 | M143: =K143+L143 -> 73 | N143: =M143*$N$62 -> 0 | O143: =ROUND(M143+N143,2) -> 73 | P143: =D143*O143 -> 0 | S143: 1084 | T143: 81169.92
B144: 1B | C144: Excavation in hard murum, dressing section to the required grade camber and side slo | D144: 0 | E144: Cum | F144: 2.13/27 | G144: 84 | K144: 84 | M144: 84 | N144: 0 | O144: 84 | P144: 0 | S144: 217 | T144: 18731.44
B145: 1C | C145: Excavation in soft rock dressing section to the required grade camber and side slopes and conveying | D145: 0 | E145: Cum | F145: 2.14/27 | G145: 120 | K145: 120 | M145: 120 | N145: 0 | O145: 120 | P145: 0 | S145: 5 | T145: 639.6
B146: 1D | C146: Excavation in Hard rock by controlled blasting dressing section to the required grade camber and side slopes | D146: 0 | E146: Cum | F146: 2.15/27 | G146: 167 | K146: 167 | M146: 167 | N146: 0 | O146: 167 | P146: 0 | S146: 1 | T146: 183.04
B147: 1D | C147: Soiling 80 mm trap metal | D147: 0 | E147: Cum | F147: 30/16521.4/201 | G147: 1055 | I147: =K11 -> 347.446 | K147: 1402.446 | M147: 1402.446 | N147: 0 | O147: 1402.45 | P147: 0 | S147: 1 | T147: 183.04
B148: 2 | C148: Supplying 60 mm trap stone metal | D148: 0 | E148: cu m | F148: 50.56/446 | G148: 700 | I148: =J11 -> 347.446 | K148: 1047.446 | M148: 1047.446 | N148: 0 | O148: 1047.45 | P148: 0 | S148: 5 | T148: 2526.7
B149: 3 | C149: Supplying 40 mm trap stone metal | D149: 0 | E149: cu m | F149: 50.57/447 | G149: 750 | I149: =I148 -> 347.446 | K149: 1097.446 | M149: 1097.446 | N149: 0 | O149: 1097.45 | P149: 0 | S149: 430 | T149: 440896.2
B150: 4 - A | C150: Supplying hard murum | D150: 0 | E150: cu m | F150: 2.29a/29 | G150: 327 | I150: =J15 -> 210.71 | K150: 537.71 | M150: 537.71 | N150: 0 | O150: 537.71 | P150: 0 | S150: 287 | T150: 309196.58
B151: 4 - B | C151: Supplying soft murum | D151: 0 | E151: cu m | F151: 2.29b/29 | G151: 297 | I151: =I150 -> 210.71 | K151: 507.71 | M151: 507.71 | N151: 0 | O151: 507.71 | P151: 0 | S151: 156 | T151: 92150.76
B152: 5 - A | C152: Spreading hard murum | D152: 0 | E152: cu m | F152: 2.30/29 | G152: 63 | K152: 63 | M152: 63 | N152: 0 | O152: 63 | P152: 0 | S152: 79 | T152: 45762.33
B153: 5 - B | C153: Spreading soft murum | D153: 0 | E153: cu m | F153: =F152 -> 2.30/29 | G153: 63 | K153: 63 | M153: 63 | N153: 0 | O153: 63 | P153: 0 | S153: 156 | T153: 9247.68
B154: 6 | C154: Spreading 60 mm trap stone metal | D154: 0 | E154: cu m | F154: 50.58/447 | G154: 85 | K154: 85 | M154: 85 | N154: 0 | O154: 85 | P154: 0 | S154: 79 | T154: 4683.12
B155: 7 | C155: Spreading 40 mm trap stone metal | D155: 0 | E155: cu m | F155: =F154 -> 50.58/447 | G155: 85 | K155: 85 | M155: 85 | N155: 0 | O155: 85 | P155: 0 | S155: 430 | T155: 38012
B156: 8A | C156: Compacting O.S. metal layer | D156: 0 | E156: sq m | F156: 50.59/447 | G156: 27 | K156: 27 | M156: 27 | N156: 0 | O156: 27 | P156: 0 | S156: 287 | T156: 25370.8
B157: 8B | C157: Compacting size metal layer | D157: 0 | E157: sq m | F157: =F156 -> 50.59/447 | G157: 27 | K157: 27 | M157: 27 | N157: 0 | O157: 27 | P157: 0 | S157: 2169 | T157: 60905.52
B158: 9 | C158: Compacting H M side width layer | D158: 0 | E158: sq m | F158: 2.31/29 | G158: 16 | K158: 16 | M158: 16 | N158: 0 | O158: 16 | P158: 0 | S158: 2349 | T158: 65959.92
B159: 10 | C159: providing & fixing R. C. C. 1:2:4 guard stones as per type design including painting numbering fixing in std. Size C. C. 1:4:8 block complete. | D159: 0 | E159: No. | F159: 6.01c/53 | G159: 885 | K159: 885 | M159: 885 | N159: 0 | O159: 885 | P159: 0 | S159: 105 | T159: 1747.2
B160: 11A | C160: Excavation earth soil of all types sand, gravel & soft murum, depth upto 1.50 meters | D160: 0 | E160: Cum | F160: =F67 -> 21.02/197 | G160: =G67 -> 157 | K160: 157 | M160: 157 | N160: 0 | O160: 157 | P160: 0 | S160: 64 | T160: 49786.88
B161: 11 B | C161: Excavation hard murum depth upto 1.50m including removing the excavated stuff upto a distance of 50 meters beyond the building area all lifts stacking or spreading as directed, dewatering, shoring, strutting if | D161: 0 | E161: Cum | F161: =F70 -> 21.06/197 | G161: =G70 -> 172 | K161: 172 | M161: 172 | N161: 0 | O161: 172 | P161: 0 | S161: 12.6 | T161: 1873.872
B162: 11C | C162: Excavation in H.M. & boulder upto 1.50 meters including removing the excavated stuff upto a distance of 50 meters beyond the building area all lifts stacking or spreading as directed, dewatering, shoring, strutting if necessary preparing the bed for foundation including necessary backfilling etc complete (Bd. A3/259) | D162: 0 | E162: Cum | F162: =F72 -> 21.10/197 | G162: =G72 -> 191 | K162: 191 | M162: 191 | N162: 0 | O162: 191 | P162: 0 | S162: 7 | T162: 1142.96
B163: 11D | C163: Excavation in Hard rock dressing section to the required grade camber and side slopes and conveying the excavated materials upto a lead of 50 M & spreading for embankment or stacking as directed. | D163: 0 | E163: Cum | F163: =F75 -> 21.17/198 | G163: =G75 -> 670 | K163: 670 | M163: 670 | N163: 0 | O163: 670 | P163: 0 | S163: 2 | T163: 361.92
B164: 12 | C164: P & L M 10 cement concrete (1:3:6) of trap metal for foundation & bedding including dewatering if necessary, compacting, curing etc. complete [Bd.E.1 / 287] | D164: 0 | E164: Cum | F164: =F80 -> 24.01/226 | G164: 4766 | H164: 487.17897 | J164: =-G164*$J$62 -> -238.3 | K164: 5014.87897 | M164: 5014.87897 | N164: 0 | O164: 5014.88 | P164: 0 | S164: 2 | T164: 9189.12
B165: 13 | C165: Providing U.C.R. masonary of trap stones in C.M. 1:6 in foundation & plinth including dewatering, striking joints on exposed surfaces and pointing with C.M. 1:3 on outside surfaces curing etc. complete.(Bd. H.1/329) | D165: 0 | E165: Cum | F165: 28.01/257 | G165: 4043 | H165: 414.6204 | K165: 4457.6204 | M165: 4457.6204 | N165: 0 | O165: 4457.62 | P165: 0 | S165: 4 | T165: 17457.72
B166: 14 | C166: Providing & fixing in position M.S. tor reinforcement of various diameters for R.C.C. foundations footings, columns, beams, lintels, | D166: 0 | E166: MT | F166: =F83 -> 26.33/245 | G166: =G83 -> 62581 | K166: 62581 | M166: 62581 | N166: 0 | O166: 62581 | P166: 0 | S166: 0.6 | T166: 40024.302
B167: 15 | C167: M-20 of trap metal for R. C. C. work in beams and lintels as per | D167: 0 | E167: Cum | F167: =F86 -> 25.52/235 | G167: =G86 -> 10050 | H167: =H86 -> 399.072135 | J167: =-G167*$J$62 -> -502.5 | K167: 9946.572135 | M167: 9946.572135 | N167: 0 | O167: 9946.57 | P167: 0 | S167: 4 | T167: 36991.8
B168: 16 | C168: cement plaster 20 mm thick in two coats in C. M. 1 : 4 with slurry finish to concrete or brick surface or U. C. R surface in | D168: 0 | E168: Sqm | F168: =F91 -> 32.06/268 | G168: =G91 -> 386 | H168: =H91 -> 25.913775 | K168: 411.913775 | M168: 411.913775 | N168: 0 | O168: 411.91 | P168: 0 | S168: 15 | T168: 7129.8
B169: 17 | C169: Providing pointing with Cement Morter (1: 3) for stone masonary including scaffolding curing etc. complete [Bd. L. 15 / 372] | D169: 0 | E169: Sqm | F169: 32.17/269 | G169: 149 | K169: 149 | M169: 149 | N169: 0 | O169: 149 | P169: 0 | S169: 0 | T169: 0
B170: 18 | C170: providing & laying C. C. pipe of NP2 class 600 mm dia metre in proper line, level & slope including provi | D170: 0 | E170: Rmt | F170: 20/528 | G170: 1480 | K170: 1480 | M170: 1480 | N170: 0 | O170: 1480 | P170: 0 | S170: 1 | T170: 1476.8
B171: 19 | C171: Supplynig & spreading Hard mumrum for cushioning of R C C pipe including watering rammi ng & leveling etc complete. | D171: 0 | E171: Cum | F171: =F105 -> RA | G171: =G105 -> 733.212 | K171: 733.212 | M171: 733.212 | N171: 0 | O171: 733.21 | P171: 0 | S171: 1 | T171: 792.84
B172: 20 | C172: cement concrete 1 : 2 : 4 of trap metal for coping to column & compound wall moulded chamfered as per drawing | D172: 0 | E172: Cum | F172: =F109 -> 24.08/227 | G172: =G109 -> 889.4 | H172: =G34 -> 399.072135 | I172: =G35 -> 267.53342 | J172: =-G172*$J$62 -> -44.47 | K172: 1511.535555 | M172: 1511.535555 | N172: 0 | O172: 1511.54 | P172: 0 | S172: 0 | T172: 0
B173: 21 | C173: Providing soling using 80 mm size trap metal in 15 cm. layer including filling voids with Crushed sand/grit, ramming, watering etc. complete. | D173: 0 | E173: Cum | F173: 21.40/201 | G173: 1055 | H173: =K11 -> 347.446 | K173: 1402.446 | M173: 1402.446 | N173: 0 | O173: 1402.45 | P173: 0 | S173: 656 | T173: 456412
B174: 22A | C174: Preaparing embankment with approved materials obtained from the cutting within a lead of 50 m including laying in layers of 20 to 30 cms | D174: 0 | E174: Cum | F174: 2.27/28 | G174: 155 | K174: 155 | M174: 155 | N174: 0 | O174: 155 | P174: 0 | S174: 5 | T174: 785.2
B175: 22B | C175: Providing earthwork for embankment with materials obtained from other sources with all leads & lift including laying in layers of 20 to 30 cms | D175: 0 | E175: Cum | F175: 2.28/29 | G175: 424 | H175: =K15 -> 210.71 | K175: 634.71 | M175: 634.71 | N175: 0 | O175: 634.71 | P175: 0 | S175: 10 | T175: 1383.2
B176: 23 | C176: Conveying the materials obtained from 300 m to 500 m excavation including all lifts, laying in layers, breaking clods, dressing to the required lines, curves, | D176: 0 | E176: Cum | F176: 2.25/28 | G176: 139 | K176: 139 | M176: 139 | N176: 0 | O176: 139 | P176: 0 | S176: 1084 | T176: 204941.04
B177: 24 | C177: Conveying the materials obtained from excavation including all lifts, laying in layers, breaking clods, dressing to the required lines, curves, grades and section for all leads & lifts from the site of excavation to the site of deposition as directed. (Rd. 18 / P. 197) | D177: 0 | E177: Cum | F177: =F120 -> lead stat. | G177: =G120 -> 186.55 | K177: 186.55 | M177: 186.55 | N177: 0 | O177: 186.55 | P177: 0 | S177: 0 | T177: 0
B178: 25 | C178: ='WBM Road'!B282:M282 -> 0 | D178: 0 | E178: Sqm | F178: 3.38A/38 | G178: 138 | H178: 0 | K178: 138 | M178: 138 | N178: 0 | O178: 138 | P178: 0 | S178: 0 | T178: 0
P179: =SUM(P143:P178)-27 -> -27 | T179: =SUM(T143:T178) -> 2027115.304
B180: I.N. | C180: DESCRIPTON OF ITEM | D180: QTY. | E180: UNIT | F180: I.N./ P.N | G180: BASIC | H180: LEAD CHARGES | J180: Deduct SCADA | K180: TOTAL | L180: Add 0 % | M180: TOTAL OF | N180: ADD % | O180: TOTAL OF | P180: AMOUNT
G181: RATE | H181: SAND | I181: METAL | L181: C Area | M181: RATES | N181: FOR | O181: RATES
H182: HM | I182: Bricks | J182: 0.05 | L182: Charges | M182: 6 TO 11 | N182: CHARGES | O182: 6 TO 14
J183: 0.05 | L183: 0 | N183: =N62 -> 0
B184: 1 | C184: 2 | D184: 3 | E184: 4 | F184: 5 | G184: 6 | H184: 7 | I184: 8 | J184: 9 | K184: 11 | L184: 12 | M184: 13 | N184: 14 | O184: 15 | P184: 16
C185: =Recap!#REF! -> 
B187: 1 | C187: ='UG watertank'!B25:M25 -> 0 | D187: 0 | E187: cu m | F187: 21.02 | G187: 157 | K187: =SUM(G187:J187) -> 157 | M187: =K187+L187 -> 157 | N187: =M187*$N$62 -> 0 | O187: =ROUND(M187+N187,2) -> 157 | P187: =D187*O187 -> 0
D188: 0
B189: 2 | C189: ='UG watertank'!B29:M29 -> 0 | D189: 0 | E189: cu m | F189: 21.06 | G189: 172 | K189: =SUM(G189:J189) -> 172 | M189: =K189+L189 -> 172 | N189: =M189*$N$62 -> 0 | O189: =ROUND(M189+N189,2) -> 172 | P189: =D189*O189 -> 0
D190: 0
B191: 3 | C191: ='UG watertank'!B34:M34 -> 0 | D191: 0 | E191: cu m | F191: 21.1 | G191: 191 | K191: =SUM(G191:J191) -> 191 | M191: =K191+L191 -> 191 | N191: =M191*$N$62 -> 0 | O191: =ROUND(M191+N191,2) -> 191 | P191: =D191*O191 -> 0
D192: 0
B193: 4 | C193: ='UG watertank'!B38:M38 -> 0 | D193: 0 | E193: cu m | F193: 21.14 | G193: 329 | K193: =SUM(G193:J193) -> 329 | M193: =K193+L193 -> 329 | N193: =M193*$N$62 -> 0 | O193: =ROUND(M193+N193,2) -> 329 | P193: =D193*O193 -> 0
D194: 0
B195: 5 | C195: ='UG watertank'!B53:M53 -> 0 | D195: 0 | E195: cu m | F195: 21.4 | G195: 1055 | I195: =K11 -> 347.446 | K195: 1402.446 | M195: =K195+L195 -> 1402.446 | N195: =M195*$N$62 -> 0 | O195: =ROUND(M195+N195,2) -> 1402.45 | P195: =D195*O195 -> 0
D196: 0
B197: 6 | C197: ='UG watertank'!B59:M59 -> 0 | D197: 0 | E197: cu m | F197: 21.39 | G197: 2021 | H197: =K9 -> 1036.551 | K197: 3057.551 | M197: =K197+L197 -> 3057.551 | N197: =M197*$N$62 -> 0 | O197: =ROUND(M197+N197,2) -> 3057.55 | P197: =D197*O197 -> 0
D198: 0
B199: 7 | C199: ='UG watertank'!B68:M68 -> 0 | D199: 0 | E199: cu m | F199: 24.01 | G199: 4766 | H199: =G21 -> 487.17897 | I199: =G22 -> 326.59924 | J199: =-G199*0.05 -> -238.3 | K199: 5341.47821 | M199: =K199+L199 -> 5341.47821 | N199: =M199*$N$62 -> 0 | O199: =ROUND(M199+N199,2) -> 5341.48 | P199: =D199*O199 -> 0
D200: 0
B201: 8 | C201: ='UG watertank'!B73:M73 -> 0 | D201: 0 | E201: cum | F201: 21.37 | G201: 440 | K201: =SUM(G201:J201) -> 440 | M201: =K201+L201 -> 440 | N201: =M201*$N$62 -> 0 | O201: =ROUND(M201+N201,2) -> 440 | P201: =D201*O201 -> 0
D202: 0
B203: 9 | C203: ='UG watertank'!B80:M80 -> 0 | D203: 0 | E203: Litres | F203: 42.54 | G203: 11 | K203: =SUM(G203:J203) -> 11 | M203: =K203+L203 -> 11 | N203: =M203*$N$62 -> 0 | O203: =ROUND(M203+N203,2) -> 11 | P203: =D203*O203 -> 0
D204: 0
B205: 10 | C205: ='UG watertank'!B86:M86 -> 0 | D205: 0 | E205: Cum | F205: pn 540 | G205: 186.55 | K205: =SUM(G205:J205) -> 186.55 | M205: =K205+L205 -> 186.55 | N205: =M205*$N$62 -> 0 | O205: =ROUND(M205+N205,2) -> 186.55 | P205: =D205*O205 -> 0
D206: 0
B207: 11 | C207: ='UG watertank'!B92:M92 -> 0 | D207: 0 | E207: Cum | F207: =F205 -> pn 540 | G207: 154.79 | K207: =SUM(G207:J207) -> 154.79 | M207: =K207+L207 -> 154.79 | N207: =M207*$N$62 -> 0 | O207: =ROUND(M207+N207,2) -> 154.79 | P207: =D207*O207 -> 0
D208: 0
B209: 12 | C209: ='UG watertank'!B97:M97 -> 0 | D209: 0 | E209: Rmt | F209: 42.63 | G209: 326 | K209: =SUM(G209:J209) -> 326 | M209: =K209+L209 -> 326 | N209: =M209*$N$62 -> 0 | O209: =ROUND(M209+N209,2) -> 326 | P209: =D209*O209 -> 0
D210: 0
B211: 13 | C211: ='UG watertank'!B101:M101 -> 0 | D211: 0 | E211: Rmt | F211: 42.62 | G211: 244 | K211: =SUM(G211:J211) -> 244 | M211: =K211+L211 -> 244 | N211: =M211*$N$62 -> 0 | O211: =ROUND(M211+N211,2) -> 244 | P211: =D211*O211 -> 0
D212: 0
B213: 14 | C213: ='UG watertank'!B106:M106 -> 0 | D213: 0 | E213: Nos | F213: 41.44 | G213: 516 | K213: =SUM(G213:J213) -> 516 | M213: =K213+L213 -> 516 | N213: =M213*$N$62 -> 0 | O213: =ROUND(M213+N213,2) -> 516 | P213: =D213*O213 -> 0
D214: 0
... 99 more rows

Sheet sheet 1 Bore (hidden)
A1: MAHARASHTRA STATE WAREHOUSING CORPORATION
A2: 583/B, MARKET YARD , GULTEKADI, PUNE-411037
B4: =Recap!B6 -> NAME OF WORK :- CONSTRUCTION OF 1/2160 MT CAP PRE- ENGINEERED WH BLDG WITH ANCILLARY WORKS AT: NAGZARI DIST. LATUR
A6: LEADS & RATES OF MATERIALS | F6: BASED ON State SSR 2019-20
A8: S.N. | B8: MATERIAL & LOCATION | C8: UNIT | D8: LEADS | E8: CHARGES | H8: LEAD | I8: PAY | J8: NET | K8: rate/unit | L8: Name of quarry
D9: KM | E9: ACTUAL | F9: INITIAL | H9: DIFF | I9: LOAD
F10: 5 KM | I10: FACTOR
A11: 1 | B11: 2 | C11: 3 | D11: 4 | E11: 5 | F11: 6 | H11: 7 | I11: 8
A13: 1 | B13: SAND | C13: CU M | D13: ='DSR-Sheet I '!E9 -> 89 | E13: ='DSR-Sheet I '!F9 -> 1036.551 | F13: 0 | H13: =E13-F13 -> 1036.551 | I13: 1 | J13: =H13/I13 -> 1036.551 | K13: =E13/I13 -> 1036.551
A14: 2 | B14: METAL UPTO 40MM | C14: CU M | D14: ='DSR-Sheet I '!E10 -> 18 | E14: ='DSR-Sheet I '!F10 -> 347.446 | F14: =F13 -> 0 | H14: =E14-F14 -> 347.446 | I14: 1 | J14: =H14/I14 -> 347.446 | K14: =E14/I14 -> 347.446
A15: 3 | B15: METAL ABOVE 40 MM | C15: CU M | D15: ='DSR-Sheet I '!E11 -> 18 | E15: ='DSR-Sheet I '!F11 -> 347.446 | F15: 0 | H15: =E15-F15 -> 347.446 | I15: 1 | J15: =H15/I15 -> 347.446 | K15: =E15/I15 -> 347.446
A16: 4 | B16: RUBBLE | C16: CU M | D16: ='DSR-Sheet I '!E12 -> 18 | E16: ='DSR-Sheet I '!F12 -> 443.546 | F16: 0 | H16: =E16-F16 -> 443.546 | I16: 1 | J16: =H16/I16 -> 443.546 | K16: 202.26
A17: 5 | B17: BRICKS | C17: CU M | D17: ='DSR-Sheet I '!E13 -> 18 | E17: ='DSR-Sheet I '!F13 -> 501.268 | F17: 0 | H17: =E17-F17 -> 501.268 | I17: 1 | J17: =H17 -> 501.268 | K17: =E17/I17 -> 501.268
A19: 6 | B19: HARD MURUM | C19: CU M | D19: ='DSR-Sheet I '!E15 -> 5 | E19: ='DSR-Sheet I '!F15 -> 210.71 | F19: 0 | H19: =E19-F19 -> 210.71 | I19: 1 | J19: =H19/I19 -> 210.71 | K19: =E19/I19 -> 210.71
A20: 7 | B20: SOFT MURUM | C20: CU M | D20: =D19 -> 5 | E20: =E19 -> 210.71 | F20: =F19 -> 0 | H20: =E20-F20 -> 210.71 | I20: 1 | J20: =H20/I20 -> 210.71 | K20: =E20/I20 -> 210.71
A22: 9 | B22: Royalty charges considered in DSR rate as per cu.mt. | E22: 141.34
D24: QTY | E24: RATE | F24: AMOUNT
A25: 1 | B25: C.C.M-10 for foundation & beddding (Crush Sand) | C25: SAND | D25: 0.47 | E25: =J14 -> 347.446 | F25: =D25*E25 -> 163.29962
C26: METAL | D26: 0.94 | E26: =J14 -> 347.446 | F26: =D26*E26 -> 326.59924
F27: =SUM(F25:F26) -> 489.89886
A28: 1A | B28: C.C.M-10 for foundation & beddding (Natural Sand) | C28: SAND | D28: 0.47 | E28: =E13 -> 1036.551 | F28: =D28*E28 -> 487.17897
C29: METAL | D29: 0.94 | E29: =E14 -> 347.446 | F29: =D29*E29 -> 326.59924
F30: =SUM(F28:F29) -> 813.77821
A31: 2 | B31: P & C U.C.R masonary | C31: SAND | D31: 0.35 | E31: =J13 -> 1036.551 | F31: =D31*E31 -> 362.79285
C32: RUBBLE | D32: 1.16 | E32: =J16 -> 443.546 | F32: =D32*E32 -> 514.51336
F33: =SUM(F31:F32) -> 877.30621
A34: 3 | B34: P &C B.B. masonary in plinth & S.S | C34: SAND | D34: 0.25 | E34: =J13 -> 1036.551 | F34: =D34*E34 -> 259.13775
C35: bricks | D35: 1 | E35: =J17 -> 501.268 | F35: =D35*E35 -> 501.268
F36: =SUM(F34:F35) -> 760.40575 | I36: M - 15
A37: 4A | B37: P & L R.C.C.M-20 (Crush Sand ) | C37: SAND | D37: 0.425 | E37: =E25 -> 347.446 | F37: =D37*E37 -> 147.66455 | H37: 0.44 | I37: =E37 -> 347.446 | J37: =H37*I37 -> 152.87624
C38: METAL | D38: 0.85 | E38: =E26 -> 347.446 | F38: =D38*E38 -> 295.3291 | H38: 0.88 | I38: =E38 -> 347.446 | J38: =H38*I38 -> 305.75248
F39: =SUM(F37:F38) -> 442.99365 | J39: =SUM(J37:J38) -> 458.62872
A40: 4 | B40: P & L R.C.C.M-20 (Natural Sand) | C40: SAND | D40: 0.425 | E40: =E28 -> 1036.551 | F40: =D40*E40 -> 440.534175
C41: METAL | D41: 0.85 | E41: =E29 -> 347.446 | F41: =D41*E41 -> 295.3291
F42: =SUM(F40:F41) -> 735.863275
A43: 5 | B43: P & A 20 mm tk plaster | C43: SAND | D43: 0.025 | E43: =J13 -> 1036.551 | F43: =D43*E43 -> 25.913775
A45: 6 | B45: P & A 25 mm tk plaster | C45: SAND | D45: 0.031 | E45: =J13 -> 1036.551 | F45: =D45*E45 -> 32.133081
A47: 6A | B47: P & A 12 mm tk plaster | C47: SAND | D47: 0.015 | E47: =J13 -> 1036.551 | F47: =D47*E47 -> 15.548265
A49: 7 | B49: P & F ploished shahabad for sills & dado | C49: SAND | D49: 0.022 | E49: =J13 -> 1036.551 | F49: =D49*E49 -> 22.804122
A51: 8 | B51: P & C half brick wall | C51: sand | D51: 0.034 | E51: =J13 -> 1036.551 | F51: =D51*E51 -> 35.242734
C52: bricks | D52: =57/475 -> 0.12 | E52: =J17 -> 501.268 | F52: =D52*E52 -> 60.15216
F53: =SUM(F51:F52) -> 95.394894
A54: 9 | B54: P & a flush pointing in c.m.1:3 for stone masonary | C54: sand | D54: 0.025 | E54: =J13 -> 1036.551 | F54: =D54*E54 -> 25.913775
A56: 11 | B56: Providing 50 mm thick semi grout bituminous road surface including supplying all materials preparing the existing road surface, laying the required thickness of metal layer ,heating & sprayiung bitumen spreading chips laying the seal coat & compacting complate ( Sp. Rd 60 P.No. 232 ) | C56: Metal | D56: =8.7/100 -> 0.087 | E56: =E14 -> 347.446 | F56: =D56*E56 -> 30.227802
C57: Bitumen | D57: =400/100 -> 4 | E57: =(4.8/1000)*405 -> 1.944 | F57: =D57*E57 -> 7.776
F58: =F56+F57 -> 38.003802
A59: 12 | B59: Providing 50 mm thick compacted BBM on existing B.T.surface (60/70 ) V G -30 GRADE | C59: Metal | D59: =8.7/100 -> 0.087 | E59: =E56 -> 347.446 | F59: =D59*E59 -> 30.227802
C60: Bitumen | D60: =225/100 -> 2.25 | E60: =(2.25/1000)*405 -> 0.91125 | F60: =D60*E60 -> 2.0503125 | H60: 0.5 | I60: 1.75 | J60: 2.25
F61: =F59+F60 -> 32.2781145
A62: 13 | B62: Providing Hot Mix Hot Blaid 20 mm tk. Premix bituminous carpet with liquid seal coat ( Sp. Rd 60 P.No. 232 ) | C62: Metal | D62: =2.88/100 -> 0.0288 | E62: =E14 -> 347.446 | F62: =D62*E62 -> 10.0064448
C63: Bitumen | D63: 1.46 | E63: =(3.75/1000)*405 -> 1.51875 | F63: =D63*E63 -> 2.217375
F64: =F62+F63 -> 12.2238198
B65: The centre falls under sugarcane area | C65: Building
B66: Hence percentage required to be added will be percentage | C66: 0
B67: Kranti Sugar cane
B68: TOTAL | C68: =SUM(C66:C67) -> 0
B96: ='Bore Mtrs.'!B444 -> SUBWORK V :- Borewell
C98: QUANTITY | D98: UNIT | E98: I.N./ P.N | F98: BASIC | H98: TOTAL | K98: LESS % | L98: Other than Dist | M98: ADD % | N98: TOTAL | O98: AMOUNT
A99: I.N. | B99: DESCRIPTON OF ITEM | F99: RATE | G99: R.A. | K99: VAT | M99: Service Tax | N99: Rate
K100: 0 | L100: 5% | M100: 0
F101: Rs. Ps
A102: 1 | B102: 2 | C102: 3 | D102: 4 | E102: 5 | F102: 6 | G102: 7 | H102: 8 | I102: 9 | J102: 10 | K102: 11 | L102: 12 | M102: 13 | N102: 14 | O102: 15
A103: ='Bore Mtrs.'!A446 -> 1 | B103: ='Bore Mtrs.'!B446 -> Drilling the bore well 150 mm dia. Upto a depth as directed in all types of strata by using bore drilling machine incluiding all necessary material & equipment etc. complete as directed. | C103: ='Bore Mtrs.'!M450 -> 100 | D103: ='Bore Mtrs.'!N446 -> Rmt. | E103: GSDA | F103: 380 | H103: =SUM(F103:G103) -> 380 | K103: 0 | L103: 0 | M103: =H103*M100 -> 0 | N103: =SUM(H103:M103) -> 380 | O103: =N103*C103 -> 38000
A105: ='Bore Mtrs.'!A452 -> 2 | B105: ='Bore Mtrs.'!B452 -> Providing and fixing M. S. casing pipe of 150mm diameter of approved make with help of drilling machine upto desired depth including lowering & grouting etc. complete as directed.. | C105: ='Bore Mtrs.'!M456 -> 6 | D105: ='Bore Mtrs.'!N452 -> Rmt. | E105: GSDA | F105: =1615+160 -> 1775 | H105: =SUM(F105:G105) -> 1775 | K105: 0 | L105: 0 | M105: =H105*M100 -> 0 | N105: =SUM(H105:M105) -> 1775 | O105: =N105*C105 -> 10650
B106: lowering & grouting- 160 rs per meter
A107: ='Bore Mtrs.'!A458 -> 3 | B107: ='Bore Mtrs.'!B458 -> Supplying and erecting submersible pumpset of 1.125 KW/1.5 HP with 230 V, 50 c/s AC supply suitable for 150 mm dia. borewell suitable for 84 to 40 LPM discharge at 30 to 90 m head & (max. efficiency at 69 m head & 60 lpm) discharge & delivery pipe of Size-50 mm diameter with a necessary H type clamps as per specification no. WP-SMP | C107: ='Bore Mtrs.'!M462 -> 1 | D107: ='Bore Mtrs.'!N458 -> No. | E107: 1933-02-12 | F107: =((3658*5%)+27517) -> 27699.9 | H107: =SUM(F107:G107) -> 27699.9 | K107: 0 | L107: =H107*L100 -> 1384.995 | M107: =H107*M104 -> 0 | N107: =SUM(H107:M107) -> 29084.895 | O107: =N107*C107 -> 29084.895
E108: Elect.DSR
A109: ='Bore Mtrs.'!A464 -> 4 | B109: ='Bore Mtrs.'!B464 -> Supplying, erecting & terminating PVC armoured cable 3 core 4 sq mm copper conductor continuous 5.48 sq mm (12 SWG) G.I. earth wire complete erected with glands & lugs, on wall/ trusses/pole or laid in provided trench/ pipe as per specification no. CB-LT/CU | C109: ='Bore Mtrs.'!M467 -> 20 | D109: ='Bore Mtrs.'!N464 -> Rmt. | E109: 7-2-16/131 | F109: =((17*5%)+267) -> 267.85 | H109: =SUM(F109:G109) -> 267.85 | K109: 0 | L109: =H109*L100 -> 13.3925 | M109: =H109*M106 -> 0 | N109: =SUM(H109:M109) -> 281.2425 | O109: =N109*C109 -> 5624.85
E110: Elect.DSR
A111: ='Bore Mtrs.'!A469 -> 5 | B111: ='Bore Mtrs.'!B469 -> Supplying and erecting high density polythene pipe ISI mark 32 mm dia. suitable for pressure of 6 kg/cm2 connected to Jet/Submersible pump with required material complete. | C111: ='Bore Mtrs.'!M472 -> 115 | D111: ='Bore Mtrs.'!N469 -> Rmt. | E111: 16-5-17/246 | F111: =((25*5%)+101) -> 102.25 | H111: =SUM(F111:G111) -> 102.25 | K111: 0 | L111: =H111*L100 -> 5.1125 | M111: =H111*M108 -> 0 | N111: =SUM(H111:M111) -> 107.3625 | O111: =N111*C111 -> 12346.6875
E112: Elect.DSR
A113: ='Bore Mtrs.'!A473 -> 6-A | B113: ='Bore Mtrs.'!B473 -> Making trench in hard soil of suitable width and depth as per IS for laying provided L.T cable up to 25 sq mm complete. As per specification No. CW-EXN-CTR | C113: ='Bore Mtrs.'!M476 -> 10 | D113: ='Bore Mtrs.'!N473 -> Rmt. | E113: 16-1-1/243 | F113: =((97*5%)+138) -> 142.85 | H113: =SUM(F113:G113) -> 142.85 | K113: 0 | L113: =H113*L100 -> 7.1425 | M113: =H113*M110 -> 0 | N113: =SUM(H113:M113) -> 149.9925 | O113: =N113*C113 -> 1499.925
E114: Elect.DSR
A115: ='Bore Mtrs.'!A478 -> 6B | B115: ='Bore Mtrs.'!B478 -> Supplyng and laying 75 mm diameter GI pipe A grade ISI mark for cable laid underground at required depth upto 90 cm including excavation, laying pipe, remaking the surface as it is. | C115: ='Bore Mtrs.'!M482 -> 10 | D115: ='Bore Mtrs.'!N478 -> Rmt. | E115: 16-5-8/246 | F115: =((100*5%)+1031) -> 1036 | H115: =SUM(F115:G115) -> 1036 | K115: 0 | L115: =H115*L100 -> 51.8 | M115: =H115*M112 -> 0 | N115: =SUM(H115:M115) -> 1087.8 | O115: =N115*C115 -> 10878
E116: Elect.DSR
A117: ='Bore Mtrs.'!A484 -> 7 | B117: ='Bore Mtrs.'!B484 -> Supplying and erecting G.I.pipe 15 mm dia. ‘B’ class at position with accessories. As per specification No. CW-PLB/GP | C117: ='Bore Mtrs.'!M488 -> 10 | D117: ='Bore Mtrs.'!N484 -> Rmt. | E117: 16-5-1/246 | F117: =((37*5%)+196) -> 197.85 | H117: =SUM(F117:G117) -> 197.85 | K117: 0 | L117: =H117*L100 -> 9.8925 | M117: =H117*M114 -> 0 | N117: =SUM(H117:M117) -> 207.7425 | O117: =N117*C117 -> 2077.425
E118: Elect.DSR
A119: ='Bore Mtrs.'!A490 -> 8 | B119: ='Bore Mtrs.'!B490 -> Supplying and erecting ISI mark G.I.pipe 20 mm dia.‘B’ class at position with accessories. As per specification No. CW-PLB/GP | C119: ='Bore Mtrs.'!M494 -> 40 | D119: ='Bore Mtrs.'!N490 -> Rmt. | E119: 16-5-2/246 | F119: =((37*5%)+235) -> 236.85 | H119: =SUM(F119:G119) -> 236.85 | K119: 0 | L119: =H119*L100 -> 11.8425 | M119: =H119*M116 -> 0 | N119: =SUM(H119:M119) -> 248.6925 | O119: =N119*C119 -> 9947.7
E120: Elect.DSR
A121: ='Bore Mtrs.'!A496 -> 9 | B121: ='Bore Mtrs.'!B496 -> Providing & fixing in position 15 mm diameter screw down bib tap/ stop tap of brass heavy type and make including necessary sockets union nuts etc. complete. | C121: ='Bore Mtrs.'!M498 -> 2 | D121: ='Bore Mtrs.'!N496 -> No. | E121: 41.40/345 | F121: 548 | H121: =SUM(F121:G121) -> 548 | K121: 0 | L121: =H121*L100 -> 27.4 | M121: =H121*M118 -> 0 | N121: =SUM(H121:M121) -> 575.4 | O121: =N121*C121 -> 1150.8
E122: Civil DSR
A123: ='Bore Mtrs.'!A500 -> 10 | B123: ='Bore Mtrs.'!B500 -> Providing & fixing in position 20 mm diameter screw down bib tap/ stop tap of brass heavy type and make including necessary sockets union nuts etc. complete. | C123: ='Bore Mtrs.'!M502 -> 1 | D123: ='Bore Mtrs.'!N500 -> No. | E123: 41.41/346 | F123: 830 | H123: =SUM(F123:G123) -> 830 | K123: 0 | L123: =H123*L100 -> 41.5 | M123: =H123*M120 -> 0 | N123: =SUM(H123:M123) -> 871.5 | O123: =N123*C123 -> 871.5
E124: Civil DSR
A125: ='Bore Mtrs.'!A504 -> 11 | B125: ='Bore Mtrs.'!B504 -> Supplying and and fixing PVC wire rope for borewell etc. complete. | C125: ='Bore Mtrs.'!M507 -> 100 | D125: ='Bore Mtrs.'!N504 -> Rmt. | E125: MR | F125: 15 | H125: =SUM(F125:G125) -> 15 | K125: 0 | L125: =H125*L100 -> 0.75 | M125: =H125*M122 -> 0 | N125: =SUM(H125:M125) -> 15.75 | O125: =N125*C125 -> 1575
A127: ='Bore Mtrs.'!A509 -> 12 | B127: ='Bore Mtrs.'!B509 -> Supplying & erecting automatic control panel for 1 Ph, 230 volt, A.c. Submersible/centrifugal pump set upto 2 HP consisting of DOL starter Of suitable relay range S.P.P., Combined ammeter/ voltmeter, phase indicating lamp enclosed in CRCA powder coated Vibration proof encloser with IP 54 protection. Control Panel should offer single phasing, phase reversal, phase inbalence etc ( Similar to LT model no.MR G2) . | C127: ='Bore Mtrs.'!M511 -> 1 | D127: ='Bore Mtrs.'!N509 -> No. | E127: 12-4-20/220 | F127: =((285*5%)+4819) -> 4833.25 | H127: =SUM(F127:G127) -> 4833.25 | K127: 0 | L127: =H127*L100 -> 241.6625 | M127: =H127*M124 -> 0 | N127: =SUM(H127:M127) -> 5074.9125 | O127: =N127*C127 -> 5074.9125
E128: Elect.DSR
A129: ='Bore Mtrs.'!A513 -> 13 | B129: ='Bore Mtrs.'!B513 -> Supplying and erecting flat flexible 3 core 2.5 sq mm PVC sheathed submersible type copper cable suitably clamped at fixed intervals with column pipe assembly complete. | C129: ='Bore Mtrs.'!M516 -> 120 | D129: ='Bore Mtrs.'!N513 -> Rmt. | E129: 12-4-8/219 | F129: =((26*5%)+119) -> 120.3 | H129: =SUM(F129:G129) -> 120.3 | K129: 0 | L129: =H129*L100 -> 6.015 | M129: =H129*M126 -> 0 | N129: =SUM(H129:M129) -> 126.315 | O129: =N129*C129 -> 15157.8
E130: Elect.DSR
A131: ='Bore Mtrs.'!A518 -> 14 | B131: ='Bore Mtrs.'!B518 -> Supplying and erecting 40mm dia. Gun metal foot valve at position with necessary materials. | C131: ='Bore Mtrs.'!M521 -> 1 | D131: ='Bore Mtrs.'!N518 -> No. | E131: 16-6-2/247 | F131: =((75*5%)+755) -> 758.75 | H131: =SUM(F131:G131) -> 758.75 | K131: 0 | L131: =H131*L100 -> 37.9375 | M131: =H131*M128 -> 0 | N131: =SUM(H131:M131) -> 796.6875 | O131: =N131*C131 -> 796.6875
E132: Elect.DSR
A133: ='Bore Mtrs.'!A523 -> 15 | B133: ='Bore Mtrs.'!B523 -> Supplying, erecting & marking DPMCB 6A to 32A, C- series (for motor/power) in provided distribution board as per specification No. SW-SWR/MCB | C133: ='Bore Mtrs.'!M526 -> 1 | D133: ='Bore Mtrs.'!N523 -> No. | E133: 5-3-6/96 | F133: =((35*5%)+461) -> 462.75 | H133: =SUM(F133:G133) -> 462.75 | K133: 0 | L133: =H133*L100 -> 23.1375 | M133: =H133*M130 -> 0 | N133: =SUM(H133:M133) -> 485.8875 | O133: =N133*C133 -> 485.8875
E134: Elect.DSR
A135: ='Bore Mtrs.'!A528 -> 16 | B135: ='Bore Mtrs.'!B528 -> Supplying & erecting CRCA sheet metal one way enclosures suitable for D.P.M.C.B. /T.P. M.C.B. /F.P M.C.B. Complete erected on angle iron frame. | C135: ='Bore Mtrs.'!M531 -> 1 | D135: ='Bore Mtrs.'!N528 -> No. | E135: 5-4-23/99 | F135: =((48*5%)+239) -> 241.4 | H135: =SUM(F135:G135) -> 241.4 | K135: 0 | L135: =H135*L100 -> 12.07 | M135: =H135*M132 -> 0 | N135: =SUM(H135:M135) -> 253.47 | O135: =N135*C135 -> 253.47
E136: Elect.DSR
N137: Total | O137: =SUM(O103:O136) -> 145475.54

Sheet sheet 1CW (hidden)
A1: MAHARASHTRA STATE WAREHOUSING CORPORATION
A2: 583/B, MARKET YARD , GULTEKADI, PUNE-411037
A4: STATEMENT SHOWING Fencing Compound Wh.complex Karanja shaha Dist. Washim.
A6: LEADS & RATES OF MATERIALS | F6: BASED ON State SSR 2019-20
A8: S.N. | B8: MATERIAL & LOCATION | C8: UNIT | D8: LEADS | E8: CHARGES | H8: LEAD | I8: PAY | J8: NET | K8: rate/unit | L8: Name of quarry
D9: KM | E9: ACTUAL | F9: INITIAL | H9: DIFF | I9: LOAD
F10: 5 KM | I10: FACTOR
A11: 1 | B11: 2 | C11: 3 | D11: 4 | E11: 5 | F11: 6 | H11: 7 | I11: 8
A13: 1 | B13: SAND | C13: CU M | D13: ='DSR-Sheet I '!E9 -> 89 | E13: ='DSR-Sheet I '!F9 -> 1036.551 | F13: 0 | H13: =E13-F13 -> 1036.551 | I13: 1 | J13: =H13/I13 -> 1036.551 | K13: =E13/I13 -> 1036.551 | L13: Purna River Daryapur
A14: 2 | B14: METAL UPTO 40MM | C14: CU M | D14: ='DSR-Sheet I '!E10 -> 18 | E14: ='DSR-Sheet I '!F10 -> 347.446 | F14: =F13 -> 0 | H14: =E14-F14 -> 347.446 | I14: 1 | J14: =H14/I14 -> 347.446 | K14: =E14/I14 -> 347.446 | L14: Jamb
A15: 3 | B15: METAL ABOVE 40 MM | C15: CU M | D15: ='DSR-Sheet I '!E11 -> 18 | E15: ='DSR-Sheet I '!F11 -> 347.446 | F15: 0 | H15: 347.446 | I15: 1 | J15: =H15/I15 -> 347.446 | K15: =E15/I15 -> 347.446 | L15: Jamb
A16: 4 | B16: RUBBLE | C16: CU M | D16: ='DSR-Sheet I '!E12 -> 18 | E16: ='DSR-Sheet I '!F12 -> 443.546 | F16: 0 | H16: 443.546 | I16: 1 | J16: =H16/I16 -> 443.546 | K16: =E16/I16 -> 443.546 | L16: Jamb
A17: 5 | B17: BRICKS | C17: 1000 | D17: ='DSR-Sheet I '!E13 -> 18 | E17: ='DSR-Sheet I '!F13 -> 501.268 | F17: 0 | H17: 501.268 | I17: 1 | J17: =H17/1000 -> 0.501268 | K17: =H17*475/C17 -> 238.1023 | L17: Karanja Lad Local
A19: 6 | B19: HARD MURUM | C19: CU M | D19: ='DSR-Sheet I '!E15 -> 5 | E19: ='DSR-Sheet I '!F15 -> 210.71 | F19: 0 | H19: =E19-F19 -> 210.71 | I19: 1 | J19: =H19/I19 -> 210.71 | K19: =E19/I19 -> 210.71 | L19: Jamb
A21: 7 | B21: SOFT MURUM | C21: CU M | D21: =D19 -> 5 | E21: =E19 -> 210.71 | F21: =F19 -> 0 | H21: =H19 -> 210.71 | I21: 1 | J21: =H21/I21 -> 210.71 | K21: =E21/I21 -> 210.71 | L21: Jamb
A24: 8 | B24: Royalty charges considered in DSR rate . | E24: 141.34
D25: QTY | E25: RATE | F25: AMOUNT
A26: 1 | B26: C.C.M-10 for foundation & beddding | C26: SAND | D26: 0.47 | E26: =J13 -> 1036.551 | F26: =D26*E26 -> 487.17897
C27: METAL | D27: 0.94 | E27: =J14 -> 347.446 | F27: =D27*E27 -> 326.59924
F28: =SUM(F26:F27) -> 813.77821
A29: 2 | B29: P & C U.C.R masonary | C29: SAND | D29: 0.4 | E29: =J13 -> 1036.551 | F29: 414.6204
C30: RUBBLE | D30: 1.25 | E30: =J16 -> 443.546 | F30: 554.4325
F31: =SUM(F29:F30) -> 969.0529
A32: 3 | B32: P &C B.B. masonary in plinth & S.S | C32: SAND | D32: 0.3 | E32: =J13 -> 1036.551 | F32: 310.9653
C33: BRICKS | D33: 475 | E33: =J17 -> 0.501268 | F33: =D33*E33 -> 238.1023 | H33: PCC M 15
F34: =SUM(F32:F33) -> 549.0676
A35: 4 | B35: P & L R.C.C.M-20 | C35: SAND | D35: 0.425 | E35: =J13 -> 1036.551 | F35: 440.534175 | H35: 0.44 | I35: =E35 -> 1036.551 | J35: =H35*I35 -> 456.08244
C36: METAL | D36: 0.85 | E36: =J14 -> 347.446 | F36: 295.3291 | H36: 0.88 | I36: =E36 -> 347.446 | J36: =H36*I36 -> 305.75248
F37: =SUM(F35:F36) -> 735.863275 | J37: =SUM(J35:J36) -> 761.83492
A38: 5 | B38: P & A 20 mm tk plaster | C38: SAND | D38: 0.024 | E38: =J13 -> 1036.551 | F38: 24.877224
A40: 6 | B40: P & A 25 mm tk plaster | C40: SAND | D40: 0.03 | E40: =J13 -> 1036.551 | F40: 31.09653
A42: 7 | B42: P & F ploished shahabad for sills & dado | C42: SAND | D42: 0.024 | E42: =J13 -> 1036.551 | F42: 24.877224
A44: 8 | B44: P & C half brick wall | C44: sand | D44: 0.036 | E44: =J13 -> 1036.551 | F44: =D44*E44 -> 37.315836
C45: bricks | D45: 0.12 | E45: =J17 -> 0.501268 | F45: =D45*E45 -> 0.06015216
F46: =SUM(F44:F45) -> 37.37598816
A48: 9 | B48: P & a flush pointing in c.m.1:3 for stone masonary | C48: sand | D48: 0.025 | E48: =J13 -> 1036.551 | F48: =D48*E48 -> 25.913775
A50: 11 | B50: Providing 50 mm thick semi grout bituminous road surface including supplying all materials preparing the existing road surface, laying the required thickness of metal layer ,heating & sprayiung bitumen spreading chips laying the seal coat & compacting complate ( Sp. Rd 60 P.No. 232 ) | C50: Metal | D50: =8.7/100 -> 0.087 | E50: =E14 -> 347.446 | F50: =D50*E50 -> 30.227802
C51: Bitumen | D51: =400/100 -> 4 | E51: =(4.8/1000)*405 -> 1.944 | F51: =D51*E51 -> 7.776
F52: =F50+F51 -> 38.003802
A53: 12 | B53: Providing 50 mm thick compacted BBM on existing B.T.surface (60/70 ) V G -30 GRADE | C53: Metal | D53: =8.7/100 -> 0.087 | E53: =E50 -> 347.446 | F53: 30.227802
C54: Bitumen | D54: =225/100 -> 2.25 | E54: =(2.25/1000)*405 -> 0.91125 | F54: 2.0503125 | H54: 0.5 | I54: 1.75 | J54: 2.25
F55: =F53+F54 -> 32.2781145
A56: 13 | B56: Providing Hot Mix Hot Blaid 20 mm tk. Premix bituminous carpet with liquid seal coat ( Sp. Rd 60 P.No. 232 ) | C56: Metal | D56: =2.88/100 -> 0.0288 | E56: =E14 -> 347.446 | F56: 10.0064448
C57: Bitumen | D57: =375/100 -> 3.75 | E57: =(3.75/1000)*405 -> 1.51875 | F57: 5.6953125
F58: =F56+F57 -> 15.7017573
B59: The centre falls under sugarcane area / corporation | C59: Building
B60: Hence percentage required to be added will be percentage | C60: 0.04
B62: TOTAL | C62: =SUM(C60:C61) -> 0.04
A78: MAHARASHTRA STATE WAREHOUSING CORPORATION
A79: 583/B, MARKET YARD , GULTEKADI, PUNE-411037
A81: =A4 -> STATEMENT SHOWING Fencing Compound Wh.complex Karanja shaha Dist. Washim.
J83: =F6 -> BASED ON State SSR 2019-20
B84: ='DSR-Sheet I '!C3:J3 -> 
A86: I.N. | B86: DESCRIPTON OF ITEM | C86: QUANTITY | D86: UNIT | E86: I.N./ P.N | F86: BASIC | G86: Ded for SCADA | H86: LEAD CHARGES | K86: LIFTS & | L86: TOTAL | M86: ADD % | N86: TOTAL OF | O86: AMOUNT
F87: RATE | H87: SAND | I87: METAL | K87: R.A. | M87: for corporation area | N87: RATES
G88: -117 | N88: 6 TO 11
M89: 0
A90: 1 | B90: 2 | C90: 3 | D90: 4 | E90: 5 | F90: 6 | H90: 7 | I90: 8 | J90: 9 | K90: 10 | L90: 11 | M90: 12 | N90: 13 | O90: 14
B92: ='Mtrs CW'!B11 -> Sub Work I :- M&R to warehouse complex
A94: 1 | B94: ='Mtrs CW'!B13 -> Clearing grass and removal of rubbish up to a distance of 50 metres outside the periphery of the area etc. complete as directed by Engineer In Charge. | C94: ='Mtrs CW'!M23 -> 0 | D94: Sqm | E94: ='Mtrs CW'!O13 -> 2.07/24 | F94: ='Mtrs CW'!P13 -> 2.7 | L94: =K94+J94+I94+H94+G94+F94 -> 2.7 | M94: =L94*$M$89 -> 0 | N94: =M94+L94 -> 2.7 | O94: =ROUNDUP(C94*N94,0) -> 0
A96: 2 | B96: ='Mtrs CW'!B25 -> Dressing of side shoulder / Scrapping the road side shoulder by Mechanical means ( By JCB /DOUZER) including excavation of raised side shoulders pto 15cm depth including remooving /cutting bushes,grass and dressing shoulder to desired camber and disposing of excavated stuff up to road boundary etc complete. as directed by Engineer In Charge. | C96: ='Mtrs CW'!M31 -> 0 | D96: Sqm | E96: ='Mtrs CW'!O25 -> 8.23/93 | F96: ='Mtrs CW'!P25 -> 4 | L96: =K96+J96+I96+H96+G96+F96 -> 4 | M96: =L96*$M$89 -> 0 | N96: =M96+L96 -> 4 | O96: =ROUNDUP(C96*N96,0) -> 0
A98: 3 | B98: ='Mtrs CW'!B33 -> Excavation for roadway in earth, soil of all sorts, sand, gravel or soft murum including dressing section to the required grade, camber and side slopes and conveying the excavated materials with all lifts upto a lead of 50m. and spreading for embankment or stacking as directed. etc complete. | C98: ='Mtrs CW'!M37 -> 0 | D98: Cum | E98: ='Mtrs CW'!O33 -> 2.11/24 | F98: ='Mtrs CW'!P33 -> 68 | L98: =K98+J98+I98+H98+G98+F98 -> 68 | M98: =L98*$M$89 -> 0 | N98: =M98+L98 -> 68 | O98: =ROUNDUP(C98*N98,0) -> 0
A100: 4 | B100: ='Mtrs CW'!B39 -> Conveying the materials obtained from excavation including laying in layers, breaking clods, dressing to the required lines, curves, grades and section for all leads & lifts from the site of excavation to the site of deposition outside the complex as directed engineer in charge. | C100: ='Mtrs CW'!M43 -> 0 | D100: Cum | E100: ='Mtrs CW'!O39 -> lead statement | F100: ='Mtrs CW'!P39 -> 105.25 | L100: =K100+J100+I100+H100+G100+F100 -> 105.25 | M100: 0 | N100: =M100+L100 -> 105.25 | O100: =ROUNDUP(C100*N100,0) -> 0
N102: Total | O102: =SUM(O94:O100) -> 0
B103: ='Mtrs CW'!B55 -> Sub Work II :- Repairs to Appron and gutter
A105: 1 | B105: ='Mtrs CW'!B58 -> Labour charges for removing soil in gutter making surface clean for plastering and conveying material away etc complete | C105: ='Mtrs CW'!M64 -> 0 | D105: Rmt | E105: ='Mtrs CW'!O58 -> RA | F105: ='Mtrs CW'!P58 ->  | L105: =K105+J105+I105+H105+G105+F105 ->  | M105: =L105*$M$89 ->  | N105: =M105+L105 ->  | O105: =ROUNDUP(C105*N105,0) -> 
A107: 2 | B107: ='Mtrs CW'!B67 -> Dismentling brick masonry in lime or cement Mortor and stacking the materials as directed with all leads, lifts etc. complete As directed by Engineer - in - Charge | C107: ='Mtrs CW'!M73 -> 0 | D107: Cum | E107: ='Mtrs CW'!O67 -> 46.09/315 | F107: ='Mtrs CW'!P67 -> 181 | L107: 181 | M107: 0 | N107: 181 | O107: =ROUNDUP(C107*N107,0) -> 0
A109: 3 | B109: ='Mtrs CW'!B75 -> Dismentling Uncoursed Rubble Masonry in lime or Cement Mortor including stacking the materials as directed with all leads, lifts etc. complete As directed by Engineer - in - Charge | C109: ='Mtrs CW'!M82 -> 0 | D109: Cum | E109: ='Mtrs CW'!O75 -> 46.11/315 | F109: ='Mtrs CW'!P75 -> 205 | L109: 205 | M109: 0 | N109: 205 | O109: =ROUNDUP(C109*N109,0) -> 0
A111: 4 | B111: ='Mtrs CW'!B84 -> Removing the lime or lean cement concrete including stacking the spoils as directed with all leads, lifts etc. complete. As directed by Engineer - in - Charge | C111: ='Mtrs CW'!M89 -> 0 | D111: Cum | E111: ='Mtrs CW'!O84 -> 46.12/315 | F111: ='Mtrs CW'!P84 -> 302 | L111: 302 | M111: 0 | N111: 302 | O111: =ROUNDUP(C111*N111,0) -> 0
A113: 5 | B113: ='Mtrs CW'!B91 -> Excavation for foundation in earth, soil of all types, sand, gravel and soft murum, including removing the excavated material upto a distance of 50 meters beyond the building area & stacking and spreading as directed, dewatering, preparing the bed for the foundation and necessary back filling, ramming, watering including shoring and strutting etc. complete. (Lift upto 1.5 m.) | C113: ='Mtrs CW'!M100 -> 0 | D113: Cum | E113: ='Mtrs CW'!O91 -> 21.02/150 | F113: ='Mtrs CW'!P91 -> 125 | L113: 125 | M113: 0 | N113: 125 | O113: =ROUNDUP(C113*N113,0) -> 0
A115: 6 | B115: ='Mtrs CW'!B102 -> Excavation for foundation in hard murum including removing the excavated materials upto distance of 50 metres beyond the building area and stacking and spreading as directed, dewatering, preparing the bed for the foundation and necessary back filling, ramming, watering including shoring and strutting etc. complete. (Lift upto 1.50 m) | C115: ='Mtrs CW'!M112 -> 0 | D115: Cum | E115: ='Mtrs CW'!O102 -> 21.06/150 | F115: ='Mtrs CW'!P102 -> 132 | L115: 132 | M115: 0 | N115: 132 | O115: =ROUNDUP(C115*N115,0) -> 0
A117: 7 | B117: ='Mtrs CW'!B114 -> Excavation for foundation in Hard murum and boulders including removing the excavated materials upto a distance of 50 metres, beyond the building area and stacking and spreading as directed dewatering preparing the bed for the foundation and necessary back filling, ramming, watering including shoring and strutting etc. complete. (Lift upto 1.5 m ) | C117: ='Mtrs CW'!M122 -> 0 | D117: Cum | E117: ='Mtrs CW'!O114 -> 21.10/150 | F117: ='Mtrs CW'!P114 -> 156 | L117: 156 | M117: 0 | N117: 156 | O117: =ROUNDUP(C117*N117,0) -> 0
A119: 8 | B119: ='Mtrs CW'!B124 -> Providing dry/ trap/ granite/ quartzite/ gneiss rubble stone soling 15 cm to 20 cm thick including hand packing and compacting etc. complete. | C119: ='Mtrs CW'!M130 -> 0 | D119: Cum | E119: ='Mtrs CW'!O124 -> 21.38/154 | F119: ='Mtrs CW'!P124 -> 516 | I119: =K15*1.32 -> 458.62872 | L119: 974.62872 | M119: 0 | N119: 974.62872 | O119: =ROUNDUP(C119*N119,0) -> 0
A121: 9 | B121: ='Mtrs CW'!B132 -> Providing and laying Cast in situ/Ready Mix cement concrete in M-10 of trap/ granite/ quartzite/ gneiss metal for foundation and bedding including bailing out water, formwork, laying/pumping, compacting, roughening them if special finish is to be provided, finishing if required and curing complete, etc. complete. With natural sand/V.S.I. quality Artificial Sand | C121: ='Mtrs CW'!M143 -> 0 | D121: Cum | E121: ='Mtrs CW'!O132 -> 24.01/177 | F121: ='Mtrs CW'!P132 -> 3181 | G121: -117 | I121: =F28 -> 813.77821 | L121: 3877.77821 | M121: 0 | N121: 3877.77821 | O121: =ROUNDUP(C121*N121,0) -> 0
A123: 10 | B123: ='Mtrs CW'!B145 -> Providing second class Burnt Brick masonry with conventional/ I.S. type bricks in cement mortar 1:6 in foundations and plinth of inner walls/ in plinth external walls including bailing out water manually , striking joints on unexposed faces, raking out joints on exposed faces and watering etc. complete. | C123: ='Mtrs CW'!M154 -> 0 | D123: Cum | E123: ='Mtrs CW'!O145 -> 27.01/212 | F123: ='Mtrs CW'!P145 -> 4653 | I123: =F34 -> 549.0676 | L123: 5202.0676 | M123: 0 | N123: 5202.0676 | O123: =ROUNDUP(C123*N123,0) -> 0
A125: 11 | B125: ='Mtrs CW'!B156 -> Providing uncoursed rubble masonry of trap / granite / quartzite / gneiss stones in cement mortar 1:6 in foundation and plinth of inner walls / in plinth of external walls including bailing out water manually , striking joints on un exposed faces and watering etc.complete. | C125: ='Mtrs CW'!M165 -> 0 | D125: Cum | E125: ='Mtrs CW'!O156 -> 28.01/214 | F125: ='Mtrs CW'!P156 -> 2783 | I125: =F31 -> 969.0529 | L125: 3752.0529 | M125: 0 | N125: 3752.0529 | O125: =ROUNDUP(C125*N125,0) -> 0
A127: 12 | B127: ='Mtrs CW'!B168 -> Filling in plinth and floors with contractors material/brought from outside and approved by Engineer incharge in layers of 15 cm to 20 cm including watering and compaction etc. complete. | C127: ='Mtrs CW'!M184 -> 0 | D127: Cum | E127: ='Mtrs CW'!O168 -> 21.37/154 | F127: ='Mtrs CW'!P168 -> 255 | I127: =K19 -> 210.71 | L127: 465.71 | M127: 0 | N127: 465.71 | O127: =ROUNDUP(C127*N127,0) -> 0
A129: 13 | B129: ='Mtrs CW'!B186 -> Providing & laying stone metal layer of 20 cm thickness with 60 mm over size metal 65% and 40 mm size metal 35% with sand or stone chips spreading & leveling handpacking complete. | C129: ='Mtrs CW'!M193 -> 0 | D129: Cum | E129: ='Mtrs CW'!O186 -> RA | F129: ='Mtrs CW'!P186 ->  | I129: =K15*1.32 -> 458.62872 | O129: =ROUNDUP(C129*N129,0) -> 
A131: 14 | B131: ='Mtrs CW'!B196 -> Providing and laying Cast in situ/Ready Mix cement concrete in M15 of trap/ granite/quartzite/gneiss metal for steps including teel centering, plywood/steel ormwork, laying/pumping, compacting, roughening them if special finish is to be provided, finishing uneven and honeycombed surface and curing etc. complete. The Cement Mortar 1:3 plaster is considered for rendering uneven and honeycombed surface, only. Newly laid concrete shall be covered by gunny bag, plastic, tarpaulin etc.(Wooden centering will not be allowed.), With natural sand/V.S.I. quality Artificial Sand | C131: ='Mtrs CW'!M210 -> 0 | D131: Cum | E131: ='Mtrs CW'!O196 -> 24.04/177 | F131: ='Mtrs CW'!P196 -> 4205 | G131: =G121 -> -117 | I131: =F37 -> 735.863275 | L131: 4823.863275 | M131: 0 | N131: 4823.863275 | O131: =ROUNDUP(C131*N131,0) -> 0
A133: 15 | B133: ='Mtrs CW'!B213 -> Providing internal cement plaster 20 mili meters thick in two coats in cement mortar 1:4 with neeru finish, to concrete, brick surface, in all positions including scaffolding and curing etc.complete. | C133: ='Mtrs CW'!M223 -> 0 | D133: Sqm | E133: ='Mtrs CW'!O213 -> 32.07+32.21 | F133: 387 | I133: =F38 -> 24.877224 | L133: 411.877224 | M133: 0 | N133: 411.877224 | O133: =ROUNDUP(C133*N133,0) -> 0
B134: 328+59 = 387
A135: 16 | B135: ='Mtrs CW'!B225 -> Conveying the materials obtained from excavation including laying in layers, breaking clods, dressing to the required lines, curves, grades and section for all leads & lifts from the site of excavation to the site of deposition outside the complex as directed engineer in charge. | C135: ='Mtrs CW'!M229 -> 0 | D135: Cum | E135: ='Mtrs CW'!O225 -> lead statement | F135: ='Mtrs CW'!P225 -> 105.25 | L135: 105.25 | M135: 0 | N135: 105.25 | O135: =ROUNDUP(C135*N135,0) -> 0
A137: 17 | B137: =[2]Wh.Rep.!B208 -> Removing and providing cement plaster 20 mili meters thick in two coats in cement mortar 1:4 with neeru finish, to concrete, brick surface, in all positions including scaffolding and curing etc.complete. | C137: ='Mtrs CW'!M237 -> 0 | D137: sqm | E137: =[2]Wh.Rep.!O208 -> 32.07+32.21+46.22 | F137: =[2]Wh.Rep.!P211 -> 402 | L137: =K137+J137+I137+H137+G137+F137 -> 402 | M137: =L137*$M$89 -> 0 | N137: =M137+L137 -> 402 | O137: =ROUNDUP(C137*N137,0) -> 0
B138: 328 + 15 + 59 = 402
N139: Total | O139: =SUM(O105:O137) -> 
B140: ='Mtrs CW'!B243 -> Sub Work III :- Repairs to warehouse flooring
A142: 1 | B142: ='Mtrs CW'!B245 -> Removing cement tiles, or marble or polished shahabad floor or dado without bed concrete including stacking the materials as directed with all leads, lifts etc. complete | C142: ='Mtrs CW'!M258 -> 0 | D142: Sqm | E142: ='Mtrs CW'!O245 -> 46.19/319 | F142: ='Mtrs CW'!P245 -> 24 | L142: =SUM(F142:K142) -> 24 | M142: =L142*$M$89 -> 0 | N142: =M142+L142 -> 24 | O142: =ROUNDUP(C142*N142,0) -> 0
A144: 2 | B144: ='Mtrs CW'!B260 -> Removing shahabad or Tabdur stones from floor without bed concrete including stacking the materials as directed with all leads, lifts etc. complete | C144: ='Mtrs CW'!M266 -> 0 | D144: Sqn | E144: ='Mtrs CW'!O260 -> 46.20/319 | F144: ='Mtrs CW'!P260 -> 25 | L144: =SUM(F144:K144) -> 25 | M144: 0 | N144: 25 | O144: =ROUNDUP(C144*N144,0) -> 0
A146: 3 | B146: ='Mtrs CW'!B268 -> Removing old damaged asphalt flooring without bed concrete including stacking the materials as directed with all leads, lifts etc. complete | C146: ='Mtrs CW'!M274 -> 0 | D146: Sqm | E146: ='Mtrs CW'!O268 -> RA | F146: ='Mtrs CW'!P268 ->  | L146: =SUM(F146:K146) ->  | O146: =ROUNDUP(C146*N146,0) -> 
A148: 4 | B148: ='Mtrs CW'!B276 -> Providing & leveling and compacting the loose / Dislocated surfafe including dewatering if necessary, compacting, curing etc. complete. | C148: ='Mtrs CW'!M287 -> 0 | D148: Sqm | E148: ='Mtrs CW'!O276 -> RA | F148: ='Mtrs CW'!P276 ->  | L148: =SUM(F148:K148) ->  | O148: =ROUNDUP(C148*N148,0) -> 
A150: 5 | B150: ='Mtrs CW'!B289 -> Providing and laying Cast in situ/Ready Mix cement concrete in M-10 of trap/ granite/ quartzite/ gneiss metal for foundation and bedding including bailing out water, formwork, laying/pumping, compacting, roughening them if special finish is to be provided, finishing if required and curing complete, etc. complete. With natural sand/V.S.I. quality Artificial Sand | C150: ='Mtrs CW'!M302 -> 0 | D150: cum' | E150: ='Mtrs CW'!O289 -> 24.01/177 | F150: ='Mtrs CW'!P289 -> 3181 | G150: -117 | I150: =F28 -> 813.77821 | L150: =SUM(F150:K150) -> 3877.77821 | M150: 0 | N150: 3877.77821 | O150: =ROUNDUP(C150*N150,0) -> 0
A152: 6 | B152: ='Mtrs CW'!B304 -> Providing and laying Cast in situ/Ready Mix cement concrete in M15 of trap/ granite/ quartzite/gneiss metal for steps including teel centering, plywood/steel ormwork, laying/pumping, compacting, roughening them if special finish is to be provided, finishing uneven and honeycombed surface and curing etc. complete. The Cement Mortar 1:3 plaster is considered for rendering uneven and honeycombed surface, only. Newly laid concrete shall be covered by gunny bag, plastic, tarpaulin etc.(Wooden centering will not be allowed.), With natural sand/V.S.I. quality Artificial Sand | C152: ='Mtrs CW'!M316 -> 0 | D152: cum | E152: ='Mtrs CW'!O304 -> 24.04/177 | F152: ='Mtrs CW'!P304 -> 4205 | G152: -117 | I152: =J37 -> 761.83492 | L152: =SUM(F152:K152) -> 4849.83492 | M152: 0 | N152: 4849.83492 | O152: =ROUNDUP(C152*N152,0) -> 0
A154: 7 | B154: ='Mtrs CW'!B318 -> Providing treatment of TREMIX vaccum dewatering over prelaid cement concrete M-15surface including fixing of M.S.Channel formwork as per required size and placing of dowel rod, vibrating the concrete by needle vibrator and leveling by tremix double beam surface vibrator, dewatering through suction matt of tremix system, power floating by skim floater and power trowelling to obtain required level surface and finish including procuring three phase temporary electric supply / Generator set if required at site for operating above machinery etc. complete as directed (clause 38 will not be applicable.) | C154: ='Mtrs CW'!M324 -> 0 | D154: sqm | E154: ='Mtrs CW'!O318 -> RA | F154: =#REF! ->  | L154: =SUM(F154:K154) ->  | O154: =ROUNDUP(C154*N154,0) -> 
A156: 8 | B156: ='Mtrs CW'!B326 -> Providing & fixing M.S. angle 50 x 50 x 6 mili meters with holdfasts at doorsills including fixing in bed concrete and then applying three coats of oilpaint etc. complete | C156: ='Mtrs CW'!M331 -> 0 | D156: rmt | E156: ='Mtrs CW'!O326 -> RA | F156: =#REF! ->  | L156: =SUM(F156:K156) ->  | O156: =ROUNDUP(C156*N156,0) -> 
A158: 9 | B158: ='Mtrs CW'!B333 -> Providing groove cutting 25 mili meters x 6 mili meters in cement concrete flooring & filling the gap of exapnsion joints with bituman of 30/40 grade including cleaning the grove and preparing the same or filing etc. complete as directed. | C158: ='Mtrs CW'!M343 -> 0 | D158: rmt | E158: ='Mtrs CW'!O333 -> RA | F158: =#REF! ->  | L158: =SUM(F158:K158) ->  | O158: =ROUNDUP(C158*N158,0) -> 
A160: 10 | B160: ='Mtrs CW'!B345 -> Providing and applying three coats (exterior quality) of flat oil paint of approved colour and shade to the plastered surface in buildings and workshops including scaffolding if necessary, cleaning the surface and preparing surface etc. complete. (including primer coat) | C160: ='Mtrs CW'!M357 -> 0 | D160: sqm | E160: ='Mtrs CW'!O345 -> 35.11+35.21 / 244 | F160: 86 | L160: =SUM(F160:K160) -> 86 | M160: 0 | N160: 86 | O160: =ROUNDUP(C160*N160,0) -> 0
B161: 64+ 22 = 86
A162: 11 | B162: ='Mtrs CW'!B359 -> Conveying the materials obtained from excavation including laying in layers, breaking clods, dressing to the required lines, curves, grades and section for all leads & lifts from the site of excavation to the site of deposition outside the complex as directed engineer in charge. | C162: ='Mtrs CW'!M363 -> 0 | D162: cum | E162: ='Mtrs CW'!O359 -> lead statement | F162: ='Mtrs CW'!P359 -> 105.25 | L162: =SUM(F162:K162) -> 105.25 | M162: 0 | N162: 105.25 | O162: =ROUNDUP(C162*N162,0) -> 0
N164: Total | O164: =SUM(O142:O162) -> 
B165: ='Mtrs CW'!B365 -> Sub Work IV :- Colouring to warehouse building
A167: 1 | B167: ='Mtrs CW'!B368 -> Scrapping and providing & applying whitewash three coats on plastered or masonary surface and A.C. sheets including scaffolding & preparing the surface by brushing & brooming down complete. | C167: ='Mtrs CW'!M387 -> 0 | D167: sqm | E167: ='Mtrs CW'!O368 -> 36.03/226 + 36.04 | F167: ='Mtrs CW'!P368 -> 9 | L167: =SUM(F167:K167) -> 9 | M167: =L167*$M$89 -> 0 | N167: =M167+L167 -> 9 | O167: =ROUNDUP(C167*N167,0) -> 0
A169: 2 | B169: ='Mtrs CW'!B390 -> Scrapping and providing and applying three coats of water proof cement paint of approved manufacture and of approved colour to old plastered surfaces including scaffolding if ecessary, cleaning and preparing the surface, watering for two days etc. complete. | C169: ='Mtrs CW'!M397 -> 0 | D169: sqm | E169: ='Mtrs CW'!O390 -> 35.16/244 | F169: ='Mtrs CW'!P392 -> 58 | L169: =SUM(F169:K169) -> 58 | M169: 0 | N169: 58 | O169: =ROUNDUP(C169*N169,0) -> 0
B170: 56 + 2 = 58
A171: 3 | B171: ='Mtrs CW'!B399 -> Providing & applying two coats of polymer based exteranal paint of standard manufacturer like Apex from Asian paints, Excel from Nerolac paints, exterior paint of approved manufacturer and approved colour to the plastered or masonary surface including primer coat scafolding & preparing the surface etc. complete as directed. ( Sample and brand is to be got approved) | C171: ='Mtrs CW'!M437 -> 0 | D171: sqm | E171: ='Mtrs CW'!O399 -> 35.25/245 | F171: ='Mtrs CW'!P438 -> 208 | L171: =SUM(F171:K171) -> 208 | M171: 0 | N171: 208 | O171: =ROUNDUP(C171*N171,0) -> 0
A173: 4 | B173: ='Mtrs CW'!B441 -> Scrapping and providing & applying oilpainting in three coats of approved colour & shade to flooring for marking stacklines including preparing the surfaces & primer coat etc. complete. ( Sample and brand is to be got approved) | C173: ='Mtrs CW'!M453 -> 0 | D173: sqm | E173: ='Mtrs CW'!O441 -> 35.11/241 | F173: ='Mtrs CW'!P443 -> 89 | L173: =SUM(F173:K173) -> 89 | M173: =L173*$M$89 -> 0 | N173: 89 | O173: =ROUNDUP(C173*N173,0) -> 0
B174: 64 + 25 = 85
A175: 5 | B175: ='Mtrs CW'!B455 -> Scrapping and providing and applying three coats of synthetic enamel paint of aproved colour to new /old structural steel work and wood work in buildings, including scaffolding if necessary, cleaning and preparing the surface (excluding primer coat) etc. complete. | C175: ='Mtrs CW'!M464 -> 0 | D175: sqm | E175: ='Mtrs CW'!O455 -> 35.18/245 | F175: ='Mtrs CW'!P458 -> 102 | L175: =SUM(F175:K175) -> 102 | M175: 0 | N175: 102 | O175: =ROUNDUP(C175*N175,0) -> 0
B176: 12 + 62 + 28 = 102
N178: Total | O178: =SUM(O167:O175) -> 0
B179: ='Mtrs CW'!B466 -> Sub Work V :- Repairs to Rolling Shutters
A181: 1 | B181: ='Mtrs CW'!B468 -> Dismantling brick masonry in lime or cement mortar and stacking the materials as directed with all leads, lifts etc. | C181: ='Mtrs CW'!M474 -> 0 | D181: cum | E181: ='Mtrs CW'!O468 -> 46.09/318 | F181: ='Mtrs CW'!P468 -> 181 | L181: =SUM(F181:K181) -> 181 | M181: =L181*$M$89 -> 0 | N181: =M181+L181 -> 181 | O181: =ROUNDUP(C181*N181,0) -> 0
A183: 2 | B183: ='Mtrs CW'!B476 -> Providing second class Burnt Brick masonry with conventional/ I.S. type bricks in cement mortar 1:6 in superstructure including striking joints, raking out joints, watering and scaffolding etc. Complete | C183: ='Mtrs CW'!M480 -> 0 | D183: cum | E183: ='Mtrs CW'!O476 -> 27.05/215 | F183: ='Mtrs CW'!P476 -> 4804 | I183: =F34 -> 549.0676 | L183: =SUM(F183:K183) -> 5353.0676 | M183: 0 | N183: 5353.0676 | O183: =ROUNDUP(C183*N183,0) -> 0
A185: 3 | B185: ='Mtrs CW'!B482 -> Providing and laying Cast in situ/Ready Mix cement concrete M-20 of trap / ranite /quartzite/ gneiss metal for R.C.C. columns as per detailed designs and drawing or as directed including centering, formwork, cover blocks, laying/pumping, compaction finishing the formed surfaces with cement mortar 1:3 of sufficient minimum thickness to give a smooth and even surface or roughening if special finish is to be provided and curing etc. complete,(Excluding reinforcement and structural steel) | C185: ='Mtrs CW'!M487 -> 0 | D185: cum | E185: ='Mtrs CW'!O482 -> 25.31/188 | F185: ='Mtrs CW'!P482 -> 7514 | G185: -117 | I185: =F37 -> 735.863275 | L185: =SUM(F185:K185) -> 8132.863275 | M185: 0 | N185: 8132.863275 | O185: =ROUNDUP(C185*N185,0) -> 0
A187: 4 | B187: ='Mtrs CW'!B489 -> Providing and laying Cast in situ/Ready Mix cement concrete M-20 of trap / granite /quartzite/ gneiss metal for R.C.C. beams and lintels as per detailed designs and drawings or as directed including centering, formwork, cover blocks, laying/pumping, compactionand roughening the surface if special finish is to be provided and curing etc. complete. (Excluding reinforcement and structural steel). | C187: ='Mtrs CW'!M494 -> 0 | D187: cum | E187: ='Mtrs CW'!O489 -> 25.50/191 | F187: ='Mtrs CW'!P489 -> 6741 | G187: =G185 -> -117 | I187: =I185 -> 735.863275 | L187: =SUM(F187:K187) -> 7359.863275 | M187: 0 | N187: 7359.863275 | O187: =ROUNDUP(C187*N187,0) -> 0
A189: 5 | B189: ='Mtrs CW'!B496 -> Providing and fixing in position TMT - FE - 500 bar reinforcement of various diameters for R.C.C. pile caps, footings, foundations, slabs, beams columns, canopies, staircase, newels, chajjas, lintels pardis, copings, fins, arches etc. as per detailed esigns,drawings and schedules. including cutting, bending, hooking the bars, binding with wires or tack welding and supporting as required complete. | C189: ='Mtrs CW'!M501 -> 0 | D189: MT | E189: ='Mtrs CW'!O496 -> 26.33/202 | F189: ='Mtrs CW'!P496 -> 46309 | L189: =SUM(F189:K189) -> 46309 | M189: 0 | N189: 46309 | O189: =ROUNDUP(C189*N189,0) -> 0
A191: 6 | B191: ='Mtrs CW'!B503 -> Providing internal cement plaster 20mm thick in two coats in cement mortar 1:4 without neeru finish, to concrete, brick surface, in all positions including scaffolding and curing etc.complete. | C191: ='Mtrs CW'!M507 -> 0 | D191: sqm | E191: ='Mtrs CW'!O503 -> 32.07/227 | F191: ='Mtrs CW'!P503 -> 328 | I191: =F38 -> 24.877224 | L191: =SUM(F191:K191) -> 352.877224 | M191: 0 | N191: 352.877224 | O191: =ROUNDUP(C191*N191,0) -> 0
A193: 7 | B193: ='Mtrs CW'!B509 -> Removing the shutter from its positions and refixing them with new hold fast 0.60M side guide and bottom rail lath springs,oiling greasing, its tensioning etc complete as directed by Engineer In charge | C193: ='Mtrs CW'!M513 -> 0 | D193: nos | E193: ='Mtrs CW'!O509 -> RA | F193: ='Mtrs CW'!P509 -> 1870 | L193: =SUM(F193:K193) -> 1870 | M193: 0 | N193: 1870 | O193: =ROUNDUP(C193*N193,0) -> 0
A195: 8 | B195: ='Mtrs CW'!B515 -> Supply and fixing following material for fixing of Rolling Shutters etc. Complete as directed by Engineer in charge.
B197: ='Mtrs CW'!B517 -> A - side guide | C197: ='Mtrs CW'!M518 -> 0 | D197: rmt | E197: ='Mtrs CW'!O517 -> MR | F197: ='Mtrs CW'!P517 -> 200 | L197: =SUM(F197:K197) -> 200 | M197: =L197*$M$89 -> 0 | N197: =M197+L197 -> 200 | O197: =ROUNDUP(C197*N197,0) -> 0
B199: ='Mtrs CW'!B520 -> B - Bottom Rail | C199: ='Mtrs CW'!M521 -> 0 | D199: rmt | E199: ='Mtrs CW'!O520 -> MR | F199: ='Mtrs CW'!P520 -> 800 | L199: =SUM(F199:K199) -> 800 | M199: 0 | N199: 800 | O199: =ROUNDUP(C199*N199,0) -> 0
B201: ='Mtrs CW'!B523 -> C - Lath Patti | C201: ='Mtrs CW'!M524 -> 0 | D201: rmt | E201: ='Mtrs CW'!O523 -> MR | F201: ='Mtrs CW'!P523 -> 65 | L201: =SUM(F201:K201) -> 65 | M201: 0 | N201: 65 | O201: =ROUNDUP(C201*N201,0) -> 0
B203: ='Mtrs CW'!B526 -> D - Spring | C203: ='Mtrs CW'!M527 -> 0 | D203: rmt | E203: ='Mtrs CW'!O526 -> MR | F203: ='Mtrs CW'!P526 -> 400 | L203: =SUM(F203:K203) -> 400 | M203: 0 | N203: 400 | O203: =ROUNDUP(C203*N203,0) -> 0
A205: 9 | B205: ='Mtrs CW'!B529 -> Providing and applying three coats of flat oil paint of approved colour to the old structural steel work and iron work previously painted in building including scaffolding, if necessary, cleaning and preparing the surface (excluding primer coat) etc. complete. | C205: ='Mtrs CW'!M532 -> 0 | D205: sqm | E205: ='Mtrs CW'!O529 -> 35.09/244 | F205: ='Mtrs CW'!P532 -> 73 | L205: =SUM(F205:K205) -> 73 | M205: 0 | N205: 73 | O205: =ROUNDUP(C205*N205,0) -> 0
B206: 50 + 11+ 12 = 73
A207: 10 | B207: ='Mtrs CW'!B534 -> Providing and applying three coats of water proof cement paint of approved manufacture and of approved colour to old plastered surfaces including scaffolding if necessary, cleaning and preparing the surface, watering for two days etc. complete. | C207: ='Mtrs CW'!M539 -> 0 | D207: sqm | E207: ='Mtrs CW'!O534 -> 35.16/244 | F207: 58 | L207: =SUM(F207:K207) -> 58 | M207: 0 | N207: 58 | O207: =ROUNDUP(C207*N207,0) -> 0
B208: 56 + 2 = 58
A209: 11 | B209: ='Mtrs CW'!B541 -> Providing partition arrangements for shutter opening portion along with security arrangements upto completion of work etc. complete | C209: ='Mtrs CW'!M545 -> 0 | D209: sqm | E209: ='Mtrs CW'!O541 -> RA | F209: ='Mtrs CW'!P541 -> 165.2777778 | L209: =SUM(F209:K209) -> 165.2777778 | M209: 0 | N209: 165.2777778 | O209: =ROUNDUP(C209*N209,0) -> 0
A211: 12 | B211: ='Mtrs CW'!B548 -> Removing the existing damaged Rolling shutters from its original locations etc. complete as directed by engineer In charge. | C211: ='Mtrs CW'!M552 -> 0 | D211: sqm | E211: ='Mtrs CW'!O548 -> RA | F211: ='Mtrs CW'!P548 -> 330 | L211: =SUM(F211:K211) -> 330 | M211: 0 | N211: 330 | O211: =ROUNDUP(C211*N211,0) -> 0
A213: 13 | B213: ='Mtrs CW'!B554 -> Providing & fixing steel rolling shutter fabricated from 20 gauge steel laths with side guides, bottom rails, brackets of 10 G.M.S. sheet door suspension shaft of 50 mm dia, rolling springs of 45 cm length, locking arrangements with not less than 6mm thick strip and central lock as per specifications, housing box prepared out of 20 G sheets at the top, handles prepared out of 6mm thick flats 4 nos, holdfast patti 6 nos,for each side guide with 12 concrete nails / fasterner, including applying three coats of oilpaint of approved colour & shade etc. complete | C213: ='Mtrs CW'!M558 -> 0 | D213: sqm | E213: ='Mtrs CW'!O554 -> RA | F213: ='Mtrs CW'!P554 -> 3063.44 | L213: =SUM(F213:K213) -> 3063.44 | M213: 0 | N213: 3063.44 | O213: =ROUNDUP(C213*N213,0) -> 0
A215: 14 | B215: ='Mtrs CW'!B560 -> Crediting the amount against old damaged existing damaged rolling shutter as directed by engineer in charge. | C215: ='Mtrs CW'!M564 -> 0 | D215: kg | E215: ='Mtrs CW'!O560 -> RA | F215: ='Mtrs CW'!P560 -> -15 | L215: =SUM(F215:K215) -> -15 | M215: 0 | N215: -15 | O215: =ROUNDUP(C215*N215,0) -> 0
A217: 15 | B217: ='Mtrs CW'!B566 -> Conveying the materials obtained from excavation including laying in layers, breaking clods, dressing to the required lines, curves, grades and section for all leads & lifts from the site of excavation to the site of deposition outside the complex as by directed engineer in charge. | C217: ='Mtrs CW'!M570 -> 0 | D217: cum | E217: ='Mtrs CW'!O566 -> lead statement | F217: ='Mtrs CW'!P566 -> 105.25 | L217: =SUM(F217:K217) -> 105.25 | M217: 0 | N217: 105.25 | O217: =ROUNDUP(C217*N217,0) -> 0
N219: Total | O219: =SUM(O181:O217) -> 0
B220: ='Mtrs CW'!B573 -> Sub Work VI :- Repairs to Warehouse Platforms
A222: 1 | B222: ='Mtrs CW'!B575 -> Dismantling brick masonry in lime or cement mortar and stacking the materils as directed with all leads, lifts etc. complete | C222: ='Mtrs CW'!M583 -> 0 | D222: cum | E222: ='Mtrs CW'!O575 -> 46.09/318 | F222: ='Mtrs CW'!P575 -> 181 | L222: =SUM(F222:K222) -> 181 | M222: =L222*$M$89 -> 0 | N222: =M222+L222 -> 181 | O222: =ROUNDUP(C222*N222,0) -> 0
A224: 2 | B224: ='Mtrs CW'!B585 -> Dismantling stone masonry in lime or cement mortar including stacking the materials as directed with all leads, lifts etc. complete. | C224: ='Mtrs CW'!M593 -> 0 | D224: cum | E224: ='Mtrs CW'!O585 -> 46.11/315 | F224: ='Mtrs CW'!P585 -> 205 | L224: =SUM(F224:K224) -> 205 | M224: 0 | N224: 205 | O224: =ROUNDUP(C224*N224,0) -> 0
A226: 3 | B226: ='Mtrs CW'!B595 -> Removing rich mix cement concrete and sorting out the materials such as steel etc. as directed and stacking them within the specified lead as directed etc. complete. | C226: ='Mtrs CW'!M605 -> 0 | D226: cum | E226: ='Mtrs CW'!O595 -> 46.13/318 | F226: ='Mtrs CW'!P595 -> 502 | L226: =SUM(F226:K226) -> 502 | M226: 0 | N226: 502 | O226: =ROUNDUP(C226*N226,0) -> 0
A228: 4 | B228: ='Mtrs CW'!B607 -> Removing & refixing, fabricating structural steel work in rolled sections like joists, channels, angles, tees etc. as per detailed design and drawings or as directed including cutting, fabricating, hoisting, erecting, fixing in position making riveted / bolted /welded connections without connecting plates, braces etc. and including one coat of anticorrosive paint and over it two coats of oil painting of approved quality and shade etc. complete. | C228: ='Mtrs CW'!M612 -> 0 | D228: kg | E228: ='Mtrs CW'!O607 -> 23.01/174 | F228: ='Mtrs CW'!P607 -> 50.77 | L228: =SUM(F228:K228) -> 50.77 | M228: 0 | N228: 50.77 | O228: =ROUNDUP(C228*N228,0) -> 0
A230: 5 | B230: ='Mtrs CW'!B614 -> Providing second class Burnt Brick masonry with conventional/ I.S. type bricks in cement mortar 1:6 in superstructure including striking joints, raking out joints, watering and scaffolding etc. Complete | C230: ='Mtrs CW'!M621 -> 0 | D230: cum | E230: ='Mtrs CW'!O614 -> 27.05/215 | F230: ='Mtrs CW'!P614 -> 4804 | I230: =F34 -> 549.0676 | L230: =SUM(F230:K230) -> 5353.0676 | M230: 0 | N230: 5353.0676 | O230: =ROUNDUP(C230*N230,0) -> 0
A232: 6 | B232: ='Mtrs CW'!B623 -> Providing and laying in situ/Ready Mix cement concrete M-20 of trap / granite /quartzite/ gneiss metal for R.C.C. work in foundations like raft, strip foundations, grillage and footings of R.C.C. columns and steel stanchions etc. including bailing out water, formwork, laying/pumping cover blocks, compaction and curing roughening the surface if special finish is to be provided (Excluding reinforcement and structural steel) etc. complete, etc. complete. With natural sand/V.S.I. quality Artificial Sand | C232: ='Mtrs CW'!M627 -> 0 | D232: cum | E232: ='Mtrs CW'!O623 -> 25.11/185 | F232: ='Mtrs CW'!P623 -> 4907 | G232: -117 | I232: =F37 -> 735.863275 | L232: =SUM(F232:K232) -> 5525.863275 | M232: 0 | N232: 5525.863275 | O232: =ROUNDUP(C232*N232,0) -> 0
A234: 7 | B234: ='Mtrs CW'!B631 -> Providing and laying Cast in situ/Ready Mix cement concrete M-20 of trap / granite /quartzite/ gneiss metal for R.C.C. columns as per detailed designs and drawing or as directed includingcentering, formwork, cover blocks, laying / pumping, compaction finishing the formed surfaces with cement mortar1:3 of sufficient minimum thickness to give a smooth and evensurface or roughening if special finish is to be provided andcuring etc.complete,(Excluding reinforcement and structuralsteel).With natural sand/V.S.I.quality Artificial Sand | C234: ='Mtrs CW'!M636 -> 0 | D234: cum | E234: ='Mtrs CW'!O631 -> 25.31/188 | F234: ='Mtrs CW'!P631 -> 7514 | G234: -117 | I234: =I232 -> 735.863275 | L234: =SUM(F234:K234) -> 8132.863275 | M234: 0 | N234: 8132.863275 | O234: =ROUNDUP(C234*N234,0) -> 0
A236: 8 | B236: ='Mtrs CW'!B638 -> Providing and laying Cast in situ/Ready Mix cement concrete M-20 of trap / granite /quartzite/ gneiss metal for R.C.C. beams and lintels as per detailed designs and drawings or as directed including centering, formwork, cover blocks, laying/pumping, compaction and roughening the surface if special finish is to be provided and curing etc. complete. (Excluding reinforcement and structural steel). etc. complete. With natural sand/ V.S.I. quality Artificial Sand | C236: ='Mtrs CW'!M651 -> 0 | D236: cum | E236: ='Mtrs CW'!O638 -> 25.50/191 | F236: ='Mtrs CW'!P638 -> 6741 | G236: -117 | I236: =I234 -> 735.863275 | L236: =SUM(F236:K236) -> 7359.863275 | M236: 0 | N236: 7359.863275 | O236: =ROUNDUP(C236*N236,0) -> 0
A238: 9 | B238: ='Mtrs CW'!B653 -> Providing and laying Cast in situ/Ready Mix cement concrete M-20 of trap/ granite / quartzite/ gneiss metal for R.C.C. slabs and landings as per detailed designs and drawings including centering, formwork, cover blocks, laying/pumping, compactionfinishing the formed surfaces with cement mortar 1:3 of sufficient minimum thickness to give a smooth and even surface or roughening if special finish is to be provided and curing etc. complete,(Excluding reinforcement and structural steel). complete. With natural sand/V.S.I. quality Artificial Sand | C238: ='Mtrs CW'!M657 -> 0 | D238: cum | E238: ='Mtrs CW'!O653 -> 25.70/193 | F238: ='Mtrs CW'!P653 -> 8516 | G238: =G232 -> -117 | I238: =I236 -> 735.863275 | L238: =SUM(F238:K238) -> 9134.863275 | M238: 0 | N238: 9134.863275 | O238: =ROUNDUP(C238*N238,0) -> 0
A240: 10 | B240: ='Mtrs CW'!B659 -> Providing internal cement plaster 20mm thick in two coats in cement mortar 1:4 without neeru finish, to concrete, brick surface, in all positions including scaffolding and curing etc.complete. | C240: ='Mtrs CW'!M664 -> 0 | D240: sqm | E240: ='Mtrs CW'!O659 -> 32.07/227 | F240: ='Mtrs CW'!P659 -> 328 | I240: =I191 -> 24.877224 | L240: =SUM(F240:K240) -> 352.877224 | M240: 0 | N240: 352.877224 | O240: =ROUNDUP(C240*N240,0) -> 0
A242: 11 | B242: ='Mtrs CW'!B667 -> Providing and fabricating structural steel work in rolled sections like joists, channels, angles, tees etc. as per detailed design and drawings or as directed including cutting, fabricating, hoisting, erecting, fixing in position making riveted / bolted /welded connections without connecting plates, braces etc. and including one coat of anticorrosive paint and over it two coats of oil painting of approved quality and shade etc. complete. | C242: ='Mtrs CW'!M675 -> 0 | D242: kg | E242: ='Mtrs CW'!O667 -> 23.01/177 | F242: ='Mtrs CW'!P667 -> 50.77 | L242: =SUM(F242:K242) -> 50.77 | M242: 0 | N242: 50.77 | O242: =ROUNDUP(C242*N242,0) -> 0
A244: 12 | B244: ='Mtrs CW'!B677 -> Conveying the materials obtained from excavation including laying in layers, breaking clods, dressing to the required lines, curves, grades and section for all leads & lifts from the site of excavation to the site of deposition outside the complex as by directed engineer in charge. | C244: ='Mtrs CW'!M681 -> 0 | D244: cum | E244: ='Mtrs CW'!O677 -> lead statement | F244: ='Mtrs CW'!P677 -> 105.25 | L244: =SUM(F244:K244) -> 105.25 | M244: 0 | N244: 105.25 | O244: =ROUNDUP(C244*N244,0) -> 0
N246: Total | O246: =SUM(O222:O244) -> 0
B248: ='Mtrs CW'!B684 -> Sub Work VII :- Repairs to Office building
A250: 1 | B250: ='Mtrs CW'!B686 -> Scrapping & providing & applying white wash in three coats on plastered surfaces including scaffolding & preparing the surface by brushing & brooming down complete including scrapping old white wash & preparing surface to receive new white wash etc complete. | C250: ='Mtrs CW'!M689 -> 0 | D250: sqm | E250: ='Mtrs CW'!O686 -> 36.03/246+ 36.04 | F250: ='Mtrs CW'!P686 -> 9 | L250: =SUM(F250:K250) -> 9 | M250: =L250*$M$89 -> 0 | N250: =SUM(L250:M250) -> 9 | O250: =ROUNDUP(C250*N250,0) -> 0
B251: 8 + 1 = 9
A252: 2 | B252: ='Mtrs CW'!B691 -> Providing & applying Washable Oil Bound Distemper of approved colour & shade three coats including scaffolding & preparing the surface by scrapping the old paint etc complete | C252: ='Mtrs CW'!M722 -> 0 | D252: sqm | E252: ='Mtrs CW'!O691 -> 46.22/316 + 36.11/247 | F252: ='Mtrs CW'!P693 -> 47 | L252: =SUM(F252:K252) -> 47 | M252: 0 | N252: =SUM(L252:M252) -> 47 | O252: =ROUNDUP(C252*N252,0) -> 0
B253: 15 + 32 = 47
A254: 3 | B254: ='Mtrs CW'!B724 -> Scrapping the old paint and providing and applying two coats of exterior acraylic emulsion paint confirming to corresponding I.S. of approved manufacture and of approved colour to the plastered surfaces including cleaning ,preparing the plaster surface, applying primer coat ,scaffolding if necessary , and watering the surface for two days etc complete. | C254: ='Mtrs CW'!M738 -> 0 | D254: sqm | E254: ='Mtrs CW'!O724 -> 35.25/304 | F254: ='Mtrs CW'!P726 -> 208 | L254: =SUM(F254:K254) -> 208 | M254: 0 | N254: =SUM(L254:M254) -> 208 | O254: =ROUNDUP(C254*N254,0) -> 0
A256: 4 | B256: ='Mtrs CW'!B740 -> Scrapping the old paint and providing and applying two coats of synthetic enamel paint of approved colour to new /old structural steel work and wood work in buildings, including scaffolding if necessary, cleaning and preparing the surface (excluding primer coat) etc. complete. | C256: ='Mtrs CW'!M748 -> 0 | D256: sqm | E256: ='Mtrs CW'!O740 -> 35.07/243 | F256: ='Mtrs CW'!P743 -> 83 | L256: =SUM(F256:K256) -> 83 | M256: 0 | N256: =SUM(L256:M256) -> 83 | O256: =ROUNDUP(C256*N256,0) -> 0
B257: 62 + 21 = 83
A258: 5 | B258: ='Mtrs CW'!B750 -> Removing existing plaster and providing and laying vitrified mirror / glossy finish tiles having size 590 mm to 605 mm x 590 mm to 605 mm of 8 to 10 mm thickness and confirming to IS. 15622-2006 ( group Bla) of approved make, shade and pattern for flooring in required position laid on a bed of 1:4 cement mortar including neat cement float, filling joints, curing and clearing etc. complete.b) Skirting | C258: ='Mtrs CW'!M762 -> 0 | D258: sqm | E258: ='Mtrs CW'!O750 -> 33.41/236 | F258: ='Mtrs CW'!P752 -> 943 | I258: =F42 -> 24.877224 | L258: =SUM(F258:K258) -> 967.877224 | M258: 0 | N258: =SUM(L258:M258) -> 967.877224 | O258: =ROUNDUP(C258*N258,0) -> 0
B259: 928 + 15 = 943
A260: 6 | B260: ='Mtrs CW'!B764 -> Removing existing shahabad flooring & stacking the material properly and providing and laying vitrified mirror / glossy finish tiles decorative type having size 590 mm to 605 mm x 590 mm to 605 mm of 8 to 10 mm thickness and confirming to IS. 15622- 2006 ( group Bla) of approved make, shade and pattern for flooring in required position laid on a bed of 1:4 cement mortar including neat cement float, filling joints, curing and clearing etc. complete. a) Flooring | C260: ='Mtrs CW'!M774 -> 0 | D260: sqm | E260: ='Mtrs CW'!O764 -> 33.40/196 | F260: ='Mtrs CW'!P766 -> 863 | I260: =I258 -> 24.877224 | L260: =SUM(F260:K260) -> 887.877224 | M260: 0 | N260: =SUM(L260:M260) -> 887.877224 | O260: =ROUNDUP(C260*N260,0) -> 0
B261: 839 + 24 = 863
A262: 7 | B262: ='Mtrs CW'!B776 -> Removing existing plaster and providing and laying ceramic tiles of RAK/Kajaria / Nitco /Asian or equivalentmake having size 30 cm. x 30 cm. for dado and skirting in required position with readymade adhesive mortar ofapproved quality on plaster of 1:2 cement mortar including joint filling with white/colour cement slurry cleaning curing complete. | C262: ='Mtrs CW'!M785 -> 0 | D262: sqm | E262: ='Mtrs CW'!O776 -> 33.25/234 | F262: ='Mtrs CW'!P778 -> 942 | I262: =I260 -> 24.877224 | L262: =SUM(F262:K262) -> 966.877224 | M262: 0 | N262: =SUM(L262:M262) -> 966.877224 | O262: =ROUNDUP(C262*N262,0) -> 0
B263: 927 + 15 = 942
A264: 8 | B264: ='Mtrs CW'!B787 -> Removing existing tiles and Providing and laying ceramic tiles of RAK/ Kajaria/ Nitco/ Asian or equivalent make having size 30 cm x 30 cmconfirming I.S.15622/2006 (group D IIA) and 7 to 8 mm thick for flooring inrequired position laid on a bed of 1:4cement mortar including cement float, filling joint with white/colour cement slurry cleaning curing complete. | C264: ='Mtrs CW'!M792 -> 0 | D264: sqm | E264: ='Mtrs CW'!O787 -> 33.24/234 + 46.19/319 | F264: ='Mtrs CW'!P789 -> 944 | I264: =I262 -> 24.877224 | L264: =SUM(F264:K264) -> 968.877224 | M264: 0 | N264: =SUM(L264:M264) -> 968.877224 | O264: =ROUNDUP(C264*N264,0) -> 0
B265: 920 + 24 = 944
A266: 9 | B266: ='Mtrs CW'!B794 -> Removing the existing brickwork and plaster below window sill & Providing sills of polished Marble stone 25mm to 30mm thick, on a bed of 1:4cement mortar including cement float, fillingjoints with slurry, curing polishing andcleaning complete. | C266: ='Mtrs CW'!M797 -> 0 | D266: sqm | E266: ='Mtrs CW'!O794 -> 33.21/234 + 46.09/318 | F266: ='Mtrs CW'!P796 -> 1291.1 | I266: =I264 -> 24.877224 | L266: =SUM(F266:K266) -> 1315.977224 | M266: 0 | N266: =SUM(L266:M266) -> 1315.977224 | O266: =ROUNDUP(C266*N266,0) -> 0
B267: 1273 + 1303.87 = 2576.87
A268: 10 | B268: ='Mtrs CW'!B799 -> Providing necessary repairs to the doors and windows with required spares and finishing, etc, to have smooth operation etc. complete as directed. | C268: ='Mtrs CW'!M802 -> 0 | D268: sqm | E268: ='Mtrs CW'!O799 -> MR | F268: ='Mtrs CW'!P799 -> 200 | L268: =SUM(F268:K268) -> 200 | M268: 0 | N268: =SUM(L268:M268) -> 200 | O268: =ROUNDUP(C268*N268,0) -> 0
